Workbook

Sheet Introduction
B2: Informing Interventions to reduce health Inequalities ('Triple I'):
B3: Physical Environment intervention
B7: Informing Interventions to reduce health Inequalities ('Triple I') is a collaboration between NHS Health Scotland and the Scottish Public Health Observatory (ScotPHO).
B8: Triple I provides national and local decision makers with practical tools and interpreted results about investing in interventions to reduce health inequalities in Scotland.
B9: It does this by modelling the potential impact of different interventions and policies on overall population health and health inequalities.
B10: This tool is part of a set of 9 spreadsheets and associated documentation, produced as an update and extension of our 2014 Triple I work.
B11: Data and evidence have been updated where applicable, new interventions have been included, and presentation of the results has been improved.
B12: The tool can be used to produce detailed results for different geographies (Scotland, Local Authorities, Health Boards, City Regions, or Integrated Joint Boards).
B13: Results are provided for three health outcomes: premature mortality, years of life lost, and hospital stays.
B15: The interventions:
B16: The interventions were chosen based on the highest quality and most generalisable evidence linking them to changes in all-cause mortality and hospital admissions.
B17: The topics addressed by the interventions span the determinants of health (including ‘upstream’, ‘downstream’, individual-level and population-wide).
B18: There are 9 Triple I spreadsheet tools (corresponding to the topic areas below).
C20: Individual-level interventions: | H20: Population-wide interventions:
C21: (N.B. modelled as being implemented in year 1 only) | H21: (N.B. permanent: modelled as remaining
C22: Topic | D22: Intervention(s) | H22: in place after implementation in year 1)
C23: Mental Health | D23: Interventions for depression | H23: Topic | J23: Intervention(s)
C24: Obesity | D24: Weight management service | H24: Physical Environment | J24: 20 mph speed limits
C25: Physical inactivity | D25: Physical activity interventions | H25: Smoking | J25: Tobacco taxation
C26: Smoking | D26: Smoking cessation | H26: Income | J26: Income-based policies
C27: Alcohol consumption | D27: Alcohol Brief Interventions (ABIs)
C28: Unemployment | D28: Job provision
B30: Pages in this spreadsheet tool:
C31: Introduction | E31: >> | F31: Information about the Triple I project
C32: User guide | E32: >> | F32: How to use this spreadsheet tool
C33: Options | E33: >> | F33: Where users can change the model options, and see high-level results
C34: Results | E34: >> | F34: Full results for the chosen model options
C35: Evidence | E35: >> | F35: Summary of the evidence underpinning the model, and definitions of the policies/interventions
B37: Further information is available on the Triple I website: | G37: Triple I website
C38: Interactive results browser | E38: >> | F38: An online interactive results browser for comparing different interventions (April 2019)
C39: National Overview Report | E39: >> | F39: A summary report of the national-level findings (April 2019)
C40: Technical Report | E40: >> | F40: Details of Triple I's methods and data sources (April 2019)
C41: Frequently Asked Questions | E41: >> | F41: Answers to frequently-asked questions about Triple I (April 2019)
C42: Income-based policies | E42: >> | F42: Report and Supplementary Information about the income-based policies work (October 2018)
C43: nhs.triple.i@nhs.net | E43: >> | F43: Email us for more information.
B45: Abbreviations used
B46: IJB | C46: Integrated Joint Board
B47: LA | C47: Local Authority
B48: RII | C48: Relative Index of Inequality
B49: SII | C49: Slope Index of Inequality
B50: SIMD | C50: Scottish Index of Multiple Deprivation
B51: Q1 - Q5 | C51: Quintiles of the SIMD: Q1 contains the 20% most deprived areas, and Q5 contains the 20% least deprived areas.

Sheet User Guide
B2: User Guide
B4: Please note: Macros need to be enabled for the tools to work properly.
B5: How to do this in a recent version of Excel: File > Options > Trust Center > Trust Center Settings > Macro Settings > "Enable all macros"
B6: How to do this in an older version of Excel: Tools > Options > Security > Macro Security > "Medium"
B8: Changing the intervention details:
B9: You can interact with the Triple I model from the Options tab.
B10: Any changes made to the shaded cells (blue) on this tab will cause Excel to recalculate the model and present new results.
B11: Below are the options available (N.B. not every spreadsheet will have all of these options):
B13: Intervention:
B14: Choose the intervention of interest (only relevant for tools covering more than one intervention: Mental health, Physical activity, and Income-based interventions)
B16: Area:
B17: Choose the area to run the model for. The available geographies are listed below.
C18: 1. Health Boards: | F18: The 14 territorial NHS health boards responsible for delivery of frontline healthcare services in Scotland (2014 boundaries).
C19: 2. Local Authorities: | F19: The 32 elected councils that provide a range of services to local people, including education and care.
F20: The Gaelic name of Eilean Siar is used for the local authority covering the Western Isles.
C21: 3. Integrated Joint Boards: | F21: 31 integration authorities were created by The Public Bodies (Joint Working) Act 2014, in order to integrate the health and
F22: social care functions of health boards and local authorities. These Integrated Joint Boards (IJBs) or Partnerships
F23: correspond to local authority areas, with the exception of Clackmannanshire and Stirling IJB which combines two local
F24: authorities. The Gaelic name of Eilean Siar is used for the IJB covering the Western Isles.
C25: 4. City Region Deals: | F25: City Region Deals are agreements between the Scottish Government, the UK Government and local government.
F26: They have been designed to bring about long-term strategic approaches to improving regional economies.
F27: The following 6 city regions are included:
F29: City Region: | J29: Local Authorities (LAs) included:
F30: Aberdeen City Region Deal | J30: Aberdeen and Aberdeenshire
F31: Edinburgh & Southeast Scotland City Region Deal | J31: Edinburgh, Fife, East Lothian, Midlothian, West Lothian, Borders
F32: Glasgow City Region Deal | J32: East Dunbartonshire, East Renfrewshire, Glasgow City, Inverclyde,
J33: North Lanarkshire, Renfrewshire, South Lanarkshire, West Dunbartonshire
F34: Inverness & Highland City Region Deal | J34: Highland
F35: Stirling and Clackmannanshire City Region Deal | J35: Stirling and Clackmannanshire
F36: Tay Cities Region Deal | J36: Dundee, Perth & Kinross, Angus, Fife
B38: Targeting strategy:
B39: The strategy for delivering the individual-level* interventions can be altered by the user.
B40: *Interventions delivered to individuals: mental health, weight management, physical activity, smoking cessation, alcohol brief interventions, and job provision.
B41: Four options are available:
B42: · Even distribution: treat the same proportion of the eligible population in each subgroup (i.e., age group, sex and SIMD 2016 quintile).
B43: · Proportionate to need: the proportion of each subgroup treated is proportionate to the subgroup's prevalence of the exposure (e.g., smoking or depression).
B44: · Most deprived 20% only**: treat only those in SIMD quintile 1 (even distribution within this quintile).
B45: · Most deprived 40% only: treat only those in SIMD quintiles 1 and 2 (even distribution within these quintiles).
B46: **The Orkney Islands, Shetland Islands and the Western Isles do not have population in SIMD 2016 quintile 1, so targeting to quintile 1 will produce an error message.
B48: Number to treat:
B49: For individual-level interventions you can choose the number of people to be treated.
B50: · For information the maximum number of people who are eligible to be treated will be calculated in the preceding cell.
B51: · If a higher number is entered an error message will prevent the calculation from occurring.
B52: · Be aware that the model will run and produce results if changes to another blue cell mean that the number of people then exceeds the new maximum number.
B54: Number of years:
B55: The interventions are delivered in year 1.
B56: Their effects can be modelled from year 2 (the first year of follow-up) to year 20.
B57: N.B. Individual-level interventions are delivered for a single year, while the population-level interventions are modelled as remaining in place after year 1.
B59: Viewing the results:
B60: Options tab | D60: A summary of the results is shown on the Options tab.
B61: Results tab | D61: More detailed results are shown on the Results tab.
B62: Technical Report | D62: Further information about how the results are calculated, and how to interpret them, can be found in the Triple I Technical Report.
B64: For advanced users: How to make more advanced changes to the model
B65: The inner workings of the Triple I tools are described in the Technical Report. We recommend you consult the report before making any advanced changes.
B66: The model data and calculations can be found in a number of 'hidden' tabs.
B67: These are hidden to simplify the spreadsheet for users.
B68: To see the hidden tabs, right-click on any tab, select 'Unhide', then select the tab you want to unhide.
B69: The hidden tabs include population data, prevalence data, targeting calculations, and result calculations.
B70: VBA (Visual Basic for Applications) code has been written to create bespoke functions for the calculations.
B71: The code can be found from the Developer tab > Visual Basic.
B72: If the Developer tab is not shown in your version of Excel go to File > Options > Customize Ribbon and switch on the Developer tab (recent Excel versions only).

Sheet Options
B2: Options for changing the model: | E2: Results summary:
B4: Change the shaded cells (blue) to recalculate. | E4: Check the Results tab for a detailed breakdown of the results
B5: N.B. Results may take a few seconds to change. | E5: Results shown as cumulative difference from baseline over the follow-up period (% difference in brackets).
B7: Intervention: (defined on Evidence tab) | E7: POLICY IMPACT ON HEALTH* | F7: Whole population | G7: SIMD Q1 & Q2 | H7: SIMD Q1
B8: 20 mph speed limits (urban) | E8: Hospital stays prevented | F8: =CONCATENATE(FIXED(Results!E16,0)," (",FIXED(Results!F16,2),"%)") -> 283 (0.02%) | G8: =CONCATENATE(FIXED(Results!E17,0)," (",FIXED(Results!F17,2),"%)") -> 164 (0.03%) | H8: =IF(OR(Calculations!$E$2="Orkney Health Board",Calculations!$E$2="Orkney Islands Local Authority",Calculations!$E$2="Shetland Health Board",Calculations!$E$2="Western Isles Health Board",Calculations!$E$2="Shetland Islands Local Authority",Calculations!$E$2="Eilean Siar Local Authority"),"N/A", CONCATENATE(FIXED(Results!E18,0)," (",FIXED(Results!F18,2),"%)")) -> 94 (0.03%)
E9: Premature deaths prevented | F9: =CONCATENATE(FIXED(Results!E20,0)," (",FIXED(Results!F20,2),"%)") -> 5 (0.02%) | G9: =CONCATENATE(FIXED(Results!E21,0)," (",FIXED(Results!F21,2),"%)") -> 3 (0.03%) | H9: =IF(OR(Calculations!$E$2="Orkney Health Board",Calculations!$E$2="Orkney Islands Local Authority",Calculations!$E$2="Shetland Health Board",Calculations!$E$2="Western Isles Health Board",Calculations!$E$2="Shetland Islands Local Authority",Calculations!$E$2="Eilean Siar Local Authority"),"N/A", CONCATENATE(FIXED(Results!E22,0)," (",FIXED(Results!F22,2),"%)")) -> 2 (0.03%)
B10: Choose the area to run the model for: | E10: Years of life saved | F10: =CONCATENATE(FIXED(Results!E24,0)," (",FIXED(Results!F24,2),"%)") -> 146 (0.02%) | G10: =CONCATENATE(FIXED(Results!E25,0)," (",FIXED(Results!F25,2),"%)") -> 93 (0.03%) | H10: =IF(OR(Calculations!$E$2="Orkney Health Board",Calculations!$E$2="Orkney Islands Local Authority",Calculations!$E$2="Shetland Health Board",Calculations!$E$2="Western Isles Health Board",Calculations!$E$2="Shetland Islands Local Authority",Calculations!$E$2="Eilean Siar Local Authority"),"N/A", CONCATENATE(FIXED(Results!E26,0)," (",FIXED(Results!F26,2),"%)")) -> 56 (0.03%)
B11: Scotland | E11: *N.B. a positive figure indicates an improvement in health outcomes.
B13: Calculate health impact after this many years: | E13: POLICY IMPACT ON HEALTH INEQUALITIES**
B14: 2 | E14: Gap between most and least deprived | F14: Absolute | G14: Relative
E15: Hospital stays | F15: =CONCATENATE(FIXED(Results!E29,0)," (",FIXED(Results!F29,3),"%)") -> -6 (-0.044%) | G15: =CONCATENATE(FIXED(Results!E33,4)," (",FIXED(Results!F33,3),"%)") -> -0.0002 (-0.009%)
E16: Premature deaths | F16: =CONCATENATE(FIXED(Results!E30,0)," (",FIXED(Results!F30,3),"%)") -> 0 (-0.035%) | G16: =CONCATENATE(FIXED(Results!E34,4)," (",FIXED(Results!F34,3),"%)") -> -0.0003 (-0.008%)
E17: Years of life lost | F17: =CONCATENATE(FIXED(Results!E31,0)," (",FIXED(Results!F31,3),"%)") -> -4 (-0.035%) | G17: =CONCATENATE(FIXED(Results!E35,4)," (",FIXED(Results!F35,3),"%)") -> -0.0003 (-0.008%)
E18: Population-wide inequalities slope | F18: Absolute (SII) | G18: Relative (RII)
E19: Hospital stays | F19: =CONCATENATE(FIXED(Results!E37,0)," (",FIXED(Results!F37,3),"%)") -> -7 (-0.046%) | G19: =CONCATENATE(FIXED(Results!E41,4)," (",FIXED(Results!F41,3),"%)") -> -0.0002 (-0.022%)
E20: Premature deaths | F20: =CONCATENATE(FIXED(Results!E38,0)," (",FIXED(Results!F38,3),"%)") -> 0 (-0.037%) | G20: =CONCATENATE(FIXED(Results!E42,4)," (",FIXED(Results!F42,3),"%)") -> -0.0002 (-0.012%)
E21: Years of life lost | F21: =CONCATENATE(FIXED(Results!E39,0)," (",FIXED(Results!F39,3),"%)") -> -5 (-0.037%) | G21: =CONCATENATE(FIXED(Results!E43,4)," (",FIXED(Results!F43,3),"%)") -> -0.0002 (-0.012%)
E22: **N.B. Based on rates per 100,000. A negative figure indicates reduced inequalities / narrowing of the gap.
E24: SELECTED COSTS AND SAVINGS*** | G24: £
E25: Direct financial cost of the intervention (£)****: | G25: =Results!D50 -> 35178401.66
E26: Direct financial savings from reduced hospitalisations (£):
F27: Whole population | G27: =CONCATENATE(FIXED(Results!E54,0)," (",FIXED(Results!F54,3),"%)") -> 710,963 (0.025%)
F28: SIMD Q1 & Q2 | G28: =CONCATENATE(FIXED(Results!E55,0)," (",FIXED(Results!F55,3),"%)") -> 411,048 (0.030%)
F29: SIMD Q1 | G29: =IF(OR(Calculations!$E$2="Orkney Health Board",Calculations!$E$2="Orkney Islands Local Authority",Calculations!$E$2="Shetland Health Board",Calculations!$E$2="Western Isles Health Board",Calculations!$E$2="Shetland Islands Local Authority",Calculations!$E$2="Eilean Siar Local Authority"),"N/A", CONCATENATE(FIXED(Results!E56,0)," (",FIXED(Results!F56,3),"%)")) -> 235,057 (0.032%)
E30: ***Costs/savings from changes to other health outcomes and to health inequalities have not been estimated.
E31: ***This intervention is assumed to have one-off implementation costs.

Sheet Results
B2: Detailed results for intervention: | D2: =Options!B8 -> 20 mph speed limits (urban)
B4: Area of interest: | C4: =Options!B11 -> Scotland
B5: Age group: | C5: 16+ years
B6: Baseline year (prevalence and population data): | C6: 2016 | D6: Health impact calculated after: | E6: =CONCATENATE(Options!B14," years") -> 2 years
B8: Baseline situation (2016): | C8: Population (16+) | D8: No. all-cause hospital stays | E8: No. all-cause deaths | F8: No. premature all-cause deaths | G8: Years of life lost (all causes)
B9: Whole population | C9: =HLOOKUP(Calculations!$E$2,'Population 2016'!$C$3:$BC$17,'Population 2016'!$BD5,FALSE) -> 4488783 | D9: =HLOOKUP(Calculations!$E$2,'Health outcome totals 2016'!$C$3:$BC$17,'Health outcome totals 2016'!$BD6,FALSE) -> 1125093 | E9: =HLOOKUP(Calculations!$E$2,'Health outcome totals 2016'!$C$3:$BC$17,'Health outcome totals 2016'!$BD9,FALSE) -> 56725 | F9: =HLOOKUP(Calculations!$E$2,'Health outcome totals 2016'!$C$3:$BC$17,'Health outcome totals 2016'!$BD12,FALSE) -> 21313 | G9: =HLOOKUP(Calculations!$E$2,'Health outcome totals 2016'!$C$3:$BC$17,'Health outcome totals 2016'!$BD15,FALSE) -> 708624.0484
B10: Most deprived 40% (Q1 & Q2) | C10: =HLOOKUP(Calculations!$E$2,'Population 2016'!$C$3:$BC$17,'Population 2016'!$BD6,FALSE) -> 1769266 | D10: =HLOOKUP(Calculations!$E$2,'Health outcome totals 2016'!$C$3:$BC$17,'Health outcome totals 2016'!$BD8,FALSE) -> 534382 | E10: =HLOOKUP(Calculations!$E$2,'Health outcome totals 2016'!$C$3:$BC$17,'Health outcome totals 2016'!$BD11,FALSE) -> 26567 | F10: =HLOOKUP(Calculations!$E$2,'Health outcome totals 2016'!$C$3:$BC$17,'Health outcome totals 2016'!$BD14,FALSE) -> 11618 | G10: =HLOOKUP(Calculations!$E$2,'Health outcome totals 2016'!$C$3:$BC$17,'Health outcome totals 2016'!$BD17,FALSE) -> 372328.9705
B11: Most deprived 20% (Q1) | C11: =HLOOKUP(Calculations!$E$2,'Population 2016'!$C$3:$BC$17,'Population 2016'!$BD7,FALSE) -> 872234 | D11: =IF(OR(Calculations!$E$2="Orkney Health Board",Calculations!$E$2="Orkney Islands Local Authority",Calculations!$E$2="Shetland Health Board",Calculations!$E$2="Western Isles Health Board",Calculations!$E$2="Shetland Islands Local Authority",Calculations!$E$2="Eilean Siar Local Authority"),"N/A", HLOOKUP(Calculations!$E$2,'Health outcome totals 2016'!$C$3:$BC$17,'Health outcome totals 2016'!$BD7,FALSE)) -> 283718 | E11: =IF(OR(Calculations!$E$2="Orkney Health Board",Calculations!$E$2="Orkney Islands Local Authority",Calculations!$E$2="Shetland Health Board",Calculations!$E$2="Western Isles Health Board",Calculations!$E$2="Shetland Islands Local Authority",Calculations!$E$2="Eilean Siar Local Authority"),"N/A", HLOOKUP(Calculations!$E$2,'Health outcome totals 2016'!$C$3:$BC$17,'Health outcome totals 2016'!$BD10,FALSE)) -> 13665 | F11: =IF(OR(Calculations!$E$2="Orkney Health Board",Calculations!$E$2="Orkney Islands Local Authority",Calculations!$E$2="Shetland Health Board",Calculations!$E$2="Western Isles Health Board",Calculations!$E$2="Shetland Islands Local Authority",Calculations!$E$2="Eilean Siar Local Authority"),"N/A", HLOOKUP(Calculations!$E$2,'Health outcome totals 2016'!$C$3:$BC$17,'Health outcome totals 2016'!$BD13,FALSE)) -> 6443 | G11: =IF(OR(Calculations!$E$2="Orkney Health Board",Calculations!$E$2="Orkney Islands Local Authority",Calculations!$E$2="Shetland Health Board",Calculations!$E$2="Western Isles Health Board",Calculations!$E$2="Shetland Islands Local Authority",Calculations!$E$2="Eilean Siar Local Authority"),"N/A", HLOOKUP(Calculations!$E$2,'Health outcome totals 2016'!$C$3:$BC$17,'Health outcome totals 2016'!$BD16,FALSE)) -> 203545.7107
B13: Health impact | C13: Without intervention | D13: With intervention | E13: Difference | F13: Difference | G13: Interpretation | I13: Difference attributable to:
B14: HEALTH OUTCOMES | C14: n | D14: n | E14: n | F14: % | I14: RTAs | K14: PM2.5 | M14: NO2
B15: Hospital stays | F15: % prevented | I15: n | J15: % | K15: n | L15: % | M15: n | N15: %
B16: Whole population | C16: =Calculations!AO5 -> 1143855.727 | D16: =Calculations!AP5 -> 1143572.701 | E16: =C16-D16 -> 283.026789 | F16: =E16*100/C16 -> 0.02474322436 | G16: Hospital stays prevented | I16: =Calculations!O5-Calculations!P5 -> 255.7887387 | J16: =I16*100/E16 -> 90.37615823 | K16: =Calculations!X5-Calculations!Y5 -> 27.23805034 | L16: =K16*100/E16 -> 9.623841769 | M16: =Calculations!AG5-Calculations!AH5 -> 0 | N16: =M16*100/E16 -> 0
B17: Q1 & Q2 | C17: =Calculations!AO6 -> 542278.7308 | D17: =Calculations!AP6 -> 542115.0971 | E17: =C17-D17 -> 163.6337158 | F17: =E17*100/C17 -> 0.03017520446 | G17: (N.B. positive difference = | I17: =Calculations!O6-Calculations!P6 -> 147.5778401 | J17: =I17*100/E17 -> 90.18791721 | K17: =Calculations!X6-Calculations!Y6 -> 16.05587566 | L17: =K17*100/E17 -> 9.812082788 | M17: =Calculations!AG6-Calculations!AH6 -> -1.047737896e-09 | N17: =M17*100/E17 -> -6.40294631e-10
B18: Q1 | C18: =IF(OR(Calculations!$E$2="Orkney Health Board",Calculations!$E$2="Orkney Islands Local Authority",Calculations!$E$2="Shetland Health Board",Calculations!$E$2="Western Isles Health Board",Calculations!$E$2="Shetland Islands Local Authority",Calculations!$E$2="Eilean Siar Local Authority"),"N/A", Calculations!AO7) -> 288715.8401 | D18: =IF(OR(Calculations!$E$2="Orkney Health Board",Calculations!$E$2="Orkney Islands Local Authority",Calculations!$E$2="Shetland Health Board",Calculations!$E$2="Western Isles Health Board",Calculations!$E$2="Shetland Islands Local Authority",Calculations!$E$2="Eilean Siar Local Authority"),"N/A", Calculations!AP7) -> 288622.2664 | E18: =IF(OR(Calculations!$E$2="Orkney Health Board",Calculations!$E$2="Orkney Islands Local Authority",Calculations!$E$2="Shetland Health Board",Calculations!$E$2="Western Isles Health Board",Calculations!$E$2="Shetland Islands Local Authority",Calculations!$E$2="Eilean Siar Local Authority"),"N/A", C18-D18) -> 93.57361409 | F18: =IF(OR(Calculations!$E$2="Orkney Health Board",Calculations!$E$2="Orkney Islands Local Authority",Calculations!$E$2="Shetland Health Board",Calculations!$E$2="Western Isles Health Board",Calculations!$E$2="Shetland Islands Local Authority",Calculations!$E$2="Eilean Siar Local Authority"),"N/A", E18*100/C18) -> 0.03241028067 | G18: fewer stays) | I18: =IF(OR(Calculations!$E$2="Orkney Health Board",Calculations!$E$2="Orkney Islands Local Authority",Calculations!$E$2="Shetland Health Board",Calculations!$E$2="Western Isles Health Board",Calculations!$E$2="Shetland Islands Local Authority",Calculations!$E$2="Eilean Siar Local Authority"),"N/A", Calculations!O7-Calculations!P7) -> 84.00151488 | J18: =IF(OR(Calculations!$E$2="Orkney Health Board",Calculations!$E$2="Orkney Islands Local Authority",Calculations!$E$2="Shetland Health Board",Calculations!$E$2="Western Isles Health Board",Calculations!$E$2="Shetland Islands Local Authority",Calculations!$E$2="Eilean Siar Local Authority"),"N/A", I18*100/E18) -> 89.77051458 | K18: =IF(OR(Calculations!$E$2="Orkney Health Board",Calculations!$E$2="Orkney Islands Local Authority",Calculations!$E$2="Shetland Health Board",Calculations!$E$2="Western Isles Health Board",Calculations!$E$2="Shetland Islands Local Authority",Calculations!$E$2="Eilean Siar Local Authority"),"N/A", Calculations!X7-Calculations!Y7) -> 9.572099208 | L18: =IF(OR(Calculations!$E$2="Orkney Health Board",Calculations!$E$2="Orkney Islands Local Authority",Calculations!$E$2="Shetland Health Board",Calculations!$E$2="Western Isles Health Board",Calculations!$E$2="Shetland Islands Local Authority",Calculations!$E$2="Eilean Siar Local Authority"),"N/A", K18*100/E18) -> 10.22948542 | M18: =IF(OR(Calculations!$E$2="Orkney Health Board",Calculations!$E$2="Orkney Islands Local Authority",Calculations!$E$2="Shetland Health Board",Calculations!$E$2="Western Isles Health Board",Calculations!$E$2="Shetland Islands Local Authority",Calculations!$E$2="Eilean Siar Local Authority"),"N/A", Calculations!AG7-Calculations!AH7) -> 0 | N18: =IF(OR(Calculations!$E$2="Orkney Health Board",Calculations!$E$2="Orkney Islands Local Authority",Calculations!$E$2="Shetland Health Board",Calculations!$E$2="Western Isles Health Board",Calculations!$E$2="Shetland Islands Local Authority",Calculations!$E$2="Eilean Siar Local Authority"),"N/A", M18*100/E18) -> 0
B19: Premature deaths (<75 years) | F19: % prevented
B20: Whole population | C20: =Calculations!AQ5 -> 21625.30398 | D20: =Calculations!AR5 -> 21620.06559 | E20: =C20-D20 -> 5.238384594 | F20: =E20*100/C20 -> 0.02422340328 | G20: Premature deaths prevented | I20: =Calculations!Q5-Calculations!R5 -> 4.849403705 | J20: 92.5744114 | K20: =Calculations!Z5-Calculations!AA5 -> 0.2664907 | L20: 5.087268703 | M20: =Calculations!AI5-Calculations!AJ5 -> 0.122490189 | N20: 2.338319892
B21: Q1 & Q2 | C21: =Calculations!AQ6 -> 11406.447 | D21: =Calculations!AR6 -> 11403.12241 | E21: =C21-D21 -> 3.324586957 | F21: =E21*100/C21 -> 0.02914656034 | G21: (N.B. positive difference = | I21: =Calculations!Q6-Calculations!R6 -> 3.069041275 | J21: 92.31346073 | K21: =Calculations!Z6-Calculations!AA6 -> 0.174132455 | L21: 5.237716963 | M21: =Calculations!AI6-Calculations!AJ6 -> 0.081413227 | N21: 2.448822306
B22: Q1 | C22: =IF(OR(Calculations!$E$2="Orkney Health Board",Calculations!$E$2="Orkney Islands Local Authority",Calculations!$E$2="Shetland Health Board",Calculations!$E$2="Western Isles Health Board",Calculations!$E$2="Shetland Islands Local Authority",Calculations!$E$2="Eilean Siar Local Authority"),"N/A", Calculations!AQ7) -> 6424.777456 | D22: =IF(OR(Calculations!$E$2="Orkney Health Board",Calculations!$E$2="Orkney Islands Local Authority",Calculations!$E$2="Shetland Health Board",Calculations!$E$2="Western Isles Health Board",Calculations!$E$2="Shetland Islands Local Authority",Calculations!$E$2="Eilean Siar Local Authority"),"N/A", Calculations!AR7) -> 6422.772348 | E22: =IF(OR(Calculations!$E$2="Orkney Health Board",Calculations!$E$2="Orkney Islands Local Authority",Calculations!$E$2="Shetland Health Board",Calculations!$E$2="Western Isles Health Board",Calculations!$E$2="Shetland Islands Local Authority",Calculations!$E$2="Eilean Siar Local Authority"),"N/A", C22-D22) -> 2.005108322 | F22: =IF(OR(Calculations!$E$2="Orkney Health Board",Calculations!$E$2="Orkney Islands Local Authority",Calculations!$E$2="Shetland Health Board",Calculations!$E$2="Western Isles Health Board",Calculations!$E$2="Shetland Islands Local Authority",Calculations!$E$2="Eilean Siar Local Authority"),"N/A", E22*100/C22) -> 0.03120899262 | G22: fewer premature deaths) | I22: =IF(OR(Calculations!$E$2="Orkney Health Board",Calculations!$E$2="Orkney Islands Local Authority",Calculations!$E$2="Shetland Health Board",Calculations!$E$2="Western Isles Health Board",Calculations!$E$2="Shetland Islands Local Authority",Calculations!$E$2="Eilean Siar Local Authority"),"N/A", Calculations!Q7-Calculations!R7) -> 1.843235583 | J22: =IF(OR(Calculations!$E$2="Orkney Health Board",Calculations!$E$2="Orkney Islands Local Authority",Calculations!$E$2="Shetland Health Board",Calculations!$E$2="Western Isles Health Board",Calculations!$E$2="Shetland Islands Local Authority",Calculations!$E$2="Eilean Siar Local Authority"),"N/A", I22*100/E22) -> 91.92698284 | K22: =IF(OR(Calculations!$E$2="Orkney Health Board",Calculations!$E$2="Orkney Islands Local Authority",Calculations!$E$2="Shetland Health Board",Calculations!$E$2="Western Isles Health Board",Calculations!$E$2="Shetland Islands Local Authority",Calculations!$E$2="Eilean Siar Local Authority"),"N/A", Calculations!Z7-Calculations!AA7) -> 0.109801221 | L22: =IF(OR(Calculations!$E$2="Orkney Health Board",Calculations!$E$2="Orkney Islands Local Authority",Calculations!$E$2="Shetland Health Board",Calculations!$E$2="Western Isles Health Board",Calculations!$E$2="Shetland Islands Local Authority",Calculations!$E$2="Eilean Siar Local Authority"),"N/A", K22*100/E22) -> 5.476074275 | M22: =IF(OR(Calculations!$E$2="Orkney Health Board",Calculations!$E$2="Orkney Islands Local Authority",Calculations!$E$2="Shetland Health Board",Calculations!$E$2="Western Isles Health Board",Calculations!$E$2="Shetland Islands Local Authority",Calculations!$E$2="Eilean Siar Local Authority"),"N/A", Calculations!AI7-Calculations!AJ7) -> 0.052071518 | N22: =IF(OR(Calculations!$E$2="Orkney Health Board",Calculations!$E$2="Orkney Islands Local Authority",Calculations!$E$2="Shetland Health Board",Calculations!$E$2="Western Isles Health Board",Calculations!$E$2="Shetland Islands Local Authority",Calculations!$E$2="Eilean Siar Local Authority"),"N/A", M22*100/E22) -> 2.59694289
B23: Years of life lost | F23: % saved
B24: Whole population | C24: =Calculations!AM5 -> 595692.7873 | D24: =Calculations!AN5 -> 595547.2163 | E24: =C24-D24 -> 145.571094 | F24: =E24*100/C24 -> 0.02443727658 | G24: Years of life saved | I24: =Calculations!M5-Calculations!N5 -> 134.5961184 | J24: 92.4607453 | K24: =Calculations!V5-Calculations!W5 -> 7.52321869 | L24: 5.168071823 | M24: =Calculations!AE5-Calculations!AF5 -> 3.45175686 | N24: 2.371182881
B25: Q1 & Q2 | C25: =Calculations!AM6 -> 318079.1264 | D25: =Calculations!AN6 -> 317986.2269 | E25: =C25-D25 -> 92.89956687 | F25: =E25*100/C25 -> 0.02920643297 | G25: (N.B. positive difference = | I25: =Calculations!M6-Calculations!N6 -> 85.67573944 | J25: 92.22404617 | K25: =Calculations!V6-Calculations!W6 -> 4.924886414 | L25: 5.301301804 | M25: =Calculations!AE6-Calculations!AF6 -> 2.298941015 | N25: 2.474652028
B26: Q1 | C26: =IF(OR(Calculations!$E$2="Orkney Health Board",Calculations!$E$2="Orkney Islands Local Authority",Calculations!$E$2="Shetland Health Board",Calculations!$E$2="Western Isles Health Board",Calculations!$E$2="Shetland Islands Local Authority",Calculations!$E$2="Eilean Siar Local Authority"),"N/A", Calculations!AM7) -> 179614.5327 | D26: =IF(OR(Calculations!$E$2="Orkney Health Board",Calculations!$E$2="Orkney Islands Local Authority",Calculations!$E$2="Shetland Health Board",Calculations!$E$2="Western Isles Health Board",Calculations!$E$2="Shetland Islands Local Authority",Calculations!$E$2="Eilean Siar Local Authority"),"N/A", Calculations!AN7) -> 179558.5367 | E26: =IF(OR(Calculations!$E$2="Orkney Health Board",Calculations!$E$2="Orkney Islands Local Authority",Calculations!$E$2="Shetland Health Board",Calculations!$E$2="Western Isles Health Board",Calculations!$E$2="Shetland Islands Local Authority",Calculations!$E$2="Eilean Siar Local Authority"),"N/A", C26-D26) -> 55.99604453 | F26: =IF(OR(Calculations!$E$2="Orkney Health Board",Calculations!$E$2="Orkney Islands Local Authority",Calculations!$E$2="Shetland Health Board",Calculations!$E$2="Western Isles Health Board",Calculations!$E$2="Shetland Islands Local Authority",Calculations!$E$2="Eilean Siar Local Authority"),"N/A", E26*100/C26) -> 0.03117567586 | G26: years of life saved) | I26: =IF(OR(Calculations!$E$2="Orkney Health Board",Calculations!$E$2="Orkney Islands Local Authority",Calculations!$E$2="Shetland Health Board",Calculations!$E$2="Western Isles Health Board",Calculations!$E$2="Shetland Islands Local Authority",Calculations!$E$2="Eilean Siar Local Authority"),"N/A", Calculations!M7-Calculations!N7) -> 51.43105469 | J26: =IF(OR(Calculations!$E$2="Orkney Health Board",Calculations!$E$2="Orkney Islands Local Authority",Calculations!$E$2="Shetland Health Board",Calculations!$E$2="Western Isles Health Board",Calculations!$E$2="Shetland Islands Local Authority",Calculations!$E$2="Eilean Siar Local Authority"),"N/A", I26*100/E26) -> 91.84765661 | K26: =IF(OR(Calculations!$E$2="Orkney Health Board",Calculations!$E$2="Orkney Islands Local Authority",Calculations!$E$2="Shetland Health Board",Calculations!$E$2="Western Isles Health Board",Calculations!$E$2="Shetland Islands Local Authority",Calculations!$E$2="Eilean Siar Local Authority"),"N/A", Calculations!V7-Calculations!W7) -> 3.097498544 | L26: =IF(OR(Calculations!$E$2="Orkney Health Board",Calculations!$E$2="Orkney Islands Local Authority",Calculations!$E$2="Shetland Health Board",Calculations!$E$2="Western Isles Health Board",Calculations!$E$2="Shetland Islands Local Authority",Calculations!$E$2="Eilean Siar Local Authority"),"N/A", K26*100/E26) -> 5.531638119 | M26: =IF(OR(Calculations!$E$2="Orkney Health Board",Calculations!$E$2="Orkney Islands Local Authority",Calculations!$E$2="Shetland Health Board",Calculations!$E$2="Western Isles Health Board",Calculations!$E$2="Shetland Islands Local Authority",Calculations!$E$2="Eilean Siar Local Authority"),"N/A", Calculations!AE7-Calculations!AF7) -> 1.467491293 | N26: =IF(OR(Calculations!$E$2="Orkney Health Board",Calculations!$E$2="Orkney Islands Local Authority",Calculations!$E$2="Shetland Health Board",Calculations!$E$2="Western Isles Health Board",Calculations!$E$2="Shetland Islands Local Authority",Calculations!$E$2="Eilean Siar Local Authority"),"N/A", M26*100/E26) -> 2.620705276
B27: HEALTH INEQUALITIES | C27: rate* | D27: rate* | E27: rate* | F27: %
B28: Absolute gap (Q1 minus Q5**) | F28: % increase
B29: Hospital stays | C29: =Inequalities!H17 -> 13347.3262 | D29: =Inequalities!J17 -> 13341.49695 | E29: =D29-C29 -> -5.829250129 | F29: =E29*100/C29 -> -0.04367354213 | G29: Change in the absolute gap
B30: Premature deaths | C30: =Inequalities!N17 -> 453.5705587 | D30: =Inequalities!P17 -> 453.4102831 | E30: =D30-C30 -> -0.1602755392 | F30: =E30*100/C30 -> -0.03533640712 | G30: (N.B. negative = narrower gap)
B31: YLL | C31: =Inequalities!T17 -> 12492.98266 | D31: =Inequalities!V17 -> 12488.57105 | E31: =D31-C31 -> -4.411613159 | F31: =E31*100/C31 -> -0.03531272938
B32: Relative gap Q1 to Q5** | F32: % increase
B33: Hospital stays | C33: =Inequalities!H18 -> 1.813617171 | D33: =Inequalities!J18 -> 1.813449941 | E33: =D33-C33 -> -0.0001672302407 | F33: =E33*100/C33 -> -0.009220812604 | G33: Change in the relative gap
B34: Premature deaths | C34: =Inequalities!N18 -> 3.004909375 | D34: =Inequalities!P18 -> 3.004657108 | E34: =D34-C34 -> -0.000252267757 | F34: =E34*100/C34 -> -0.00839518686 | G34: (N.B. negative = narrower gap)
B35: YLL | C35: =Inequalities!T18 -> 2.992640171 | D35: =Inequalities!V18 -> 2.992387056 | E35: =D35-C35 -> -0.0002531157434 | F35: =E35*100/C35 -> -0.008457941111
B36: Slope Index of Inequality (SII) | F36: % increase
B37: Hospital stays | C37: =Inequalities!H15 -> 16090.34056 | D37: =Inequalities!J15 -> 16082.85931 | E37: =D37-C37 -> -7.481249212 | F37: =E37*100/C37 -> -0.04649528197 | G37: Change in absolute inequalities
B38: Premature deaths | C38: =Inequalities!N15 -> 534.2927283 | D38: =Inequalities!P15 -> 534.0967243 | E38: =D38-C38 -> -0.1960039864 | F38: =E38*100/C38 -> -0.0366847565 | G38: (N.B. negative = decreased inequalities)
B39: YLL | C39: =Inequalities!T15 -> 14719.14525 | D39: =Inequalities!V15 -> 14713.74832 | E39: =D39-C39 -> -5.396938126 | F39: =E39*100/C39 -> -0.03666611092
B40: Relative Index of Inequality (RII) | F40: % increase
B41: Hospital stays | C41: =Inequalities!H16 -> 0.7333895263 | D41: =Inequalities!J16 -> 0.7332314086 | E41: =D41-C41 -> -0.0001581176268 | F41: =E41*100/C41 -> -0.0215598425 | G41: Change in relative inequalities
B42: Premature deaths | C42: =Inequalities!N16 -> 1.28602402 | D42: =Inequalities!P16 -> 1.285868358 | E42: =D42-C42 -> -0.0001556617118 | F42: =E42*100/C42 -> -0.01210410609 | G42: (N.B. negative = decreased inequalities)
B43: YLL | C43: =Inequalities!T16 -> 1.281270996 | D43: =Inequalities!V16 -> 1.281117361 | E43: =D43-C43 -> -0.0001536345095 | F43: =E43*100/C43 -> -0.01199078961
B45: * European age-standardised rate per 100,000
B46: ** or the most and least deprived quintiles in the area
B48: Economic impact | C48: Without intervention | D48: With intervention | E48: Difference | F48: Difference | G48: Interpretation
C49: £ | D49: £ | E49: £
B50: Direct financial cost: | C50: 0 | D50: =Evidence!D174 -> 35178401.66 | E50: =D50-C50 -> 35178401.66 | G50: Positive difference = net cost incurred
B52: Direct financial savings: | C52: £ | D52: £ | E52: £ | F52: % saved
B53: Hospital stays
B54: Whole population | C54: =Evidence!$D$181*Results!C16 -> 2873365587 | D54: =Evidence!$D$181*Results!D16 -> 2872654624 | E54: =C54-D54 -> 710963.294 | F54: =E54*100/C54 -> 0.02474322436 | G54: Reduction in hospital stay costs
B55: Q1 & Q2 | C55: =Evidence!$D$181*Results!C17 -> 1362204172 | D55: =Evidence!$D$181*Results!D17 -> 1361793124 | E55: =C55-D55 -> 411047.894 | F55: =E55*100/C55 -> 0.03017520446 | G55: (N.B. positive difference =
B56: Q1 | C56: =IF(OR(Calculations!$E$2="Orkney Health Board",Calculations!$E$2="Orkney Islands Local Authority",Calculations!$E$2="Shetland Health Board",Calculations!$E$2="Western Isles Health Board",Calculations!$E$2="Shetland Islands Local Authority",Calculations!$E$2="Eilean Siar Local Authority"),"N/A", Evidence!$D$181*Results!C18) -> 725254190.2 | D56: =IF(OR(Calculations!$E$2="Orkney Health Board",Calculations!$E$2="Orkney Islands Local Authority",Calculations!$E$2="Shetland Health Board",Calculations!$E$2="Western Isles Health Board",Calculations!$E$2="Shetland Islands Local Authority",Calculations!$E$2="Eilean Siar Local Authority"),"N/A", Evidence!$D$181*Results!D18) -> 725019133.3 | E56: =IF(OR(Calculations!$E$2="Orkney Health Board",Calculations!$E$2="Orkney Islands Local Authority",Calculations!$E$2="Shetland Health Board",Calculations!$E$2="Western Isles Health Board",Calculations!$E$2="Shetland Islands Local Authority",Calculations!$E$2="Eilean Siar Local Authority"),"N/A", C56-D56) -> 235056.9186 | F56: =IF(OR(Calculations!$E$2="Orkney Health Board",Calculations!$E$2="Orkney Islands Local Authority",Calculations!$E$2="Shetland Health Board",Calculations!$E$2="Western Isles Health Board",Calculations!$E$2="Shetland Islands Local Authority",Calculations!$E$2="Eilean Siar Local Authority"),"N/A", E56*100/C56) -> 0.03241028067 | G56: money saved)
B57: Premature deaths (<75 years) | E57: Savings not estimated
B58: Years of life lost | E58: Savings not estimated
B59: Inequalities | E59: Savings not estimated

Sheet Evidence
B2: The intervention
B4: 20 mph speed limits (without physical traffic calming) applied to all roads called 'Local Streets' or 'Minor Roads' within urban settlements in Scotland.
B5: ● This intervention was recommended in the NICE (2017) guideline ‘Air pollution: Outdoor air quality and health’.
B6: ● 'Major roads' were not included so that a connected network of 30 mph and 40 mph roads would be retained (as in City of Edinburgh Council's city-wide 20 mph
B7: scheme that began in 2016).
B8: ● The road types were identified from Ordnance Survey's MasterMap ITN RoadLink shapefile (2017).
B9: ● Urban settlements were identified using National Records of Scotland classification (2016).
B11: Prevalence of exposure
B13: The entire Scottish population is exposed to the baseline levels of air pollution and accident risk in the absence of the intervention, therefore the Population At Risk
B14: (PAR) includes everyone.
B16: Exposure Rate Ratios (ERR)
B18: Because everyone is exposed to accident risk and air pollution at baseline the ERR = 1.0 for mortality and for hospitalisation at baseline.
B20: Intervention Rate Ratios (IRR) for 20 mph limits
B22: 1. Reduced risk of road traffic accidents (RTAs)
B23: The accident risk reduction depends on average speeds before and after the intervention, according to Elvik's power model (Elvik, 2009).
B24: Evaluations of 20 mph schemes without physical traffic calming in the UK have found average before and after speeds of 22.7 mph and 21.4 mph (Turley 2013,
B25: Atkins 2010, Bristol City Council 2012, Cross River Partnership 2017).
B26: Elvik's power model states that
B30: where exponent = 3 for fatal casualties and 2 for serious casualties.
B31: Applying the power model to the average before and after speeds gives an fatal accident ratio of 0.8378. This means a 16.22% decrease in fatal casualties.
B32: Similarly we found a serious accident ratio of 0.8887, meaning an 11.13% reduction in numbers of serious accident casualties (which we assumed equate
B33: to hospitalisations). To translate these effects into effects on rates of all-cause deaths and hospitalisations we calculated the effect of this rate reduction on
B34: standardised RTA and then all-cause rates. The risk reduction for RTA deaths (0.8378) was applied to the European Age-Standardised Rate (EASR) for RTAs in
B35: Scottish urban settlements (2.6523 per 100,000, 2012-2016 average, calculated from NRS data) to give a reduction of 0.4302 per 100,000. This was subtracted from
B36: the all-cause mortality EASR for urban settlements (982.5579 per 100,000, 2012-2016) to give a post-intervention all-cause EASR of 982.1277 per 100,000.
B37: The Intervention Rate Ratio we used for all-cause mortality was then calculated as 982.1277/982.5579 = 0.9996
B39: Similarly, the risk reduction for serious RTA casualties (0.8887) was applied to the European Age-Standardised Rate (EASR) for RTAs in Scotland (13.5578 per
B40: 100,000, 2014-2016 average, calculated from ISD data) to give a reduction of 1.5090 per 100,000. This was subtracted from the all-cause hospitalisation EASR
B41: for Scotland (3871.8050 per 100,000, 2014-2016) to give a post-intervention all-cause EASR of 3870.2960 per 100,000. The Intervention Rate Ratio we used for
B42: all-cause hospitalisation was then calculated as 3870.2960/3871.8050 = 0.9996
B44: 2. Reduced exposure to air pollution
B45: A modelling study (with on-the-ground validation) assessed how emissions of petrol and diesel vehicles differed between 20 mph and 30 mph streets without traffic
B46: calming (Transport and Environmental Analysis Group, 2013). Results (below) were available for Nitrogen Oxides (NOx) and Particulate Matter with a
B47: diameter < 10 micrometres (PM10).
C49: % change in emissions
C50: NOx | D50: PM10 | E50: Quoted/calculated?
B51: Petrol cars | C51: 7.9 | D51: -8.3 | E51: Quoted
B52: Diesel cars | C52: -8.2 | D52: -8.3 | E52: Quoted
B54: To calculate % change in emissions due to the intervention we applied these figures to the fleet composition in urban Scotland in 2016, according to National
B55: Atmospheric Emissions Inventory (2016). Fleet composition (miles travelled in urban environments) in Scotland in 2016: 46.1355% petrol and 53.8645% diesel.
B56: The fleet composition calculation includes petrol cars and LGVs as 'petrol', and diesel cars, diesel LGVs, HGVs and Public Service Vehicles as 'diesel'.
B57: Applying the TEAG (2013) changes in emissions to the Scottish fleet composition gives predicted changes of -0.7722% for NOx and -8.300% for PM10:
C58: NOx | D58: (7.9*0.461355) + (-8.2*0.538645) = | F58: -0.7722
C59: PM10 | D59: (-8.3*0.461355) + (-8.3*0.538645) = | F59: -8.3
B61: Estimating the reduction in pollution by area, sex, age group and SIMD quintile subgroups:
B62: We calculated the average annual concentrations of PM10 and NOx experienced by the population of the urban settlements in each area, at baseline (2016).
B63: DEFRA air quality maps (1 km x 1 km gridded data, by source) were downloaded for PM10 and NOx in Scotland for 2016 (projections based on 2015 data;
B64: source: https://uk-air.defra.gov.uk/data/laqm-background-home). Each postcode in Scotland was given the concentration of NOx/PM10 from minor roads for the grid
B65: cell it was in (as only pollution from minor roads would be affected by the 20 mph scheme). Each datazone was then given the average pollutant concentration for the
B66: postcodes within it, to reflect average pollution levels where the population of the datazone lived (instead of an average for the whole datazone area). We calculated
B67: population-weighted average pollutant concentrations for each subgroup (sex, age group and SIMD quintile) in each area using population data for each datazone.
B68: The predicted reduction in PM10 and NOx was calculated for each subgroup and area using the predicted changes calculated above (-0.7722% for NOx and
B69: -8.300% for PM10).
B71: Rate ratios for health outcomes (see below) were available for Nitrogen Dioxide (NO2) and Particulate Matter with a diameter < 2.5 micrometres (PM2.5).
B72: We converted the change in NOx to an estimated change in NO2 by multiplying by a factor of 0.275 (DEFRA 2017, data for UK).
B73: We converted the change in PM10 to an estimated change in PM2.5 by multiplying by a factor of 0.630 (Ricardo 2016, data for Scotland).
B75: The risk functions we identified were linear, with no threshold below which no effects are expected:
B77: Health outcome | C77: Exposure | D77: Rate Ratio per 10 μg.m-3 increase | E77: Regression coefficient used to produce Rate Ratio (=(ln(Rate Ratio))/10) | F77: Source | G77: Quoted/calculated? | H77: Comments
B78: All-cause mortality | C78: PM2.5 | D78: 1.062 | E78: 0.006015392282 | F78: Hoek et al 2013 | G78: Quoted | H78: Meta-analysis. Recommended by WHO 2013.
B79: All-cause hospitalisation | C79: PM2.5 | D79: 1.12 | E79: 0.01133286853 | F79: Makar et al 2017 | G79: Quoted | H79: Single study of 32,119 over-65 year olds. No other evidence identified.
B80: All-cause mortality | C80: NO2 | D80: 1.025 | E80: 0.002469261259 | F80: COMEAP 2015 | G80: Quoted | H80: Meta-analysis. COMEAP recommends reducing by 33% (to 1.017) to account for possible overlap with PM effects.
B81: All-cause hospitalisation | C81: NO2 | D81: - | E81: - | F81: - | H81: No studies identified. Studies of short-term exposure effects not applicable.
B83: N.B. the NO2 coefficient was reduced by 33% (to 0.0017) in the modelling to take account of double-counting of effects associated with PM2.5, as recommended by
B84: COMEAP (2016) and WHO (2013).
B86: Each regression coefficient was then applied to the predicted reduction in the relevant pollutant for each subgroup (by age group, sex, SIMD and area) to produce the
B87: air pollution IRR for that pollutant. The calculation was:
B88: IRR = | C88: e((coefficient per 1 ug.m-3 increase in pollutant)*-1*(predicted reduction in pollutant))
B89: For example, 16-19 year old females in SIMD Q1 in Scotland were predicted to experience a 0.0067 ug.m-3 reduction in NO2 as a result of the intervention. This equates
B90: to an all-cause mortality IRR of:
B91: IRR = | C91: e(0.002469261*0.67*-1*0.0067)) = | E91: =EXP(0.002469261*0.67*-1*0.0067) -> 0.9999889155
B93: The effects of the intervention due to reductions in RTA rates and changes in PM2.5 and NO2 concentrations were considered additive.
B96: Change in intervention effect over time
B98: The intervention effect was assumed constant over time.
B101: Treated population
B103: The treated population is defined as the 2016 population of datazones within Scotland's urban settlements, because residents of rural locations are much less likely to
B104: be affected by the 20 mph scheme. The treated population figures used in the model were the number of people in each subgroup (age group, sex, and SIMD quintile)
B105: that lived in urban settlements in each area. The table below provides a summary of the treated population (as % total population) by SIMD and local area only.
B106: N.B. The figures for the local authority areas of City of Edinburgh, Fife, and Clackmannanshire have been set to zero because these LAs have already implemented
B107: 20 mph schemes on most or all of their residential urban streets. The populations of these local authorities have been subtracted from the relevant aggregate
B108: geographies (health boards, city regions, IJBs and whole Scotland) The figures could be further improved by removing a % for those areas that have implemented 20 mph
B109: limits on some but not all of their roads, but required data collection and calculation of correction factors was not possible in the timeframe of this study.
C111: % population able to be treated (i.e., living in urban settlements), by local area and SIMD quintile
B112: Area | C112: Q1 (most deprived) | D112: Q2 | E112: Q3 | F112: Q4 | G112: Q5 (least deprived) | H112: total
B113: Scotland | C113: 85.64720018 | D113: 75.42205852 | E113: 56.64245169 | F113: 49.36461893 | G113: 73.5216437 | H113: 67.94175615
B114: Ayrshire & Arran Health Board | C114: 73.88594207 | D114: 58.87558217 | E114: 57.80938728 | F114: 58.25888404 | G114: 65.34291718 | H114: 63.98303573
B115: Borders Health Board | C115: 67.59385334 | D115: 58.94001165 | E115: 46.48160305 | F115: 26.0249868 | G115: 61.00373008 | H115: 43.67619965
B116: Dumfries & Galloway Health Board | C116: 64.74358974 | D116: 37.50431481 | E116: 23.93987848 | F116: 34.48577298 | G116: 64.74415333 | H116: 36.52327927
B117: Fife Health Board | C117: 0 | D117: 0 | E117: 0 | F117: 0 | G117: 0 | H117: 0
B118: Forth Valley Health Board | C118: 82.86066584 | D118: 79.72849627 | E118: 62.92117362 | F118: 57.58515647 | G118: 69.91039056 | H118: 70.3613615
B119: Grampian Health Board | C119: 74.7199691 | D119: 78.3729695 | E119: 52.67131668 | F119: 37.55924254 | G119: 61.84247044 | H119: 55.87197937
B120: Greater Glasgow & Clyde Health Board | C120: 86.91934318 | D120: 86.14971259 | E120: 81.86307486 | F120: 72.89379184 | G120: 79.16801616 | H120: 82.65218102
B121: Highland Health Board | C121: 54.46808511 | D121: 41.13159827 | E121: 16.14807792 | F121: 20.46959078 | G121: 45.86190953 | H121: 27.54884811
B122: Lanarkshire Health Board | C122: 90.26504634 | D122: 83.60793681 | E122: 72.55773172 | F122: 64.16161751 | G122: 76.52395665 | H122: 79.19656707
B123: Lothian Health Board | C123: 95.21817364 | D123: 83.68918189 | E123: 73.2372639 | F123: 65.1994134 | G123: 87.37579231 | H123: 80.99366196
B124: Orkney Health Board | C124: N/A | D124: 41.21491734 | E124: 33.73955432 | F124: 15.47204825 | G124: 0 | H124: 23.69368387
B125: Shetland Health Board | C125: N/A | D125: 0 | E125: 0 | F125: 15.1194511 | G125: N/A | H125: 9.64306427
B126: Tayside Health Board | C126: 96.71515388 | D126: 78.17549675 | E126: 49.81732877 | F126: 38.05477057 | G126: 73.30557756 | H126: 62.63871231
B127: Western Isles Health Board | C127: N/A | D127: 9.42562592 | E127: 7.697642164 | F127: 0 | G127: N/A | H127: 7.670517417
B128: Aberdeen City Local Authority | C128: 84.82108748 | D128: 93.65796436 | E128: 78.93820999 | F128: 82.88981289 | G128: 76.20292266 | H128: 82.0457647
B129: Aberdeenshire Local Authority | C129: 34.75177305 | D129: 41.29142927 | E129: 38.77375387 | F129: 27.84476749 | G129: 52.12819021 | H129: 39.43389947
B130: Angus Local Authority | C130: 82.19279976 | D130: 61.29150391 | E130: 43.72826121 | F130: 46.022151 | G130: 65.92750043 | H130: 53.91913469
B131: Argyll & Bute Local Authority | C131: 69.5998518 | D131: 31.19185114 | E131: 7.621770854 | F131: 8.403966539 | G131: 36.73334216 | H131: 19.29166892
B132: Clackmannanshire Local Authority | C132: 0 | D132: 0 | E132: 0 | F132: 0 | G132: 0 | H132: 0
B133: Dumfries & Galloway Local Authority | C133: 64.74358974 | D133: 37.50431481 | E133: 23.93987848 | F133: 34.48577298 | G133: 64.74415333 | H133: 36.52327927
B134: Dundee City Local Authority | C134: 98.47560268 | D134: 90.85909273 | E134: 88.11307687 | F134: 58.31517456 | G134: 84.36708861 | H134: 86.51594184
B135: East Ayrshire Local Authority | C135: 71.3371945 | D135: 64.73487677 | E135: 62.83930821 | F135: 55.07214532 | G135: 88.51316469 | H135: 67.89312569
B136: East Dunbartonshire Local Authority | C136: 100 | D136: 65.40803898 | E136: 48.51430668 | F136: 59.51359961 | G136: 79.51787164 | H136: 72.53803674
B137: East Lothian Local Authority | C137: 52.51798561 | D137: 59.26295253 | E137: 41.97040583 | F137: 32.38884702 | G137: 76.93554068 | H137: 49.86310384
B138: East Renfrewshire Local Authority | C138: 100 | D138: 90.56881816 | E138: 92.39078253 | F138: 59.26946321 | G138: 80.004561 | H138: 80.53840422
B139: Edinburgh, City of Local Authority | C139: 0 | D139: 0 | E139: 0 | F139: 0 | G139: 0 | H139: 0
B140: Eilean Siar Local Authority | C140: N/A | D140: 9.42562592 | E140: 7.697642164 | F140: 0 | G140: N/A | H140: 7.670517417
B141: Falkirk Local Authority | C141: 86.56128558 | D141: 84.73117707 | E141: 72.5410684 | F141: 67.53945481 | G141: 78.81759708 | H141: 78.31950603
B142: Fife Local Authority | C142: 0 | D142: 0 | E142: 0 | F142: 0 | G142: 0 | H142: 0
B143: Glasgow City Local Authority | C143: 88.65706717 | D143: 90.48174641 | E143: 88.34875078 | F143: 84.55193348 | G143: 92.20568845 | H143: 88.81999601
B144: Highland Local Authority | C144: 48.2646009 | D144: 44.52133479 | E144: 20.3061388 | F144: 23.85804966 | G144: 49.6060853 | H144: 30.68101315
B145: Inverclyde Local Authority | C145: 76.36449071 | D145: 77.04358068 | E145: 74.2717983 | F145: 45.2610888 | G145: 34.14359103 | H145: 65.55067939
B146: Midlothian Local Authority | C146: 100 | D146: 73.31426556 | E146: 52.20904855 | F146: 47.11919337 | G146: 57.87191762 | H146: 64.5163539
B147: Moray Local Authority | C147: 100 | D147: 77.7823817 | E147: 43.53805916 | F147: 12.14738432 | G147: 34.63486703 | H147: 35.57572634
B148: North Ayrshire Local Authority | C148: 75.46792335 | D148: 64.50226044 | E148: 58.85675692 | F148: 54.80440562 | G148: 53.78239329 | H148: 65.47861868
B149: North Lanarkshire Local Authority | C149: 90.38957419 | D149: 84.75316732 | E149: 76.85209228 | F149: 67.0637045 | G149: 78.82890164 | H149: 82.15334799
B150: Orkney Islands Local Authority | C150: N/A | D150: 41.21491734 | E150: 33.73955432 | F150: 15.47204825 | G150: 0 | H150: 23.69368387
B151: Perth & Kinross Local Authority | C151: 100 | D151: 75.40972076 | E151: 36.11690332 | F151: 25.91072935 | G151: 69.76480836 | H151: 45.80077041
B152: Renfrewshire Local Authority | C152: 88.28403813 | D152: 93.98334875 | E152: 77.18798151 | F152: 76.29337051 | G152: 67.32299958 | H152: 81.47435195
B153: Scottish Borders Local Authority | C153: 67.59385334 | D153: 58.94001165 | E153: 46.48160305 | F153: 26.0249868 | G153: 61.00373008 | H153: 43.67619965
B154: Shetland Islands Local Authority | C154: N/A | D154: 0 | E154: 0 | F154: 15.1194511 | G154: N/A | H154: 9.64306427
B155: South Ayrshire Local Authority | C155: 74.43832395 | D155: 47.8766274 | E155: 52.55485422 | F155: 66.48752399 | G155: 57.85504606 | H155: 58.03505438
B156: South Lanarkshire Local Authority | C156: 90.0610719 | D156: 82.32621013 | E156: 68.37807889 | F156: 62.08691326 | G156: 74.95813545 | H156: 76.08342486
B157: Stirling Local Authority | C157: 79.50348168 | D157: 73.0802194 | E157: 49.24548849 | F157: 46.8889095 | G157: 66.23382459 | H157: 60.81245128
B158: West Dunbartonshire Local Authority | C158: 76.43714915 | D158: 74.57703996 | E158: 65.69285084 | F158: 62.56106434 | G158: 53.65853659 | H158: 71.53152667
B159: West Lothian Local Authority | C159: 91.36474482 | D159: 91.46108588 | E159: 70.07807356 | F159: 54.00796129 | G159: 83.0558812 | H159: 78.62494217
B162: Intervention costs
B164: We calculated an indicative estimate of the cost per km of implementing 20 km speed limits on local and minor roads. We based our estimates on the costs
B165: incurred in the Edinburgh 20 mph project (2015-2018), using costs provided by Simon Lievesley, Senior Project Manager for transport projects at Edinburgh Council.
B166: Costs in 2016/17 and 2017/18 were deflated to 2015/16, using the Hospital and Community Health Service (HCHS) inflation index. Total cost was £2,727,458, which
B167: included staff time, construction and awareness raising. The scheme covered 1204 km of roads, resulting in an estimated implementation cost of
B168: £2,727,458/1204 = £2,265 per km. The length of local and minor roads in urban settlements, by local area, was calculated using GIS software, and used to estimate
B169: the cost of the scheme for the area of interest.
B171: Area of interest: | D171: =Results!C4 -> Scotland
B172: Length (km) of local and minor roads in local settlements in the area of interest:
D173: =VLOOKUP(Calculations!E2,'Eligible road length'!A3:B55,2) -> 15531.30316
B174: Cost of 20 mph speed limits in the area of interest: | D174: =2265*D173 -> 35178401.66
B177: Hospitalisation costs
B179: The cost of a continuous inpatient stay was estimated to be £2,113 in 2006/07 (Geue et al 2012; based on healthcare resource groups and the English tariff).
B180: This was inflated to £2,512 for 2015/16 using the Hospital and Community Health Service (HCHS) inflation index.
B181: Cost of continuous Inpatient stay | D181: 2512
B184: References
B186: Atkins (2010) | C186: Interim Evaluation of the Implementation of 20mph Speed Limits in Portsmouth. http://webarchive.nationalarchives.gov.uk/+/http:/www.dft.gov.uk/pgr/roadsafety/research/rsrr/theme4/interimeval20mphspeedlimits.pdf
B187: Bristol City Council (2012) | C187: 20 mph Speed Limit Pilot Areas: Monitoring Report. http://www.bristol20mph.co.uk/wp-content/uploads/2016/06/20mph-Monitoring-Report-pilot-areas2012.pdf
B188: COMEAP (2015) | C188: Nitrogen dioxide: interim view on long-term average concentrations and mortality. https://www.gov.uk/government/publications/nitrogen-dioxide-interim-view-on-long-term-average-concentrations-and-mortality
B189: COMEAP (2016) | C189: Interim statement on quantifying the association of long-term average concentrations of nitrogen dioxide and mortality. https://assets.publishing.service.gov.uk/government/uploads/system/uploads/attachment_data/file/485373/COMEAP_NO2_Mortality_Interim_Statement.pdf
B190: Cross River Partnership (2017) | C190: Analysis of impact of 20 mph limits research report. https://crossriverpartnership.org/media/2017/08/170531-Analysis-of-Impact-of-20-mph-Limits-Research-Report-Issue1.pdf
B191: DEFRA (2017) | C191: NOx to NO2 Calculator. https://laqm.defra.gov.uk/review-and-assessment/tools/background-maps.html#NOxNO2calcfNO2 factors
B192: Elvik (2009) | C192: The Power Model of the relationship between speed and road safety. https://www.toi.no/getfile.php?mmfileid=13206
B193: Geue et al (2012) | C193: Spoilt for choice: implications of using alternative methods of costing hospital episode statistics. Health Economics 21: 1201-1216. https://onlinelibrary.wiley.com/doi/abs/10.1002/hec.1785
B194: Hoek, G. et al (2013) | C194: Long-term air pollution exposure and cardio-respiratory mortality: a review. Environmental Health, 12:43. https://ehjournal.biomedcentral.com/articles/10.1186/1476-069X-12-43
B195: ISD data | C195: Hospitalisation data from Scottish Morbidity Records SMR01 and SMR04, obtained from NHS Information Services Division. http://www.ndc.scot.nhs.uk/Data-Dictionary/SMR-Datasets/
B196: Makar et al (2017) | C196: Estimating the causal effects of low levels of fine particulate matter on hospitalization. Epidemiology 28: 627-634. https://www.ncbi.nlm.nih.gov/pubmed/28768298
B197: NAEI (2016) | C197: Vehicle fleet composition projections (base 2016). National Atmospheric Emissions Inventory. http://naei.beis.gov.uk/data/ef-transport
B198: NICE (2017) | C198: NICE guideline ‘Air pollution: Outdoor air quality and health’. https://www.nice.org.uk/guidance/ng70
B199: NRS data | C199: Mortality records from the National Records of Scotland, used with permission of the Registrar General for Scotland. https://www.nrscotland.gov.uk/statistics-and-data/statistics/statistics-by-theme/vital-events/deaths
B200: Ricardo (2016) | C200: PM2.5 and PM10 in Scotland. Report for the Scottish Government. http://www.scottishairquality.co.uk/assets/documents/technical%20reports/pm2.5-pm10ratio_29Mar2016-FINAL_Version_Approved.pdf
B201: TEAG (2013) | C201: An evaluation of the estimated impacts on vehicle emissions of a 20 mph speed restriction in central London. Transport and Environmental Analysis Group. Centre for Transport Studies, Imperial College London. https://www.cityoflondon.gov.uk/business/environmental-health/environmental-protection/air-quality/Documents/speed-restriction-air-quality-report-2013-for-web.pdf
B202: Turley, M. (2013) | C202: South Central Edinburgh 20mph Limit Pilot Evaluation, Transport & Environment Committee. http://www.edinburgh.gov.uk/downloads/file/7820/south_central_edinburgh_20mph_limit_pilot_evaluation%20_2013
B203: WHO Europe HRAPIE (2013) | C203: Health risks of air pollution in Europe - HRAPIE project. http://www.euro.who.int/__data/assets/pdf_file/0006/238956/Health_risks_air_pollution_HRAPIE_project.pdf?ua=1

Sheet SHEETS TO BE HIDDEN -> (hidden)

Sheet Calculations (hidden)
A1: Calculating the deaths, years of life lost, hospital stays, and premature deaths for each group | K1: COUNTS (ACCIDENTS) | T1: COUNTS (PM2.5) | AC1: COUNTS (NO2) | AK1: TOTAL COUNTS | BJ1: EUROPEAN AGE-STANDARDISED RATE (EASR) PER 100000
A2: AREA: | B2: =Options!B11 -> Scotland | C2: EQUIVALENT AREA: | E2: =VLOOKUP(B2,Lists!D2:E85,2) -> Scotland | K2: CUMULATIVE INCIDENCE (DEATHS) | M2: YEARS OF LIFE LOST | O2: HOSPITALISATIONS | Q2: PREMATURE MORTALITY | T2: CUMULATIVE INCIDENCE (DEATHS) | V2: YEARS OF LIFE LOST | X2: HOSPITALISATIONS | Z2: PREMATURE MORTALITY | AC2: CUMULATIVE INCIDENCE (DEATHS) | AE2: YEARS OF LIFE LOST | AG2: HOSPITALISATIONS | AI2: PREMATURE MORTALITY | AK2: CUMULATIVE INCIDENCE (DEATHS) | AM2: YEARS OF LIFE LOST | AO2: HOSPITALISATIONS | AQ2: PREMATURE MORTALITY | AS2: AGE STANDARDISED RATE (ASR) | BA2: ASR*EUROPEAN STANDARD POPULATION (ESP2013) | BJ2: CUMULATIVE INCIDENCE (DEATHS) | BL2: YEARS OF LIFE LOST | BN2: HOSPITALISATIONS | BP2: PREMATURE MORTALITY
A3: SIMD | B3: group | C3: mean age (2016) | D3: life exp (2014-16) | E3: sex | F3: SIMD | G3: prevalence exposure | H3: population (2016) | I3: no. treated at base | J3: additional no. treated under policy | K3: Baseline | L3: Policy | M3: Baseline | N3: Policy | O3: Baseline | P3: Policy | Q3: Baseline | R3: Policy | T3: Baseline | U3: Policy | V3: Baseline | W3: Policy | X3: Baseline | Y3: Policy | Z3: Baseline | AA3: Policy | AC3: Baseline | AD3: Policy | AE3: Baseline | AF3: Policy | AG3: Baseline | AH3: Policy | AI3: Baseline | AJ3: Policy | AK3: Baseline | AL3: Policy | AM3: Baseline | AN3: Policy | AO3: Baseline | AP3: Policy | AQ3: Baseline | AR3: Policy | AS3: CI_BASE | AT3: CI_POLICY | AU3: YLL_BASE | AV3: YLL_POLICY | AW3: HOSP_BASE | AX3: HOSP_POLICY | AY3: PREM_BASE | AZ3: PREM_POLICY | BA3: CI_BASE | BB3: CI_POLICY | BC3: YLL_BASE | BD3: YLL_POLICY | BE3: HOSP_BASE | BF3: HOSP_POLICY | BG3: PREM_BASE | BH3: PREM_POLICY | BI3: ESP2013 | BJ3: Baseline | BK3: Policy | BL3: Baseline | BM3: Policy | BN3: Baseline | BO3: Policy | BP3: Baseline | BQ3: Policy
A5: All quintiles | B5: 16+ Males and Females | C5: N/A | E5: BOTH | F5: ALL | H5: =SUM(H7:H11) -> 4488783 | I5: =SUM(I7:I11) -> 0 | J5: =SUM(J7:J11) -> 2435905 | K5: =SUMIF(K7:K11,">0") -> 44528.10826 | L5: 44518.2117 | M5: 595692.7873 | N5: 595558.1912 | O5: 1143855.727 | P5: 1143599.939 | Q5: 21625.30398 | R5: 21620.45458 | S5: =K5-T5 -> 0 | T5: =SUMIF(T7:T11,">0") -> 44528.10826 | U5: 44527.56693 | V5: 595692.7873 | W5: 595685.2641 | X5: 1143855.727 | Y5: 1143828.489 | Z5: 21625.30398 | AA5: 21625.03749 | AC5: =SUMIF(AC7:AC11,">0") -> 44528.10826 | AD5: 44527.85937 | AE5: 595692.7873 | AF5: 595689.3356 | AG5: 1143855.727 | AH5: 1143855.727 | AI5: 21625.30398 | AJ5: 21625.18149 | AK5: =K5 -> 44528.10826 | AL5: =AK5-((AK5-L5)+(AK5-U5)+(AK5-AD5)) -> 44517.42149 | AM5: =M5 -> 595692.7873 | AN5: =AM5-((AM5-N5)+(AM5-W5)+(AM5-AF5)) -> 595547.2163 | AO5: =O5 -> 1143855.727 | AP5: =AO5-((AO5-P5)+(AO5-Y5)+(AO5-AH5)) -> 1143572.701 | AQ5: =Q5 -> 21625.30398 | AR5: =AQ5-((AQ5-R5)+(AQ5-AA5)+(AQ5-AJ5)) -> 21620.06559 | BA5: =SUMIF(BA7:BA11,">0") -> 906634178.4 | BB5: =SUMIF(BB7:BB11,">0") -> 906414383.1 | BC5: =SUMIF(BC7:BC11,">0") -> 1.148792512e+10 | BD5: 1.148509009e+10 | BE5: 2.193969232e+10 | BF5: 2.193422038e+10 | BG5: 415460924.5 | BH5: 415358789.1 | BI5: =SUM(BI7:BI11) -> 1000000 | BJ5: =BA5/$BI5 -> 906.6341784 | BK5: =BB5/$BI5 -> 906.4143831 | BL5: =BC5/$BI5 -> 11487.92512 | BM5: 11485.09009 | BN5: 21939.69232 | BO5: 21934.22038 | BP5: 415.4609245 | BQ5: 415.3587891
A6: Q1 and Q2 | B6: 16+ Males and Females | C6: N/A | E6: BOTH | F6: Q1&2 | H6: =SUM(H7:H8) -> 1769266 | I6: 0 | J6: 1199669 | K6: 23420.6251 | L6: 23414.42468 | M6: 318079.1264 | N6: 317993.4507 | O6: 542278.7308 | P6: 542131.1529 | Q6: 11406.447 | R6: 11403.37796 | T6: =SUM(T7:T8) -> 23420.6251 | U6: 23420.27299 | V6: 318079.1264 | W6: 318074.2016 | X6: 542278.7308 | Y6: 542262.6749 | Z6: 11406.447 | AA6: 11406.27287 | AC6: =SUM(AC7:AC8) -> 23420.6251 | AD6: 23420.46071 | AE6: 318079.1264 | AF6: 318076.8275 | AG6: 542278.7308 | AH6: 542278.7308 | AI6: 11406.447 | AJ6: 11406.36559 | AK6: 23420.6251 | AL6: =AK6-((AK6-L6)+(AK6-U6)+(AK6-AD6)) -> 23413.90819 | AM6: 318079.1264 | AN6: 317986.2269 | AO6: =O6 -> 542278.7308 | AP6: 542115.0971 | AQ6: 11406.447 | AR6: 11403.12241 | BA6: =SUMIF(BA7:BA8,">0") -> 502859944.3 | BB6: =SUMIF(BB7:BB8,">0") -> 502715877 | BC6: 6393049559 | BD6: 6391181438 | BE6: 1.078771081e+10 | BF6: 1.078445228e+10 | BG6: 231459232.8 | BH6: 231391613.3 | BI6: =SUM(BI7:BI8) -> 400000 | BJ6: =BA6/$BI6 -> 1257.149861 | BK6: 1256.789692 | BL6: 15982.6239 | BM6: 15977.9536 | BN6: 26969.27703 | BO6: 26961.1307 | BP6: 578.648082 | BQ6: 578.4790333
A7: SIMD Q1 (most deprived) | B7: 16+ Males and Females | C7: N/A | E7: BOTH | F7: 1 | H7: =H12+H17 -> 872234 | I7: 0 | J7: 635946 | K7: 12912.34651 | L7: 12908.71985 | M7: =M12+M17 -> 179614.5327 | N7: 179563.1017 | O7: 288715.8401 | P7: 288631.8385 | Q7: 6424.777456 | R7: 6422.934221 | T7: =T12+T17 -> 12912.34651 | U7: 12912.12898 | V7: 179614.5327 | W7: 179611.4352 | X7: 288715.8401 | Y7: 288706.268 | Z7: 6424.777456 | AA7: 6424.667655 | AC7: =AC12+AC17 -> 12912.34651 | AD7: 12912.24336 | AE7: 179614.5327 | AF7: 179613.0652 | AG7: 288715.8401 | AH7: 288715.8401 | AI7: 6424.777456 | AJ7: 6424.725385 | AK7: 12912.34651 | AL7: 12908.39917 | AM7: 179614.5327 | AN7: 179558.5367 | AO7: 288715.8401 | AP7: 288622.2664 | AQ7: 6424.777456 | AR7: 6422.772348 | BA7: =BA12+BA17 -> 294492379.9 | BB7: =BB12+BB17 -> 294402952.5 | BC7: 3752509089 | BD7: 3751343218 | BE7: 5950449632 | BF7: 5948525075 | BG7: 135960102.8 | BH7: 135917751.2 | BI7: =BI12+BI17 -> 200000 | BJ7: =BA7/$BI7 -> 1472.4619 | BK7: 1472.014762 | BL7: =BC7/$BI7 -> 18762.54544 | BM7: =BD7/$BI7 -> 18756.71609 | BN7: =BE7/$BI7 -> 29752.24816 | BO7: =BF7/$BI7 -> 29742.62538 | BP7: =BG7/$BI7 -> 679.8005141 | BQ7: =BH7/$BI7 -> 679.5887559
A8: SIMD Q2 | C8: N/A | E8: BOTH | F8: 2 | H8: =H13+H18 -> 897032 | I8: 0 | J8: 563723 | K8: =K13+K18 -> 10508.27859 | L8: 10505.70483 | M8: 138464.5937 | N8: 138430.349 | O8: 253562.8907 | P8: 253499.3144 | Q8: 4981.669543 | R8: 4980.443738 | T8: =T13+T18 -> 10508.27859 | U8: 10508.14401 | V8: 138464.5937 | W8: 138462.7663 | X8: 253562.8907 | Y8: 253556.4069 | Z8: 4981.669543 | AA8: 4981.605212 | AC8: =AC13+AC18 -> 10508.27859 | AD8: 10508.21735 | AE8: 138464.5937 | AF8: 138463.7623 | AG8: 253562.8907 | AH8: 253562.8907 | AI8: 4981.669543 | AJ8: 4981.640202 | AK8: 10508.27859 | AL8: 10505.50902 | AM8: 138464.5937 | AN8: 138427.6902 | AO8: 253562.8907 | AP8: 253492.8306 | AQ8: 4981.669543 | AR8: 4980.350065 | BA8: =BA13+BA18 -> 208367564.4 | BB8: =BB13+BB18 -> 208312924.5 | BC8: 2640540470 | BD8: 2639838220 | BE8: 4837261178 | BF8: 4835927206 | BG8: 95499129.97 | BH8: 95473862.13 | BI8: =BI13+BI18 -> 200000 | BJ8: 1041.837822 | BK8: 1041.564623 | BL8: 13202.70235 | BM8: 13199.1911 | BN8: 24186.30589 | BO8: 24179.63603 | BP8: 477.4956499 | BQ8: 477.3693107
A9: SIMD Q3 | C9: N/A | E9: BOTH | F9: 3 | H9: 907978 | I9: 0 | J9: 411689 | K9: 8992.857004 | L9: 8991.310307 | M9: 117531.4268 | N9: 117510.9987 | O9: 227312.9823 | P9: 227272.6915 | Q9: 4322.453625 | R9: 4321.717478 | T9: =T14+T19 -> 8992.857004 | U9: 8992.782432 | V9: 117531.4268 | W9: 117530.3857 | X9: 227312.9823 | Y9: 227308.9848 | Z9: 4322.453625 | AA9: 4322.417081 | AC9: =AC14+AC19 -> 8992.857004 | AD9: 8992.824359 | AE9: 117531.4268 | AF9: 117530.9744 | AG9: 227312.9823 | AH9: 227312.9823 | AI9: 4322.453625 | AJ9: 4322.437688 | AK9: 8992.857004 | AL9: 8991.203092 | AM9: 117531.4268 | AN9: 117509.5052 | AO9: 227312.9823 | AP9: 227268.694 | AQ9: 4322.453625 | AR9: 4321.664996 | BA9: =BA14+BA19 -> 169292162.8 | BB9: =BB14+BB19 -> 169261188.7 | BC9: 2140035870 | BD9: 2139637178 | BE9: 4182172525 | BF9: 4181358758 | BG9: 77334119.23 | BH9: 77320009.43 | BI9: =BI14+BI19 -> 200000 | BJ9: 846.4608138 | BK9: 846.3059436 | BL9: 10700.17935 | BM9: 10698.18589 | BN9: 20910.86262 | BO9: 20906.79379 | BP9: 386.6705962 | BQ9: 386.6000472
A10: SIMD Q4 | C10: N/A | E10: BOTH | F10: 4 | H10: 910792 | I10: 0 | J10: 364554 | K10: 7033.216553 | L10: 7032.121237 | M10: 93245.9196 | N10: 93231.38772 | O10: 200119.0561 | P10: 200087.4174 | Q10: 3452.221204 | R10: 3451.691564 | T10: =T15+T20 -> 7033.216553 | U10: 7033.16171 | V10: 93245.9196 | W10: 93245.16655 | X10: 200119.0561 | Y10: 200115.888 | Z10: 3452.221204 | AA10: 3452.194411 | AC10: =AC15+AC20 -> 7033.216553 | AD10: 7033.192039 | AE10: 93245.9196 | AF10: 93245.58394 | AG10: 200119.0561 | AH10: 200119.0561 | AI10: 3452.221204 | AJ10: 3452.20923 | AK10: 7033.216553 | AL10: 7032.041881 | AM10: 93245.9196 | AN10: 93230.299 | AO10: 200119.0561 | AP10: 200084.2493 | AQ10: 3452.221204 | AR10: 3451.652796 | BA10: =BA15+BA20 -> 134849788.3 | BB10: =BB15+BB20 -> 134827370.1 | BC10: 1700927130 | BD10: 1700642468 | BE10: 3688824591 | BF10: 3688183655 | BG10: 61421581.34 | BH10: 61411471.79 | BI10: =BI15+BI20 -> 200000 | BJ10: 674.2489416 | BK10: 674.1368505 | BL10: 8504.635652 | BM10: 8503.212342 | BN10: 18444.12295 | BO10: 18440.91827 | BP10: 307.1079067 | BQ10: 307.0573589
A11: SIMD Q5 (least deprived) | C11: N/A | E11: BOTH | F11: 5 | H11: 900747 | I11: 0 | J11: 459993 | K11: 5081.409603 | L11: 5080.355476 | M11: 66836.31451 | N11: 66822.35414 | O11: 174144.9582 | P11: 174108.6768 | Q11: 2444.18215 | R11: 2443.667576 | T11: =T16+T21 -> 5081.409603 | U11: 5081.349795 | V11: 66836.31451 | W11: 66835.51035 | X11: 174144.9582 | Y11: 174140.9416 | Z11: 2444.18215 | AA11: 2444.153129 | AC11: =AC16+AC21 -> 5081.409603 | AD11: 5081.382265 | AE11: 66836.31451 | AF11: 66835.94971 | AG11: 174144.9582 | AH11: 174144.9582 | AI11: 2444.18215 | AJ11: 2444.168984 | AK11: 5081.409603 | AL11: 5080.268328 | AM11: 66836.31451 | AN11: 66821.18518 | AO11: 174144.9582 | AP11: 174104.6602 | AQ11: 2444.18215 | AR11: 2443.625389 | BA11: =BA16+BA21 -> 99632283 | BB11: =BB16+BB21 -> 99609947.31 | BC11: =BC16+BC21 -> 1253912557 | BD11: 1253629009 | BE11: 3280984393 | BF11: 3280225686 | BG11: 45245991.09 | BH11: 45235694.56 | BI11: =BI16+BI21 -> 200000 | BJ11: =BA11/$BI11 -> 498.161415 | BK11: 498.0497366 | BL11: 6269.562784 | BM11: 6268.145043 | BN11: 16404.92197 | BO11: 16401.12843 | BP11: 226.2299554 | BQ11: 226.1784728
A12: SIMD Q1 (most deprived) | B12: 16+ Females | C12: N/A | E12: female | F12: 1 | H12: =SUM(H60:H78) -> 457633 | I12: =SUM(I60:I78) -> 0 | J12: =SUM(J60:J78) -> 334352 | K12: =SUMIF(K60:K78,">0") -> 6432.811176 | L12: 6430.998536 | M12: 82592.81882 | N12: 82569.06172 | O12: 155037.8909 | P12: 154992.5916 | Q12: 2639.120903 | R12: 2638.358021 | T12: =SUMIF(T60:T78,">0") -> 6432.811176 | U12: 6432.702354 | V12: 82592.81882 | W12: 82591.40248 | X12: 155037.8909 | Y12: 155032.757 | Z12: 2639.120903 | AA12: 2639.076105 | AC12: =SUMIF(AC60:AC78,">0") -> 6432.811176 | AD12: 6432.759398 | AE12: 82592.81882 | AF12: 82592.14443 | AG12: 155037.8909 | AH12: 155037.8909 | AI12: 2639.120903 | AJ12: 2639.099539 | AK12: 6432.811176 | AL12: 6430.837937 | AM12: 82592.81882 | AN12: 82566.97098 | AO12: 155037.8909 | AP12: 154987.4578 | AQ12: 2639.120903 | AR12: 2638.291859 | BA12: =SUMIF(BA60:BA78,">0") -> 124146962.1 | BB12: =SUMIF(BB60:BB78,">0") -> 124108891.6 | BC12: =SUMIF(BC60:BC78,">0") -> 1590536996 | BD12: 1590039491 | BE12: 2906076588 | BF12: 2905131864 | BG12: 53087226.46 | BH12: 53070567.05 | BI12: =SUM(BI60:BI78) -> 100000 | BJ12: 1241.469621 | BK12: 1241.088916 | BL12: 15905.36996 | BM12: 15900.39491 | BN12: 29060.76588 | BO12: 29051.31864 | BP12: 530.8722646 | BQ12: 530.7056705
A13: SIMD Q2 | C13: N/A | E13: female | F13: 2 | H13: =SUM(H98:H116) -> 469079 | I13: =SUM(I98:I116) -> 0 | J13: =SUM(J98:J116) -> 296328 | K13: =SUMIF(K98:K116,">0") -> 5243.371004 | L13: 5242.07172 | M13: 64052.63091 | N13: 64036.59657 | O13: 134904.8591 | P13: 134870.7125 | Q13: 2052.884579 | R13: 2052.370989 | T13: =SUMIF(T98:T116,">0") -> 5243.371004 | U13: 5243.30305 | V13: 64052.63091 | W13: 64051.78683 | X13: 134904.8591 | Y13: 134901.3828 | Z13: 2052.884579 | AA13: 2052.858033 | AC13: =SUMIF(AC98:AC116,">0") -> 5243.371004 | AD13: 5243.340065 | AE13: 64052.63091 | AF13: 64052.24578 | AG13: 134904.8591 | AH13: 134904.8591 | AI13: 2052.884579 | AJ13: 2052.872435 | AK13: 5243.371004 | AL13: 5241.972828 | AM13: 64052.63091 | AN13: 64035.36736 | AO13: 134904.8591 | AP13: 134867.2361 | AQ13: 2052.884579 | AR13: 2052.332298 | BA13: =SUMIF(BA98:BA116,">0") -> 87786605.43 | BB13: =SUMIF(BB98:BB116,">0") -> 87763199.25 | BC13: 1118817948 | BD13: 1118516380 | BE13: 2362418360 | BF13: 2361759907 | BG13: 37264432.33 | BH13: 37254405.83 | BI13: =SUM(BI98:BI116) -> 100000 | BJ13: 877.8660543 | BK13: 877.6319925 | BL13: 11188.17948 | BM13: 11185.1638 | BN13: 23624.1836 | BO13: 23617.59907 | BP13: 372.6443233 | BQ13: 372.5440583
A14: SIMD Q3 | C14: N/A | E14: female | F14: 3 | H14: =SUM(H136:H154) -> 469093 | I14: =SUM(I136:I154) -> 0 | J14: =SUM(J136:J154) -> 214810 | K14: =SUMIF(K136:K154,">0") -> 4357.537368 | L14: 4356.766034 | M14: 53304.66313 | N14: 53295.20991 | O14: 118438.0814 | P14: 118416.6646 | Q14: 1753.37979 | R14: 1753.074573 | T14: =SUMIF(T136:T154,">0") -> 4357.537368 | U14: 4357.500489 | V14: 53304.66313 | W14: 53304.19582 | X14: 118438.0814 | Y14: 118435.9614 | Z14: 1753.37979 | AA14: 1753.365044 | AC14: =SUMIF(AC136:AC154,">0") -> 4357.537368 | AD14: 4357.521144 | AE14: 53304.66313 | AF14: 53304.45874 | AG14: 118438.0814 | AH14: 118438.0814 | AI14: 1753.37979 | AJ14: 1753.373324 | AK14: 4357.537368 | AL14: 4356.71293 | AM14: 53304.66313 | AN14: 53294.5382 | AO14: 118438.0814 | AP14: 118414.5447 | AQ14: 1753.37979 | AR14: 1753.053361 | BA14: =SUMIF(BA136:BA154,">0") -> 71304264.79 | BB14: =SUMIF(BB136:BB154,">0") -> 71290776.57 | BC14: 906603792.3 | BD14: 906431453.3 | BE14: 2042486604 | BF14: 2042080318 | BG14: 30167484.04 | BH14: 30161862.14 | BI14: =SUM(BI136:BI154) -> 100000 | BJ14: 713.0426479 | BK14: 712.9077657 | BL14: 9066.037923 | BM14: 9064.314533 | BN14: 20424.86604 | BO14: 20420.80318 | BP14: 301.6748404 | BQ14: 301.6186214
A15: SIMD Q4 | C15: N/A | E15: female | F15: 4 | H15: =SUM(H174:H192) -> 468792 | I15: =SUM(I174:I192) -> 0 | J15: =SUM(J174:J192) -> 189530 | K15: =SUMIF(K174:K192,">0") -> 3355.068001 | L15: 3354.530833 | M15: 41832.92631 | N15: 41826.28136 | O15: 103630.2706 | P15: 103613.6023 | Q15: 1387.552789 | R15: 1387.336084 | T15: =SUMIF(T174:T192,">0") -> 3355.068001 | U15: 3355.04115 | V15: 41832.92631 | W15: 41832.58793 | X15: 103630.2706 | Y15: 103628.5978 | Z15: 1387.552789 | AA15: 1387.542005 | AC15: =SUMIF(AC174:AC192,">0") -> 3355.068001 | AD15: 3355.055985 | AE15: 41832.92631 | AF15: 41832.7751 | AG15: 103630.2706 | AH15: 103630.2706 | AI15: 1387.552789 | AJ15: 1387.547959 | AK15: 3355.068001 | AL15: 3354.491965 | AM15: 41832.92631 | AN15: 41825.79179 | AO15: 103630.2706 | AP15: 103611.9295 | AQ15: 1387.552789 | AR15: 1387.320471 | BA15: =SUMIF(BA174:BA192,">0") -> 56783705.38 | BB15: =SUMIF(BB174:BB192,">0") -> 56773955.57 | BC15: 720477771.8 | BD15: 720354821.5 | BE15: 1801545672 | BF15: 1801226647 | BG15: 23953976.37 | BH15: 23949963.82 | BI15: =SUM(BI174:BI192) -> 100000 | BJ15: 567.8370538 | BK15: 567.7395557 | BL15: 7204.777718 | BM15: 7203.548215 | BN15: 18015.45672 | BO15: 18012.26647 | BP15: 239.5397637 | BQ15: 239.4996382
A16: SIMD Q5 (least deprived) | C16: N/A | E16: female | F16: 5 | H16: =SUM(H212:H230) -> 465079 | I16: =SUM(I212:I230) -> 0 | J16: =SUM(J212:J230) -> 238297 | K16: =SUMIF(K212:K230,">0") -> 2446.299754 | L16: 2445.792728 | M16: 30221.27953 | N16: 30214.94225 | O16: 90811.93649 | P16: 90793.01072 | Q16: 993.5863315 | R16: 993.376432 | T16: =SUMIF(T212:T230,">0") -> 2446.299754 | U16: 2446.270728 | V16: 30221.27953 | W16: 30220.91647 | X16: 90811.93649 | Y16: 90809.82739 | Z16: 993.5863315 | AA16: 993.5745643 | AC16: =SUMIF(AC212:AC230,">0") -> 2446.299754 | AD16: 2446.286448 | AE16: 30221.27953 | AF16: 30221.11415 | AG16: 90811.93649 | AH16: 90811.93649 | AI16: 993.5863315 | AJ16: 993.5809772 | AK16: 2446.299754 | AL16: 2445.750396 | AM16: 30221.27953 | AN16: 30214.4138 | AO16: 90811.93649 | AP16: 90790.90162 | AQ16: 993.5863315 | AR16: 993.3593104 | BA16: =SUMIF(BA212:BA230,">0") -> 41943638.83 | BB16: =SUMIF(BB212:BB230,">0") -> 41934209.37 | BC16: 531054803.9 | BD16: 530934181.3 | BE16: 1602364951 | BF16: 1601994016 | BG16: 17641017.06 | BH16: 17636989.54 | BI16: =SUM(BI212:BI230) -> 100000 | BJ16: 419.4363883 | BK16: 419.3420937 | BL16: 5310.548039 | BM16: 5309.341813 | BN16: 16023.64951 | BO16: 16019.94016 | BP16: 176.4101706 | BQ16: 176.3698954
A17: SIMD Q1 (most deprived) | B17: 16+ Males | C17: N/A | E17: male | F17: 1 | H17: =SUM(H79:H97) -> 414601 | I17: =SUM(I79:I97) -> 0 | J17: =SUM(J79:J97) -> 301594 | K17: =SUMIF(K79:K97,">0") -> 6479.535333 | L17: 6477.721311 | M17: 97021.71392 | N17: 96994.03996 | O17: 133677.9492 | P17: 133639.2469 | Q17: 3785.656554 | R17: 3784.5762 | T17: =SUMIF(T79:T97,">0") -> 6479.535333 | U17: 6479.426625 | V17: 97021.71392 | W17: 97020.03276 | X17: 133677.9492 | Y17: 133673.511 | Z17: 3785.656554 | AA17: 3785.59155 | AC17: =SUMIF(AC79:AC97,">0") -> 6479.535333 | AD17: 6479.483959 | AE17: 97021.71392 | AF17: 97020.92082 | AG17: 133677.9492 | AH17: 133677.9492 | AI17: 3785.656554 | AJ17: 3785.625846 | AK17: 6479.535333 | AL17: 6477.561229 | AM17: 97021.71392 | AN17: 96991.56571 | AO17: 133677.9492 | AP17: 133634.8087 | AQ17: 3785.656554 | AR17: 3784.480489 | BA17: =SUMIF(BA79:BA97,">0") -> 170345417.8 | BB17: =SUMIF(BB79:BB97,">0") -> 170294060.8 | BC17: 2161972093 | BD17: 2161303727 | BE17: 3044373044 | BF17: 3043393211 | BG17: 82872876.35 | BH17: 82847184.13 | BI17: =SUM(BI79:BI97) -> 100000 | BJ17: 1703.454178 | BK17: 1702.940608 | BL17: 21619.72093 | BM17: 21613.03727 | BN17: 30443.73044 | BO17: 30433.93211 | BP17: 828.7287635 | BQ17: 828.4718413
A18: SIMD Q2 | C18: N/A | E18: male | F18: 2 | H18: =SUM(H117:H135) -> 427953 | I18: =SUM(I117:I135) -> 0 | J18: =SUM(J117:J135) -> 267395 | K18: =SUMIF(K117:K135,">0") -> 5264.907584 | L18: 5263.633109 | M18: 74411.96279 | N18: 74393.75244 | O18: 118658.0316 | P18: 118628.6019 | Q18: 2928.784964 | R18: 2928.072748 | T18: =SUMIF(T117:T135,">0") -> 5264.907584 | U18: 5264.840964 | V18: 74411.96279 | W18: 74410.97948 | X18: 118658.0316 | Y18: 118655.0242 | Z18: 2928.784964 | AA18: 2928.747179 | AC18: =SUMIF(AC117:AC135,">0") -> 5264.907584 | AD18: 5264.877287 | AE18: 74411.96279 | AF18: 74411.51647 | AG18: 118658.0316 | AH18: 118658.0316 | AI18: 2928.784964 | AJ18: 2928.767767 | AK18: 5264.907584 | AL18: 5263.536192 | AM18: 74411.96279 | AN18: 74392.32282 | AO18: 118658.0316 | AP18: 118625.5945 | AQ18: 2928.784964 | AR18: 2928.017767 | BA18: =SUMIF(BA117:BA135,">0") -> 120580958.9 | BB18: =SUMIF(BB117:BB135,">0") -> 120549725.3 | BC18: 1521722521 | BD18: 1521321840 | BE18: 2474842818 | BF18: 2474167298 | BG18: 58234697.65 | BH18: 58219456.31 | BI18: =SUM(BI117:BI135) -> 100000 | BJ18: 1205.809589 | BK18: 1205.497253 | BL18: 15217.22521 | BM18: 15213.2184 | BN18: 24748.42818 | BO18: 24741.67298 | BP18: 582.3469765 | BQ18: 582.1945631
A19: SIMD Q3 | C19: N/A | E19: male | F19: 3 | H19: =SUM(H155:H173) -> 438885 | I19: =SUM(I155:I173) -> 0 | J19: =SUM(J155:J173) -> 196879 | K19: =SUMIF(K155:K173,">0") -> 4635.319635 | L19: 4634.544274 | M19: 64226.76366 | N19: 64215.78876 | O19: 108874.9009 | P19: 108856.0268 | Q19: 2569.073835 | R19: 2568.642904 | T19: =SUMIF(T155:T173,">0") -> 4635.319635 | U19: 4635.281944 | V19: 64226.76366 | W19: 64226.18986 | X19: 108874.9009 | Y19: 108873.0234 | Z19: 2569.073835 | AA19: 2569.052037 | AC19: =SUMIF(AC155:AC173,">0") -> 4635.319635 | AD19: 4635.303215 | AE19: 64226.76366 | AF19: 64226.51569 | AG19: 108874.9009 | AH19: 108874.9009 | AI19: 2569.073835 | AJ19: 2569.064364 | AK19: 4635.319635 | AL19: 4634.490162 | AM19: 64226.76366 | AN19: 64214.967 | AO19: 108874.9009 | AP19: 108854.1493 | AQ19: 2569.073835 | AR19: 2568.611635 | BA19: =SUMIF(BA155:BA173,">0") -> 97987897.96 | BB19: =SUMIF(BB155:BB173,">0") -> 97970412.16 | BC19: 1233432078 | BD19: 1233205725 | BE19: 2139685921 | BF19: 2139278441 | BG19: 47166635.2 | BH19: 47158147.29 | BI19: =SUM(BI155:BI173) -> 100000 | BJ19: =BA19/$BI19 -> 979.8789796 | BK19: =BB19/$BI19 -> 979.7041216 | BL19: =BC19/$BI19 -> 12334.32078 | BM19: =BD19/$BI19 -> 12332.05725 | BN19: 21396.85921 | BO19: 21392.78441 | BP19: 471.666352 | BQ19: 471.5814729
A20: SIMD Q4 | C20: N/A | E20: male | F20: 4 | H20: =SUM(H193:H211) -> 442000 | I20: =SUM(I193:I211) -> 0 | J20: =SUM(J193:J211) -> 175024 | K20: =SUMIF(K193:K211,">0") -> 3678.148551 | L20: 3677.590404 | M20: 51412.9933 | N20: 51405.10635 | O20: 96488.78552 | P20: 96473.81514 | Q20: 2064.668416 | R20: 2064.35548 | T20: =SUMIF(T193:T211,">0") -> 3678.148551 | U20: 3678.12056 | V20: 51412.9933 | W20: 51412.57862 | X20: 96488.78552 | Y20: 96487.29022 | Z20: 2064.668416 | AA20: 2064.652406 | AC20: =SUMIF(AC193:AC211,">0") -> 3678.148551 | AD20: 3678.136054 | AE20: 51412.9933 | AF20: 51412.80884 | AG20: 96488.78552 | AH20: 96488.78552 | AI20: 2064.668416 | AJ20: 2064.661271 | AK20: 3678.148551 | AL20: 3677.549916 | AM20: 51412.9933 | AN20: 51404.50722 | AO20: 96488.78552 | AP20: 96472.31983 | AQ20: 2064.668416 | AR20: 2064.332326 | BA20: =SUMIF(BA193:BA211,">0") -> 78066082.94 | BB20: =SUMIF(BB193:BB211,">0") -> 78053414.54 | BC20: 980449358.6 | BD20: 980287646.9 | BE20: 1887278919 | BF20: 1886957008 | BG20: 37467604.97 | BH20: 37461507.96 | BI20: =SUM(BI193:BI211) -> 100000 | BJ20: 780.6608294 | BK20: 780.5341454 | BL20: 9804.493586 | BM20: 9802.876469 | BN20: 18872.78919 | BO20: 18869.57008 | BP20: 374.6760497 | BQ20: 374.6150796
A21: SIMD Q5 (least deprived) | C21: N/A | E21: male | F21: 5 | H21: =SUM(H231:H249) -> 435668 | I21: =SUM(I231:I249) -> 0 | J21: =SUM(J231:J249) -> 221696 | K21: =SUMIF(K231:K249,">0") -> 2635.10985 | L21: 2634.562748 | M21: 36615.03498 | N21: 36607.41189 | O21: 83333.02172 | P21: 83315.6661 | Q21: 1450.595818 | R21: 1450.291144 | T21: =SUMIF(T231:T249,">0") -> 2635.10985 | U21: 2635.079067 | V21: 36615.03498 | W21: 36614.59387 | X21: 83333.02172 | Y21: 83331.11417 | Z21: 1450.595818 | AA21: 1450.578565 | AC21: =SUMIF(AC231:AC249,">0") -> 2635.10985 | AD21: 2635.095817 | AE21: 36615.03498 | AF21: 36614.83557 | AG21: 83333.02172 | AH21: 83333.02172 | AI21: 1450.595818 | AJ21: 1450.588007 | AK21: 2635.10985 | AL21: 2634.517932 | AM21: 36615.03498 | AN21: 36606.77138 | AO21: 83333.02172 | AP21: 83313.75855 | AQ21: 1450.595818 | AR21: 1450.266079 | BA21: =SUMIF(BA231:BA249,">0") -> 57688644.17 | BB21: =SUMIF(BB231:BB249,">0") -> 57675737.95 | BC21: =SUMIF(BC231:BC249,">0") -> 722857752.9 | BD21: 722694827.3 | BE21: 1678619443 | BF21: 1678231670 | BG21: 27604974.02 | BH21: 27598705.02 | BI21: =SUM(BI231:BI249) -> 100000 | BJ21: =BA21/$BI21 -> 576.8864417 | BK21: 576.7573795 | BL21: 7228.577529 | BM21: 7226.948273 | BN21: 16786.19443 | BO21: 16782.3167 | BP21: 276.0497402 | BQ21: 275.9870502
B22: Female 0-4 | C22: 2.0384007 | D22: 81.468401 | E22: female | F22: ALL | H22: =SUM(H60,H98,H136,H174,H212) -> 0 | I22: 0 | J22: 0 | K22: =SUM(K60,K98,K136,K174,K212) ->  | T22: =SUM(T60,T98,T136,T174,T212) ->  | AC22: =SUM(AC60,AC98,AC136,AC174,AC212) ->  | BA22: =SUM(BA60,BA98,BA136,BA174,BA212) ->  | BI22: 25000
B23: Female 5-9 | C23: 6.9792795 | D23: 81.43928 | E23: female | F23: ALL | H23: =SUM(H61,H99,H137,H175,H213) -> 0 | I23: 0 | J23: 0 | K23: =SUM(K61,K99,K137,K175,K213) ->  | M23: =SUM(M61,M99,M137,M175,M213) ->  | T23: =SUM(T61,T99,T137,T175,T213) ->  | AC23: =SUM(AC61,AC99,AC137,AC175,AC213) ->  | BA23: =SUM(BA61,BA99,BA137,BA175,BA213) ->  | BI23: 27500
B24: Female 10-15 | C24: 12.478312 | D24: 81.94831 | E24: female | F24: ALL | H24: =SUM(H62,H100,H138,H176,H214) -> 0 | I24: 0 | J24: 0 | K24: =SUM(K62,K100,K138,K176,K214) ->  | L24: =SUM(L62,L100,L138,L176,L214) ->  | O24: =SUM(O62,O100,O138,O176,O214) ->  | P24: =SUM(P62,P100,P138,P176,P214) ->  | T24: =SUM(T62,T100,T138,T176,T214) ->  | AC24: =SUM(AC62,AC100,AC138,AC176,AC214) ->  | BA24: =SUM(BA62,BA100,BA138,BA176,BA214) ->  | BI24: 33000
A25: All quintiles | B25: Female 16-19 | C25: 17.570053 | D25: 81.10005 | E25: female | F25: ALL | H25: =SUM(H63,H101,H139,H177,H215) -> 118803 | I25: 0 | J25: 65206 | K25: 22.93757658 | L25: 22.93216365 | M25: 1434.286595 | N25: 1433.948124 | O25: 12465.29027 | P25: 12462.43509 | Q25: 22.93757658 | R25: 22.93216365 | T25: =SUM(T63,T101,T139,T177,T215) -> 22.93757658 | U25: 22.9372506 | V25: 1434.286595 | W25: 1434.266211 | X25: 12465.29027 | Y25: 12464.96487 | Z25: 22.93757658 | AA25: 22.9372506 | AC25: =SUM(AC63,AC101,AC139,AC177,AC215) -> 22.93757658 | AD25: 22.93743229 | AE25: 1434.286595 | AF25: 1434.277572 | AG25: 12465.29027 | AH25: 12465.29027 | AI25: 22.93757658 | AJ25: 22.93743229 | AK25: 22.93757658 | AL25: 22.93169338 | AM25: 1434.286595 | AN25: 1433.918718 | AO25: 12465.29027 | AP25: 12462.10968 | AQ25: 22.93757658 | AR25: 22.93169338 | BA25: =SUM(BA63,BA101,BA139,BA177,BA215) -> 426138.944 | BB25: 426029.806 | BC25: 26646466.89 | BD25: 26639642.49 | BE25: 231245008.5 | BF25: 231186056.5 | BG25: 426138.944 | BH25: 426029.806 | BI25: 22000 | BJ25: 19.369952 | BK25: 19.36499118 | BL25: 1211.20304 | BM25: 1210.892841 | BN25: 10511.13675 | BO25: 10508.45711 | BP25: 19.369952 | BQ25: 19.36499118
B26: Female 20-24 | C26: 22.077057 | D26: 81.66706 | E26: female | F26: ALL | H26: =SUM(H64,H102,H140,H178,H216) -> 182279 | I26: 0 | J26: 102042 | K26: 51.98103782 | L26: 51.9685233 | M26: 3045.569162 | N26: 3044.835936 | O26: 21506.62704 | P26: 21501.6051 | Q26: 51.98103782 | R26: 51.9685233 | T26: =SUM(T64,T102,T140,T178,T216) -> 51.98103782 | U26: 51.98013826 | V26: 3045.569162 | W26: 3045.516457 | X26: 21506.62704 | Y26: 21505.93619 | Z26: 51.98103782 | AA26: 51.98013826 | AC26: =SUM(AC64,AC102,AC140,AC178,AC216) -> 51.98103782 | AD26: 51.9806529 | AE26: 3045.569162 | AF26: 3045.54661 | AG26: 21506.62704 | AH26: 21506.62704 | AI26: 51.98103782 | AJ26: 51.9806529 | AK26: 51.98103782 | AL26: 51.96723881 | AM26: 3045.569162 | AN26: 3044.760678 | AO26: 21506.62704 | AP26: 21500.91425 | AQ26: 51.98103782 | AR26: 51.96723881 | BA26: =SUM(BA64,BA102,BA140,BA178,BA216) -> 852530.34 | BB26: 852304.8913 | BC26: 49949755.18 | BD26: 49936546.14 | BE26: 353188002.8 | BF26: 353094492.1 | BG26: 852530.34 | BH26: 852304.8913 | BI26: 30000 | BJ26: 28.417678 | BK26: 28.41016304 | BL26: 1664.991839 | BM26: 1664.551538 | BN26: 11772.93343 | BO26: 11769.8164 | BP26: 28.417678 | BQ26: 28.41016304
B27: Female 25-29 | C27: 26.975187 | D27: 81.64519 | E27: female | F27: ALL | H27: =SUM(H65,H103,H141,H179,H217) -> 187975 | I27: 0 | J27: 105952 | K27: 84.83343604 | L27: 84.81295809 | M27: 4553.010767 | N27: 4551.911715 | O27: 25701.25489 | P27: 25695.22084 | Q27: 84.83343604 | R27: 84.81295809 | T27: =SUM(T65,T103,T141,T179,T217) -> 84.83343604 | U27: 84.8320213 | V27: 4553.010767 | W27: 4552.934838 | X27: 25701.25489 | Y27: 25700.4608 | Z27: 84.83343604 | AA27: 84.8320213 | AC27: =SUM(AC65,AC103,AC141,AC179,AC217) -> 84.83343604 | AD27: 84.83280401 | AE27: 4553.010767 | AF27: 4552.976846 | AG27: 25701.25489 | AH27: 25701.25489 | AI27: 84.83343604 | AJ27: 84.83280401 | AK27: 84.83343604 | AL27: 84.81091131 | AM27: 4553.010767 | AN27: 4551.801865 | AO27: 25701.25489 | AP27: 25694.42675 | AQ27: 84.83343604 | AR27: 84.81091131 | BA27: =SUM(BA65,BA103,BA141,BA179,BA217) -> 1293015.18 | BB27: 1292679.734 | BC27: 69396128.59 | BD27: 69378125.21 | BE27: 399497115.4 | BF27: 399393451.6 | BG27: 1293015.18 | BH27: 1292679.734 | BI27: 30000 | BJ27: 43.100506 | BK27: 43.08932447 | BL27: 2313.204286 | BM27: 2312.604174 | BN27: 13316.57051 | BO27: 13313.11505 | BP27: 43.100506 | BQ27: 43.08932447
B28: Female 30-34 | C28: 31.999905 | D28: 81.7999 | E28: female | F28: ALL | H28: =SUM(H66,H104,H142,H180,H218) -> 179608 | I28: 0 | J28: 99040 | K28: 122.8555027 | L28: 122.826453 | M28: 5995.347917 | N28: 5993.930292 | O28: 27681.46121 | P28: 27675.09821 | Q28: 122.8555027 | R28: 122.826453 | T28: =SUM(T66,T104,T142,T180,T218) -> 122.8555027 | U28: 122.8536303 | V28: 5995.347917 | W28: 5995.256543 | X28: 27681.46121 | Y28: 27680.68421 | Z28: 122.8555027 | AA28: 122.8536303 | AC28: =SUM(AC66,AC104,AC142,AC180,AC218) -> 122.8555027 | AD28: 122.8546512 | AE28: 5995.347917 | AF28: 5995.306365 | AG28: 27681.46121 | AH28: 27681.46121 | AI28: 122.8555027 | AJ28: 122.8546512 | AK28: 122.8555027 | AL28: 122.8237291 | AM28: 5995.347917 | AN28: 5993.797367 | AO28: 27681.46121 | AP28: 27674.32121 | AQ28: 122.8555027 | AR28: 122.8237291 | BA28: =SUM(BA66,BA104,BA142,BA180,BA218) -> 2147409.355 | BB28: 2146863.712 | BC28: 104793565.8 | BD28: 104766938.4 | BE28: 491095913.1 | BF28: 490971501.6 | BG28: 2147409.355 | BH28: 2146863.712 | BI28: 32500 | BJ28: 66.074134 | BK28: 66.057345 | BL28: 3224.417409 | BM28: 3223.598106 | BN28: 15110.64348 | BO28: 15106.81543 | BP28: 66.074134 | BQ28: 66.057345
B29: Female 35-39 | C29: 36.918118 | D29: 81.89812 | E29: female | F29: ALL | H29: =SUM(H67,H105,H143,H181,H219) -> 166485 | I29: 0 | J29: 90548 | K29: 168.2370259 | L29: 168.1977835 | M29: 7399.064735 | N29: 7397.338853 | O29: 28578.84599 | P29: 28572.36721 | Q29: 168.2370259 | R29: 168.1977835 | T29: =SUM(T67,T105,T143,T181,T219) -> 168.2370259 | U29: 168.2346547 | V29: 7399.064735 | W29: 7398.960451 | X29: 28578.84599 | Y29: 28578.10787 | Z29: 168.2370259 | AA29: 168.2346547 | AC29: =SUM(AC67,AC105,AC143,AC181,AC219) -> 168.2370259 | AD29: 168.2359379 | AE29: 7399.064735 | AF29: 7399.016885 | AG29: 28578.84599 | AH29: 28578.84599 | AI29: 168.2370259 | AJ29: 168.2359379 | AK29: 168.2370259 | AL29: 168.1943243 | AM29: 7399.064735 | AN29: 7397.186717 | AO29: 28578.84599 | AP29: 28571.62909 | AQ29: 168.2370259 | AR29: 168.1943243 | BA29: =SUM(BA67,BA105,BA143,BA181,BA219) -> 3513065.99 | BB29: 3512179.678 | BC29: 154504649.3 | BD29: 154465669.2 | BE29: 598519214.2 | BF29: 598368924.6 | BG29: 3513065.99 | BH29: 3512179.678 | BI29: 35000 | BJ29: 100.373314 | BK29: 100.3479908 | BL29: 4414.41855 | BM29: 4413.304836 | BN29: 17100.54898 | BO29: 17096.25499 | BP29: 100.373314 | BQ29: 100.3479908
B30: Female 40-44 | C30: 42.077438 | D30: 82.30744 | E30: female | F30: ALL | H30: =SUM(H68,H106,H144,H182,H220) -> 172709 | I30: 0 | J30: 93415 | K30: 265.8544095 | L30: 265.7928751 | M30: 10429.46902 | N30: 10427.05502 | O30: 33419.63756 | P30: 33412.11264 | Q30: 265.8544095 | R30: 265.7928751 | T30: =SUM(T68,T106,T144,T182,T220) -> 265.8544095 | U30: 265.8509086 | V30: 10429.46902 | W30: 10429.33168 | X30: 33419.63756 | Y30: 33418.83349 | Z30: 265.8544095 | AA30: 265.8509086 | AC30: =SUM(AC68,AC106,AC144,AC182,AC220) -> 265.8544095 | AD30: 265.8527989 | AE30: 10429.46902 | AF30: 10429.40583 | AG30: 33419.63756 | AH30: 33419.63756 | AI30: 265.8544095 | AJ30: 265.8527989 | AK30: 265.8544095 | AL30: 265.7877636 | AM30: 10429.46902 | AN30: 10426.8545 | AO30: 33419.63756 | AP30: 33411.30857 | AQ30: 265.8544095 | AR30: 265.7877636 | BA30: =SUM(BA68,BA106,BA144,BA182,BA220) -> 5446621.11 | BB30: 5445250.562 | BC30: 213670957 | BD30: 213617190.4 | BE30: 681457961.7 | BF30: 681287423.7 | BG30: 5446621.11 | BH30: 5445250.562 | BI30: 35000 | BJ30: 155.617746 | BK30: 155.5785875 | BL30: 6104.884487 | BM30: 6103.348298 | BN30: 19470.22748 | BO30: 19465.35496 | BP30: 155.617746 | BQ30: 155.5785875
B31: Female 45-49 | C31: 47.025772 | D31: 82.58577 | E31: female | F31: ALL | H31: =SUM(H69,H107,H145,H183,H221) -> 202829 | I31: 0 | J31: 110536 | K31: 475.6958832 | L31: 475.5852676 | M31: 16440.04877 | N31: 16436.2259 | O31: 44462.66378 | P31: 44452.58885 | Q31: 475.6958832 | R31: 475.5852676 | T31: =SUM(T69,T107,T145,T183,T221) -> 475.6958832 | U31: 475.6897777 | V31: 16440.04877 | W31: 16439.83776 | X31: 44462.66378 | Y31: 44461.62115 | Z31: 475.6958832 | AA31: 475.6897777 | AC31: =SUM(AC69,AC107,AC145,AC183,AC221) -> 475.6958832 | AD31: 475.6930578 | AE31: 16440.04877 | AF31: 16439.95112 | AG31: 44462.66378 | AH31: 44462.66378 | AI31: 475.6958832 | AJ31: 475.6930578 | AK31: 475.6958832 | AL31: 475.5763367 | AM31: 16440.04877 | AN31: 16435.91724 | AO31: 44462.66378 | AP31: 44451.54622 | AQ31: 475.6958832 | AR31: 475.5763367 | BA31: =SUM(BA69,BA107,BA145,BA183,BA221) -> 8292959.36 | BB31: 8290863.158 | BC31: 286604658.9 | BD31: 286532214.2 | BE31: 771783001 | BF31: 771588868.3 | BG31: 8292959.36 | BH31: 8290863.158 | BI31: 35000 | BJ31: 236.941696 | BK31: 236.8818045 | BL31: 8188.70454 | BM31: 8186.63469 | BN31: 22050.94289 | BO31: 22045.39624 | BP31: 236.941696 | BQ31: 236.8818045
B32: Female 50-54 | C32: 51.990826 | D32: 82.98083 | E32: female | F32: ALL | H32: =SUM(H70,H108,H146,H184,H222) -> 209262 | I32: 0 | J32: 113884 | K32: 746.9114441 | L32: 746.7382092 | M32: 22399.87719 | N32: 22394.68188 | O32: 51924.44852 | P32: 51912.70209 | Q32: 746.9114441 | R32: 746.7382092 | T32: =SUM(T70,T108,T146,T184,T222) -> 746.9114441 | U32: 746.9018938 | V32: 22399.87719 | W32: 22399.59078 | X32: 51924.44852 | Y32: 51923.23465 | Z32: 746.9114441 | AA32: 746.9018938 | AC32: =SUM(AC70,AC108,AC146,AC184,AC222) -> 746.9114441 | AD32: 746.907012 | AE32: 22399.87719 | AF32: 22399.74428 | AG32: 51924.44852 | AH32: 51924.44852 | AI32: 746.9114441 | AJ32: 746.907012 | AK32: 746.9114441 | AL32: 746.7242269 | AM32: 22399.87719 | AN32: 22394.26255 | AO32: 51924.44852 | AP32: 51911.48823 | AQ32: 746.9114441 | AR32: 746.7242269 | BA32: =SUM(BA70,BA108,BA146,BA184,BA222) -> 12641612.48 | BB32: 12638415.99 | BC32: 379122008.8 | BD32: 379026146.1 | BE32: 874448019.8 | BF32: 874227833.9 | BG32: 12641612.48 | BH32: 12638415.99 | BI32: 35000 | BJ32: 361.188928 | BK32: 361.0975997 | BL32: 10832.0574 | BM32: 10829.31846 | BN32: 24984.22914 | BO32: 24977.93811 | BP32: 361.188928 | BQ32: 361.0975997
B33: Female 55-59 | C33: 56.953041 | D33: 83.47304 | E33: female | F33: ALL | H33: =SUM(H71,H109,H147,H185,H223) -> 190084 | I33: 0 | J33: 103805 | K33: 1032.791813 | L33: 1032.552457 | M33: 26356.84603 | N33: 26350.73767 | O33: 53414.87334 | P33: 53402.76945 | Q33: 1032.791813 | R33: 1032.552457 | T33: =SUM(T71,T109,T147,T185,T223) -> 1032.791813 | U33: 1032.778667 | V33: 26356.84603 | W33: 26356.51054 | X33: 53414.87334 | Y33: 53413.62763 | Z33: 1032.791813 | AA33: 1032.778667 | AC33: =SUM(AC71,AC109,AC147,AC185,AC223) -> 1032.791813 | AD33: 1032.785717 | AE33: 26356.84603 | AF33: 26356.69047 | AG33: 53414.87334 | AH33: 53414.87334 | AI33: 1032.791813 | AJ33: 1032.785717 | AK33: 1032.791813 | AL33: 1032.533215 | AM33: 26356.84603 | AN33: 26350.24661 | AO33: 53414.87334 | AP33: 53401.52374 | AQ33: 1032.791813 | AR33: 1032.533215 | BA33: =SUM(BA71,BA109,BA147,BA185,BA223) -> 17883143.07 | BB33: 17878621.39 | BC33: 456377793.3 | BD33: 456262400.1 | BE33: 919934892.6 | BF33: 919702761.7 | BG33: 17883143.07 | BH33: 17878621.39 | BI33: 32500 | BJ33: 550.250556 | BK33: 550.1114275 | BL33: 14042.39364 | BM33: 14038.84308 | BN33: 28305.689 | BO33: 28298.54651 | BP33: 550.250556 | BQ33: 550.1114275
B34: Female 60-64 | C34: 61.947388 | D34: 84.16739 | E34: female | F34: ALL | H34: =SUM(H72,H110,H148,H186,H224) -> 165146 | I34: 0 | J34: 88628 | K34: 1358.666239 | L34: 1358.357425 | M34: 28830.90031 | N34: 28824.34728 | O34: 52377.01197 | P34: 52365.3499 | Q34: 1358.666239 | R34: 1358.357425 | T34: =SUM(T72,T110,T148,T186,T224) -> 1358.666239 | U34: 1358.649687 | V34: 28830.90031 | W34: 28830.54907 | X34: 52377.01197 | Y34: 52375.84029 | Z34: 1358.666239 | AA34: 1358.649687 | AC34: =SUM(AC72,AC110,AC148,AC186,AC224) -> 1358.666239 | AD34: 1358.658581 | AE34: 28830.90031 | AF34: 28830.7378 | AG34: 52377.01197 | AH34: 52377.01197 | AI34: 1358.666239 | AJ34: 1358.658581 | AK34: 1358.666239 | AL34: 1358.333215 | AM34: 28830.90031 | AN34: 28823.83353 | AO34: 52377.01197 | AP34: 52364.17822 | AQ34: 1358.666239 | AR34: 1358.333215 | BA34: =SUM(BA72,BA110,BA148,BA186,BA224) -> 25202404.86 | BB34: 25196127.96 | BC34: 534795081.5 | BD34: 534661885.7 | BE34: 962839226.4 | BF34: 962599625.6 | BG34: 25202404.86 | BH34: 25196127.96 | BI34: 30000 | BJ34: 840.080162 | BK34: 839.8709319 | BL34: 17826.50272 | BM34: 17822.06286 | BN34: 32094.64088 | BO34: 32086.65419 | BP34: 840.080162 | BQ34: 839.8709319
B35: Female 65-69 | C35: 67.063927 | D35: 85.19393 | E35: female | F35: ALL | H35: =SUM(H73,H111,H149,H187,H225) -> 164057 | I35: 0 | J35: 86621 | K35: 2067.361981 | L35: 2066.900389 | M35: 35413.91693 | N35: 35406.00986 | O35: 58973.2205 | P35: 58960.29287 | Q35: 2067.361981 | R35: 2066.900389 | T35: =SUM(T73,T111,T149,T187,T225) -> 2067.361981 | U35: 2067.337654 | V35: 35413.91693 | W35: 35413.50021 | X35: 58973.2205 | Y35: 58971.94431 | Z35: 2067.361981 | AA35: 2067.337654 | AC35: =SUM(AC73,AC111,AC149,AC187,AC225) -> 2067.361981 | AD35: 2067.350739 | AE35: 35413.91693 | AF35: 35413.72436 | AG35: 58973.2205 | AH35: 58973.2205 | AI35: 2067.361981 | AJ35: 2067.350739 | AK35: 2067.361981 | AL35: 2066.86482 | AM35: 35413.91693 | AN35: 35405.40057 | AO35: 58973.2205 | AP35: 58959.01668 | AQ35: 2067.361981 | AR35: 2066.86482 | BA35: =SUM(BA73,BA111,BA149,BA187,BA225) -> 35605067.57 | BB35: 35596322.72 | BC35: 609914914.4 | BD35: 609765115.1 | BE35: 1003826931 | BF35: 1003580190 | BG35: 35605067.57 | BH35: 35596322.72 | BI35: 27500 | BJ35: 1294.72973 | BK35: 1294.411735 | BL35: 22178.72416 | BM35: 22173.27691 | BN35: 36502.79749 | BO35: 36493.82509 | BP35: 1294.72973 | BQ35: 1294.411735
B36: Female 70-74 | C36: 71.938164 | D36: 86.24816 | E36: female | F36: ALL | H36: =SUM(H74,H112,H150,H188,H226) -> 127150 | I36: 0 | J36: 68000 | K36: 2428.398044 | L36: 2427.851595 | M36: 32321.96825 | N36: 32314.69501 | O36: 51815.94224 | P36: 51804.44143 | Q36: 2428.398044 | R36: 2427.851595 | T36: =SUM(T74,T112,T150,T188,T226) -> 2428.398044 | U36: 2428.369468 | V36: 32321.96825 | W36: 32321.58791 | X36: 51815.94224 | Y36: 51814.81707 | Z36: 2428.398044 | AA36: 2428.369468 | AC36: =SUM(AC74,AC112,AC150,AC188,AC226) -> 2428.398044 | AD36: 2428.38485 | AE36: 32321.96825 | AF36: 32321.79264 | AG36: 51815.94224 | AH36: 51815.94224 | AI36: 2428.398044 | AJ36: 2428.38485 | AK36: 2428.398044 | AL36: 2427.809826 | AM36: 32321.96825 | AN36: 32314.13907 | AO36: 51815.94224 | AP36: 51803.31627 | AQ36: 2428.398044 | AR36: 2427.809826 | BA36: =SUM(BA74,BA112,BA150,BA188,BA226) -> 48810168 | BB36: 48798128.78 | BC36: 649663140.8 | BD36: 649502898.8 | BE36: 1031603609 | BF36: 1031347827 | BG36: 48810168 | BH36: 48798128.78 | BI36: 25000 | BJ36: 1952.40672 | BK36: 1951.925151 | BL36: 25986.52563 | BM36: 25980.11595 | BN36: 41264.14437 | BO36: 41253.91309 | BP36: 1952.40672 | BQ36: 1951.925151
B37: Female 75-79 | C37: 76.942825 | D37: 87.81283 | E37: female | F37: ALL | H37: =SUM(H75,H113,H151,H189,H227) -> 104331 | I37: 0 | J37: 57964 | K37: 3079.383076 | L37: 3078.669527 | M37: 30393.52636 | N37: 30386.48363 | O37: 48655.39333 | P37: 48644.18715 | Q37: 0 | R37: 0 | T37: =SUM(T75,T113,T151,T189,T227) -> 3079.383076 | U37: 3079.344618 | V37: 30393.52636 | W37: 30393.14677 | X37: 48655.39333 | Y37: 48654.26394 | Z37: 0 | AA37: 0 | AC37: =SUM(AC75,AC113,AC151,AC189,AC227) -> 3079.383076 | AD37: 3079.365306 | AE37: 30393.52636 | AF37: 30393.35096 | AG37: 48655.39333 | AH37: 48655.39333 | AI37: 0 | AJ37: 0 | AK37: =K37 -> 3079.383076 | AL37: 3078.613299 | AM37: =M37 -> 30393.52636 | AN37: 30385.92865 | AO37: =O37 -> 48655.39333 | AP37: 48643.05776 | AQ37: =Q37 -> 0 | AR37: 0 | BA37: =SUM(BA75,BA113,BA151,BA189,BA227) -> 59413070.32 | BB37: 59398108.22 | BC37: 586407301.1 | BD37: 586259625.1 | BE37: 935996664.2 | BF37: 935757762.2 | BG37: 0 | BH37: 0 | BI37: 20000 | BJ37: 2970.653516 | BK37: 2969.905411 | BL37: 29320.36506 | BM37: 29312.98126 | BN37: 46799.83321 | BO37: 46787.88811 | BP37: 0 | BQ37: 0
B38: Female 80-84 | C38: 81.856712 | D38: 89.73671 | E38: female | F38: ALL | H38: =SUM(H76,H114,H152,H190,H228) -> 80217 | I38: 0 | J38: 45092 | K38: 3572.447119 | L38: 3571.617941 | M38: 24578.42904 | N38: 24572.72429 | O38: 42391.15608 | P38: 42381.27818 | Q38: 0 | R38: 0 | T38: =SUM(T76,T114,T152,T190,T228) -> 3572.447119 | U38: 3572.401667 | V38: 24578.42904 | W38: 24578.11632 | X38: 42391.15608 | Y38: 42390.14194 | Z38: 0 | AA38: 0 | AC38: =SUM(AC76,AC114,AC152,AC190,AC228) -> 3572.447119 | AD38: 3572.426109 | AE38: 24578.42904 | AF38: 24578.28448 | AG38: 42391.15608 | AH38: 42391.15608 | AI38: 0 | AJ38: 0 | AK38: 3572.447119 | AL38: 3571.551478 | AM38: 24578.42904 | AN38: 24572.26702 | AO38: 42391.15608 | AP38: 42380.26403 | AQ38: 0 | AR38: 0 | BA38: =SUM(BA76,BA114,BA152,BA190,BA228) -> 55901264.72 | BB38: 55887187.67 | BC38: 384600589.5 | BD38: 384503739.4 | BE38: 661963669 | BF38: 661792943.5 | BG38: 0 | BH38: 0 | BI38: 12500 | BJ38: 4472.101178 | BK38: 4470.975014 | BL38: 30768.04716 | BM38: 30760.29915 | BN38: 52957.09352 | BO38: 52943.43548 | BP38: 0 | BQ38: 0
B39: Female 85-89 | C39: 86.73082 | D39: 92.22082 | E39: female | F39: ALL | H39: =SUM(H77,H115,H153,H191,H229) -> 49691 | I39: 0 | J39: 27105 | K39: 3276.500044 | L39: 3275.771292 | M39: 14711.4852 | N39: 14708.2131 | O39: 29525.06547 | P39: 29518.38135 | Q39: 0 | R39: 0 | T39: =SUM(T77,T115,T153,T191,T229) -> 3276.500044 | U39: 3276.459241 | V39: 14711.4852 | W39: 14711.30199 | X39: 29525.06547 | Y39: 29524.36326 | Z39: 0 | AA39: 0 | AC39: =SUM(AC77,AC115,AC153,AC191,AC229) -> 3276.500044 | AD39: 3276.481276 | AE39: 14711.4852 | AF39: 14711.40093 | AG39: 29525.06547 | AH39: 29525.06547 | AI39: 0 | AJ39: 0 | AK39: 3276.500044 | AL39: 3275.711719 | AM39: 14711.4852 | AN39: 14707.94562 | AO39: 29525.06547 | AP39: 29517.67914 | AQ39: 0 | AR39: 0 | BA39: =SUM(BA77,BA115,BA153,BA191,BA229) -> 50101859.86 | BB39: 50089690.34 | BC39: 224957350.8 | BD39: 224902709.6 | BE39: 448983820.1 | BF39: 448870431.1 | BG39: 0 | BH39: 0 | BI39: 7500 | BJ39: 6680.247982 | BK39: 6678.625378 | BL39: 29994.31344 | BM39: 29987.02795 | BN39: 59864.50934 | BO39: 59849.39081 | BP39: 0 | BQ39: 0
B40: Female 90+ | C40: 92.779343 | D40: 96.27934 | E40: female | F40: ALL | H40: =SUM(H78,H116,H154,H192,H230) -> 29050 | I40: 0 | J40: 15479 | K40: 3080.232671 | L40: 3079.584992 | M40: 7700.572437 | N40: 7698.953242 | O40: 19930.14616 | P40: 19925.75134 | Q40: 0 | R40: 0 | T40: =SUM(T78,T116,T154,T192,T230) -> 3080.232671 | U40: 3080.196494 | V40: 7700.572437 | W40: 7700.481995 | X40: 19930.14616 | Y40: 19929.68472 | Z40: 0 | AA40: 0 | AC40: =SUM(AC78,AC116,AC154,AC192,AC230) -> 3080.232671 | AD40: 3080.216116 | AE40: 7700.572437 | AF40: 7700.53105 | AG40: 19930.14616 | AH40: 19930.14616 | AI40: 0 | AJ40: 0 | AK40: 3080.232671 | AL40: 3079.53226 | AM40: 7700.572437 | AN40: 7698.821412 | AO40: 19930.14616 | AP40: 19925.2899 | AQ40: 0 | AR40: 0 | BA40: =SUM(BA78,BA116,BA154,BA192,BA230) -> 54434845.39 | BB40: 54422257.77 | BC40: 136086950.2 | BD40: 136055481.2 | BE40: 348509125.9 | BF40: 348422658.7 | BG40: 0 | BH40: 0 | BI40: 5000 | BJ40: 10886.96908 | BK40: 10884.45155 | BL40: 27217.39003 | BM40: 27211.09623 | BN40: 69701.82517 | BO40: 69684.53174 | BP40: 0 | BQ40: 0
B41: Male 0-4 | C41: 2.0320823 | D41: 77.402082 | E41: male | F41: ALL | H41: =SUM(H79,H117,H155,H193,H231) -> 0 | I41: 0 | J41: 0 | T41: =SUM(T79,T117,T155,T193,T231) ->  | AC41: =SUM(AC79,AC117,AC155,AC193,AC231) ->  | BA41: =SUM(BA79,BA117,BA155,BA193,BA231) ->  | BI41: 25000
B42: Male 5-9 | C42: 6.9784756 | D42: 77.398476 | E42: male | F42: ALL | H42: =SUM(H80,H118,H156,H194,H232) -> 0 | I42: 0 | J42: 0 | T42: =SUM(T80,T118,T156,T194,T232) ->  | AC42: =SUM(AC80,AC118,AC156,AC194,AC232) ->  | BA42: =SUM(BA80,BA118,BA156,BA194,BA232) ->  | BI42: 27500
B43: Male 10-15 | C43: 12.471144 | D43: 77.92114 | E43: male | F43: ALL | H43: =SUM(H81,H119,H157,H195,H233) -> 0 | I43: 0 | J43: 0 | T43: =SUM(T81,T119,T157,T195,T233) ->  | AC43: =SUM(AC81,AC119,AC157,AC195,AC233) ->  | BA43: =SUM(BA81,BA119,BA157,BA195,BA233) ->  | BI43: 33000
B44: Male 16-19 | C44: 17.556318 | D44: 77.07632 | E44: male | F44: ALL | H44: =SUM(H82,H120,H158,H196,H234) -> 124418 | I44: 0 | J44: 68107 | K44: 56.98461184 | L44: 56.97114716 | M44: 3334.739599 | N44: 3333.951646 | O44: 8826.189231 | P44: 8824.16886 | Q44: 56.98461184 | R44: 56.97114716 | T44: =SUM(T82,T120,T158,T196,T234) -> 56.98461184 | U44: 56.9838311 | V44: 3334.739599 | W44: 3334.69391 | X44: 8826.189231 | Y44: 8825.969245 | Z44: 56.98461184 | AA44: 56.9838311 | AC44: =SUM(AC82,AC120,AC158,AC196,AC234) -> 56.98461184 | AD44: 56.98425651 | AE44: 3334.739599 | AF44: 3334.718805 | AG44: 8826.189231 | AH44: 8826.189231 | AI44: 56.98461184 | AJ44: 56.98425651 | AK44: 56.98461184 | AL44: 56.97001109 | AM44: 3334.739599 | AN44: 3333.885163 | AO44: 8826.189231 | AP44: 8823.948873 | AQ44: 56.98461184 | AR44: 56.97001109 | BA44: =SUM(BA82,BA120,BA158,BA196,BA234) -> 1013135.596 | BB44: 1012876.362 | BC44: 59288697.1 | BD44: 59273526.7 | BE44: 156551621.6 | BF44: 156511905 | BG44: 1013135.596 | BH44: 1012876.362 | BI44: 22000 | BJ44: 46.051618 | BK44: 46.03983461 | BL44: 2694.940777 | BM44: 2694.251214 | BN44: 7115.9828 | BO44: 7114.177498 | BP44: 46.051618 | BQ44: 46.03983461
B45: Male 20-24 | C45: 22.054632 | D45: 77.70463 | E45: male | F45: ALL | H45: =SUM(H83,H121,H159,H197,H235) -> 181688 | I45: 0 | J45: 101998 | K45: 117.533684 | L45: 117.5052609 | M45: 6423.215593 | N45: 6421.662271 | O45: 15171.57336 | P45: 15168.01575 | Q45: 117.533684 | R45: 117.5052609 | T45: =SUM(T83,T121,T159,T197,T235) -> 117.533684 | U45: 117.5317303 | V45: 6423.215593 | W45: 6423.108824 | X45: 15171.57336 | Y45: 15171.10727 | Z45: 117.533684 | AA45: 117.5317303 | AC45: =SUM(AC83,AC121,AC159,AC197,AC235) -> 117.533684 | AD45: 117.5328349 | AE45: 6423.215593 | AF45: 6423.169194 | AG45: 15171.57336 | AH45: 15171.57336 | AI45: 117.533684 | AJ45: 117.5328349 | AK45: 117.533684 | AL45: 117.5024582 | AM45: 6423.215593 | AN45: 6421.509103 | AO45: 15171.57336 | AP45: 15167.54966 | AQ45: 117.533684 | AR45: 117.5024582 | BA45: =SUM(BA83,BA121,BA159,BA197,BA235) -> 1940044.32 | BB45: 1939530.14 | BC45: 106023418.2 | BD45: 105995318.3 | BE45: 250437460.6 | BF45: 250371164.4 | BG45: 1940044.32 | BH45: 1939530.14 | BI45: 30000 | BJ45: 64.668144 | BK45: 64.65100467 | BL45: 3534.11394 | BM45: 3533.177276 | BN45: 8347.915354 | BO45: 8345.705481 | BP45: 64.668144 | BQ45: 64.65100467
B46: Male 25-29 | C46: 26.959763 | D46: 77.78976 | E46: male | F46: ALL | H46: =SUM(H84,H122,H160,H198,H236) -> 186149 | I46: 0 | J46: 105461 | K46: 180.0770489 | L46: 180.0333807 | M46: 8973.238808 | N46: 8971.062821 | O46: 18844.70775 | P46: 18840.26231 | Q46: 180.0770489 | R46: 180.0333807 | T46: =SUM(T84,T122,T160,T198,T236) -> 180.0770489 | U46: 180.0739755 | V46: 8973.238808 | W46: 8973.085657 | X46: 18844.70775 | Y46: 18844.11309 | Z46: 180.0770489 | AA46: 180.0739755 | AC46: =SUM(AC84,AC122,AC160,AC198,AC236) -> 180.0770489 | AD46: 180.075688 | AE46: 8973.238808 | AF46: 8973.170993 | AG46: 18844.70775 | AH46: 18844.70775 | AI46: 180.0770489 | AJ46: 180.075688 | AK46: 180.0770489 | AL46: 180.0289463 | AM46: 8973.238808 | AN46: 8970.841855 | AO46: 18844.70775 | AP46: 18839.66765 | AQ46: 180.0770489 | AR46: 180.0289463 | BA46: =SUM(BA84,BA122,BA160,BA198,BA236) -> 2809119.9 | BB46: 2808382.409 | BC46: 139978436.2 | BD46: 139941687 | BE46: 298066844.9 | BF46: 297988511.2 | BG46: 2809119.9 | BH46: 2808382.409 | BI46: 30000 | BJ46: 93.63733 | BK46: 93.61274696 | BL46: 4665.947873 | BM46: 4664.7229 | BN46: 9935.561496 | BO46: 9932.950374 | BP46: 93.63733 | BQ46: 93.61274696
B47: Male 30-34 | C47: 31.981522 | D47: 78.06152 | E47: male | F47: ALL | H47: =SUM(H85,H123,H161,H199,H237) -> 172305 | I47: 0 | J47: 95787 | K47: 242.7538613 | L47: 242.6960811 | M47: 10943.34358 | N47: 10940.73885 | O47: 20810.11301 | P47: 20805.29386 | Q47: 242.7538613 | R47: 242.6960811 | T47: =SUM(T85,T123,T161,T199,T237) -> 242.7538613 | U47: 242.7499379 | V47: 10943.34358 | W47: 10943.16672 | X47: 20810.11301 | Y47: 20809.4926 | Z47: 242.7538613 | AA47: 242.7499379 | AC47: =SUM(AC85,AC123,AC161,AC199,AC237) -> 242.7538613 | AD47: 242.7521011 | AE47: 10943.34358 | AF47: 10943.26423 | AG47: 20810.11301 | AH47: 20810.11301 | AI47: 242.7538613 | AJ47: 242.7521011 | AK47: 242.7538613 | AL47: 242.6903976 | AM47: 10943.34358 | AN47: 10940.48264 | AO47: 20810.11301 | AP47: 20804.67345 | AQ47: 242.7538613 | AR47: 242.6903976 | BA47: =SUM(BA85,BA123,BA161,BA199,BA237) -> 4445082.265 | BB47: 4443935.887 | BC47: 200384299.6 | BD47: 200332620.9 | BE47: 385911765.1 | BF47: 385812325.6 | BG47: 4445082.265 | BH47: 4443935.887 | BI47: 32500 | BJ47: 136.771762 | BK47: 136.7364888 | BL47: 6165.670757 | BM47: 6164.080644 | BN47: 11874.20816 | BO47: 11871.14848 | BP47: 136.771762 | BQ47: 136.7364888
B48: Male 35-39 | C48: 36.92601 | D48: 78.33601 | E48: male | F48: ALL | H48: =SUM(H86,H124,H162,H200,H238) -> 161268 | I48: 0 | J48: 87062 | K48: 321.6860566 | L48: 321.6116642 | M48: 12999.33355 | N48: 12996.32735 | O48: 22880.10876 | P48: 22874.9619 | Q48: 321.6860566 | R48: 321.6116642 | T48: =SUM(T86,T124,T162,T200,T238) -> 321.6860566 | U48: 321.6813109 | V48: 12999.33355 | W48: 12999.14177 | X48: 22880.10876 | Y48: 22879.48902 | Z48: 321.6860566 | AA48: 321.6813109 | AC48: =SUM(AC86,AC124,AC162,AC200,AC238) -> 321.6860566 | AD48: 321.6839084 | AE48: 12999.33355 | AF48: 12999.24674 | AG48: 22880.10876 | AH48: 22880.10876 | AI48: 321.6860566 | AJ48: 321.6839084 | AK48: 321.6860566 | AL48: 321.6047703 | AM48: 12999.33355 | AN48: 12996.04877 | AO48: 22880.10876 | AP48: 22874.34216 | AQ48: 321.6860566 | AR48: 321.6047703 | BA48: =SUM(BA86,BA124,BA162,BA200,BA238) -> 6950751.85 | BB48: 6949000.061 | BC48: 280879882.3 | BD48: 280809092.5 | BE48: 495329032.5 | BF48: 495204511.4 | BG48: 6950751.85 | BH48: 6949000.061 | BI48: 35000 | BJ48: 198.59291 | BK48: 198.5428589 | BL48: 8025.139493 | BM48: 8023.116928 | BN48: 14152.25807 | BO48: 14148.70033 | BP48: 198.59291 | BQ48: 198.5428589
B49: Male 40-44 | C49: 42.067703 | D49: 78.9077 | E49: male | F49: ALL | H49: =SUM(H87,H125,H163,H201,H239) -> 164929 | I49: 0 | J49: 87643 | K49: 475.9949366 | L49: 475.8868181 | M49: 17059.6571 | N49: 17055.78213 | O49: 27796.41123 | P49: 27790.26336 | Q49: 475.9949366 | R49: 475.8868181 | T49: =SUM(T87,T125,T163,T201,T239) -> 475.9949366 | U49: 475.9884408 | V49: 17059.6571 | W49: 17059.42429 | X49: 27796.41123 | Y49: 27795.71742 | Z49: 475.9949366 | AA49: 475.9884408 | AC49: =SUM(AC87,AC125,AC163,AC201,AC239) -> 475.9949366 | AD49: 475.9919832 | AE49: 17059.6571 | AF49: 17059.55125 | AG49: 27796.41123 | AH49: 27796.41123 | AI49: 475.9949366 | AJ49: 475.9919832 | AK49: 475.9949366 | AL49: 475.8773689 | AM49: 17059.6571 | AN49: 17055.44347 | AO49: 27796.41123 | AP49: 27789.56955 | AQ49: 475.9949366 | AR49: 475.8773689 | BA49: =SUM(BA87,BA125,BA163,BA201,BA239) -> 10242001.49 | BB49: 10239457.87 | BC49: 367073302.7 | BD49: 366982139.3 | BE49: 594504097.5 | BF49: 594356919.9 | BG49: 10242001.49 | BH49: 10239457.87 | BI49: 35000 | BJ49: 292.628614 | BK49: 292.5559391 | BL49: 10487.80865 | BM49: 10485.20398 | BN49: 16985.83136 | BO49: 16981.62628 | BP49: 292.628614 | BQ49: 292.5559391
B50: Male 45-49 | C50: 47.038155 | D50: 79.41815 | E50: male | F50: ALL | H50: =SUM(H88,H126,H164,H202,H240) -> 189422 | I50: 0 | J50: 100951 | K50: 794.8852995 | L50: 794.7044799 | M50: 24943.49672 | N50: 24937.8226 | O50: 38076.87909 | P50: 38068.43483 | Q50: 794.8852995 | R50: 794.7044799 | T50: =SUM(T88,T126,T164,T202,T240) -> 794.8852995 | U50: 794.8749099 | V50: 24943.49672 | W50: 24943.1707 | X50: 38076.87909 | Y50: 38075.96957 | Z50: 794.8852995 | AA50: 794.8749099 | AC50: =SUM(AC88,AC126,AC164,AC202,AC240) -> 794.8852995 | AD50: 794.8805417 | AE50: 24943.49672 | AF50: 24943.34743 | AG50: 38076.87909 | AH50: 38076.87909 | AI50: 794.8852995 | AJ50: 794.8805417 | AK50: 794.8852995 | AL50: 794.6893325 | AM50: 24943.49672 | AN50: 24937.34728 | AO50: 38076.87909 | AP50: 38067.52531 | AQ50: 794.8852995 | AR50: 794.6893325 | BA50: =SUM(BA88,BA126,BA164,BA202,BA240) -> 14894504.87 | BB50: 14890803.22 | BC50: 467389488.3 | BD50: 467273330.6 | BE50: 709212168.1 | BF50: 709036520.6 | BG50: 14894504.87 | BH50: 14890803.22 | BI50: 35000 | BJ50: 425.557282 | BK50: 425.4515205 | BL50: 13353.98538 | BM50: 13350.66659 | BN50: 20263.2048 | BO50: 20258.1863 | BP50: 425.557282 | BQ50: 425.4515205
B51: Male 50-54 | C51: 51.998646 | D51: 79.98865 | E51: male | F51: ALL | H51: =SUM(H89,H127,H165,H203,H241) -> 197429 | I51: 0 | J51: 105202 | K51: 1202.362353 | L51: 1202.089609 | M51: 32451.76472 | N51: 32444.40334 | O51: 47294.71013 | P51: 47284.23121 | Q51: 1202.362353 | R51: 1202.089609 | T51: =SUM(T89,T127,T165,T203,T241) -> 1202.362353 | U51: 1202.346931 | V51: 32451.76472 | W51: 32451.34849 | X51: 47294.71013 | Y51: 47293.60063 | Z51: 1202.362353 | AA51: 1202.346931 | AC51: =SUM(AC89,AC127,AC165,AC203,AC241) -> 1202.362353 | AD51: 1202.355268 | AE51: 32451.76472 | AF51: 32451.57349 | AG51: 47294.71013 | AH51: 47294.71013 | AI51: 1202.362353 | AJ51: 1202.355268 | AK51: 1202.362353 | AL51: 1202.067102 | AM51: 32451.76472 | AN51: 32443.79588 | AO51: 47294.71013 | AP51: 47283.12172 | AQ51: 1202.362353 | AR51: 1202.067102 | BA51: =SUM(BA89,BA127,BA165,BA203,BA241) -> 21636714.05 | BB51: 21631339.67 | BC51: 583974998.8 | BD51: 583829944.2 | BE51: 845753788.7 | BF51: 845544149.9 | BG51: 21636714.05 | BH51: 21631339.67 | BI51: 35000 | BJ51: 618.19183 | BK51: 618.0382762 | BL51: 16684.99996 | BM51: 16680.85555 | BN51: 24164.39396 | BO51: 24158.40428 | BP51: 618.19183 | BQ51: 618.0382762
B52: Male 55-59 | C52: 56.950867 | D52: 80.66087 | E52: male | F52: ALL | H52: =SUM(H90,H128,H166,H204,H242) -> 180737 | I52: 0 | J52: 96764 | K52: 1595.693672 | L52: 1595.331278 | M52: 36238.20808 | N52: 36229.9781 | O52: 51591.13693 | P52: 51579.66333 | Q52: 1595.693672 | R52: 1595.331278 | T52: =SUM(T90,T128,T166,T204,T242) -> 1595.693672 | U52: 1595.67353 | V52: 36238.20808 | W52: 36237.75066 | X52: 51591.13693 | Y52: 51589.94185 | Z52: 1595.693672 | AA52: 1595.67353 | AC52: =SUM(AC90,AC128,AC166,AC204,AC242) -> 1595.693672 | AD52: 1595.684403 | AE52: 36238.20808 | AF52: 36237.99758 | AG52: 51591.13693 | AH52: 51591.13693 | AI52: 1595.693672 | AJ52: 1595.684403 | AK52: 1595.693672 | AL52: 1595.301867 | AM52: 36238.20808 | AN52: 36229.31018 | AO52: 51591.13693 | AP52: 51578.46826 | AQ52: 1595.693672 | AR52: 1595.301867 | BA52: =SUM(BA90,BA128,BA166,BA204,BA242) -> 29153067.51 | BB52: 29145815.03 | BC52: 662066250.7 | BD52: 661901546.8 | BE52: 936266656.8 | BF52: 936033753.4 | BG52: 29153067.51 | BH52: 29145815.03 | BI52: 32500 | BJ52: 897.017462 | BK52: 896.7943087 | BL52: 20371.26925 | BM52: 20366.20144 | BN52: 28808.20482 | BO52: 28801.03857 | BP52: 897.017462 | BQ52: 896.7943087
B53: Male 60-64 | C53: 61.942989 | D53: 81.61299 | E53: male | F53: ALL | H53: =SUM(H91,H129,H167,H205,H243) -> 156406 | I53: 0 | J53: 82275 | K53: 1990.588342 | L53: 1990.146751 | M53: 37164.28633 | N53: 37156.04183 | O53: 53033.32073 | P53: 53021.75567 | Q53: 1990.588342 | R53: 1990.146751 | T53: =SUM(T91,T129,T167,T205,T243) -> 1990.588342 | U53: 1990.564028 | V53: 37164.28633 | W53: 37163.83239 | X53: 53033.32073 | Y53: 53032.12859 | Z53: 1990.588342 | AA53: 1990.564028 | AC53: =SUM(AC91,AC129,AC167,AC205,AC243) -> 1990.588342 | AD53: 1990.577175 | AE53: 37164.28633 | AF53: 37164.07784 | AG53: 53033.32073 | AH53: 53033.32073 | AI53: 1990.588342 | AJ53: 1990.577175 | AK53: 1990.588342 | AL53: 1990.11127 | AM53: 37164.28633 | AN53: 37155.3794 | AO53: 53033.32073 | AP53: 53020.56353 | AQ53: 1990.588342 | AR53: 1990.11127 | BA53: =SUM(BA91,BA129,BA167,BA205,BA243) -> 39136617.9 | BB53: 39127052.53 | BC53: 730680695.3 | BD53: 730502109.9 | BE53: 1031793596 | BF53: 1031540583 | BG53: 39136617.9 | BH53: 39127052.53 | BI53: 30000 | BJ53: 1304.55393 | BK53: 1304.235084 | BL53: 24356.02318 | BM53: 24350.07033 | BN53: 34393.11986 | BO53: 34384.68611 | BP53: 1304.55393 | BQ53: 1304.235084
B54: Male 65-69 | C54: 67.05442 | D54: 82.95442 | E54: male | F54: ALL | H54: =SUM(H92,H130,H168,H206,H244) -> 153467 | I54: 0 | J54: 79033 | K54: 2845.43991 | L54: 2844.823391 | M54: 42397.05466 | N54: 42387.86852 | O54: 62174.33177 | P54: 62161.04743 | Q54: 2845.43991 | R54: 2844.823391 | T54: =SUM(T92,T130,T168,T206,T244) -> 2845.43991 | U54: 2845.407032 | V54: 42397.05466 | W54: 42396.56477 | X54: 62174.33177 | Y54: 62173.0056 | Z54: 2845.43991 | AA54: 2845.407032 | AC54: =SUM(AC92,AC130,AC168,AC206,AC244) -> 2845.43991 | AD54: 2845.424785 | AE54: 42397.05466 | AF54: 42396.8293 | AG54: 62174.33177 | AH54: 62174.33177 | AI54: 2845.43991 | AJ54: 2845.424785 | AK54: 2845.43991 | AL54: 2844.775387 | AM54: 42397.05466 | AN54: 42387.15327 | AO54: 62174.33177 | AP54: 62159.72125 | AQ54: 2845.43991 | AR54: 2844.775387 | BA54: =SUM(BA92,BA130,BA168,BA206,BA244) -> 52584699.03 | BB54: 52572102.57 | BC54: 783512015.6 | BD54: 783324328.3 | BE54: 1133962873 | BF54: 1133689746 | BG54: 52584699.03 | BH54: 52572102.57 | BI54: 27500 | BJ54: 1912.170874 | BK54: 1911.712821 | BL54: 28491.34602 | BM54: 28484.52103 | BN54: 41235.01357 | BO54: 41225.08167 | BP54: 1912.170874 | BQ54: 1911.712821
B55: Male 70-74 | C55: 71.891098 | D55: 84.3411 | E55: male | F55: ALL | H55: =SUM(H93,H131,H169,H207,H245) -> 111869 | I55: 0 | J55: 57545 | K55: 2974.779811 | L55: 2974.138616 | M55: 34061.23479 | N55: 34053.8931 | O55: 53814.8044 | P55: 53803.30988 | Q55: 2974.779811 | R55: 2974.138616 | T55: =SUM(T93,T131,T169,T207,T245) -> 2974.779811 | U55: 2974.74608 | V55: 34061.23479 | W55: 34060.84857 | X55: 53814.8044 | Y55: 53813.67421 | Z55: 2974.779811 | AA55: 2974.74608 | AC55: =SUM(AC93,AC131,AC169,AC207,AC245) -> 2974.779811 | AD55: 2974.764311 | AE55: 34061.23479 | AF55: 34061.05731 | AG55: 53814.8044 | AH55: 53814.8044 | AI55: 2974.779811 | AJ55: 2974.764311 | AK55: 2974.779811 | AL55: 2974.089385 | AM55: 34061.23479 | AN55: 34053.32941 | AO55: 53814.8044 | AP55: 53802.1797 | AQ55: 2974.779811 | AR55: 2974.089385 | BA55: =SUM(BA93,BA131,BA169,BA207,BA245) -> 68541049.4 | BB55: 68524704.97 | BC55: 784795152.7 | BD55: 784608008.9 | BE55: 1223954580 | BF55: 1223659739 | BG55: 68541049.4 | BH55: 68524704.97 | BI55: 25000 | BJ55: 2741.641976 | BK55: 2740.988199 | BL55: 31391.80611 | BM55: 31384.32036 | BN55: 48958.18319 | BO55: 48946.38957 | BP55: 2741.641976 | BQ55: 2740.988199
B56: Male 75-79 | C56: 76.9077 | D56: 86.3577 | E56: male | F56: ALL | H56: =SUM(H94,H132,H170,H208,H246) -> 82515 | I56: 0 | J56: 43868 | K56: 3204.941532 | L56: 3204.235777 | M56: 27081.75595 | N56: 27075.79232 | O56: 47629.86304 | P56: 47619.36952 | Q56: 0 | R56: 0 | T56: =SUM(T94,T132,T170,T208,T246) -> 3204.941532 | U56: 3204.904208 | V56: 27081.75595 | W56: 27081.44056 | X56: 47629.86304 | Y56: 47628.8253 | Z56: 0 | AA56: 0 | AC56: =SUM(AC94,AC132,AC170,AC208,AC246) -> 3204.941532 | AD56: 3204.92437 | AE56: 27081.75595 | AF56: 27081.61093 | AG56: 47629.86304 | AH56: 47629.86304 | AI56: 0 | AJ56: 0 | AK56: 3204.941532 | AL56: 3204.181291 | AM56: 27081.75595 | AN56: 27075.33191 | AO56: 47629.86304 | AP56: 47618.33178 | AQ56: 0 | AR56: 0 | BA56: =SUM(BA94,BA132,BA170,BA208,BA246) -> 79500841.64 | BB56: 79481585.02 | BC56: 671782111.9 | BD56: 671619393.4 | BE56: 1170005852 | BF56: 1169716740 | BG56: 0 | BH56: 0 | BI56: 20000 | BJ56: 3975.042082 | BK56: 3974.079251 | BL56: 33589.10559 | BM56: 33580.96967 | BN56: 58500.29258 | BO56: 58485.83699 | BP56: 0 | BQ56: 0
B57: Male 80-84 | C57: 81.797089 | D57: 88.62709 | E57: male | F57: ALL | H57: =SUM(H95,H133,H171,H209,H247) -> 56201 | I57: 0 | J57: 29965 | K57: 3103.948479 | L57: 3103.269209 | M57: 18096.02274 | N57: 18092.06259 | O57: 38436.06303 | P57: 38427.56115 | Q57: 0 | R57: 0 | T57: =SUM(T95,T133,T171,T209,T247) -> 3103.948479 | U57: 3103.912172 | V57: 18096.02274 | W57: 18095.81107 | X57: 38436.06303 | Y57: 38435.21179 | Z57: 0 | AA57: 0 | AC57: =SUM(AC95,AC133,AC171,AC209,AC247) -> 3103.948479 | AD57: 3103.931787 | AE57: 18096.02274 | AF57: 18095.92542 | AG57: 38436.06303 | AH57: 38436.06303 | AI57: 0 | AJ57: 0 | AK57: 3103.948479 | AL57: 3103.216209 | AM57: 18096.02274 | AN57: 18091.7536 | AO57: 38436.06303 | AP57: 38426.70992 | AQ57: 0 | AR57: 0 | BA57: =SUM(BA95,BA133,BA171,BA209,BA247) -> 71140704.03 | BB57: 71123568.44 | BC57: 414750375.6 | BD57: 414650475.1 | BE57: 869840774.2 | BF57: 869624644.9 | BG57: 0 | BH57: 0 | BI57: 12500 | BJ57: 5691.256322 | BK57: 5689.885475 | BL57: 33180.03005 | BM57: 33172.03801 | BN57: 69587.26194 | BO57: 69569.97159 | BP57: 0 | BQ57: 0
B58: Male 85-89 | C58: 86.630753 | D58: 91.42075 | E58: male | F58: ALL | H58: =SUM(H96,H134,H172,H210,H248) -> 28287 | I58: 0 | J58: 14822 | K58: 2197.859553 | L58: 2197.392672 | M58: 8329.881111 | N58: 8328.111635 | O58: 22836.6917 | P58: 22831.71734 | Q58: 0 | R58: 0 | T58: =SUM(T96,T134,T172,T210,T248) -> 2197.859553 | U58: 2197.8344 | V58: 8329.881111 | W58: 8329.785784 | X58: 22836.6917 | Y58: 22836.18854 | Z58: 0 | AA58: 0 | AC58: =SUM(AC96,AC134,AC172,AC210,AC248) -> 2197.859553 | AD58: 2197.848052 | AE58: 8329.881111 | AF58: 8329.837525 | AG58: 22836.6917 | AH58: 22836.6917 | AI58: 0 | AJ58: 0 | AK58: 2197.859553 | AL58: 2197.35602 | AM58: 8329.881111 | AN58: 8327.972722 | AO58: 22836.6917 | AP58: 22831.21418 | AQ58: 0 | AR58: 0 | BA58: =SUM(BA96,BA134,BA172,BA210,BA248) -> 60596740.92 | BB58: 60582479.17 | BC58: 229661466.3 | BD58: 229607414.3 | BE58: 619589003.4 | BF58: 619436166.3 | BG58: 0 | BH58: 0 | BI58: 7500 | BJ58: 8079.565456 | BK58: 8077.663889 | BL58: 30621.52884 | BM58: 30614.32191 | BN58: 82611.86713 | BO58: 82591.48883 | BP58: 0 | BQ58: 0
B59: Male 90+ | C59: 92.215477 | D59: 95.51548 | E59: male | F59: ALL | H59: =SUM(H97,H135,H173,H211,H249) -> 12017 | I59: 0 | J59: =SUM(J97,J135,J173,J211,J249) -> 6105 | K59: 1387.491802 | L59: 1387.215712 | M59: 3191.235308 | N59: 3190.600299 | O59: 11815.7848 | P59: 11813.30052 | Q59: 0 | R59: 0 | T59: =SUM(T97,T135,T173,T211,T249) -> 1387.491802 | U59: 1387.476641 | V59: 3191.235308 | W59: 3191.200436 | X59: 11815.7848 | Y59: 11815.52814 | Z59: 0 | AA59: 0 | AC59: =SUM(AC97,AC135,AC173,AC211,AC249) -> 1387.491802 | AD59: 1387.484868 | AE59: 3191.235308 | AF59: 3191.21936 | AG59: 11815.7848 | AH59: 11815.7848 | AI59: 0 | AJ59: 0 | AK59: 1387.491802 | AL59: 1387.193617 | AM59: 3191.235308 | AN59: 3190.54948 | AO59: 11815.7848 | AP59: 11813.04386 | AQ59: 0 | AR59: 0 | BA59: =SUM(BA97,BA135,BA173,BA211,BA249) -> 60083927.03 | BB59: 60070717.41 | BC59: 138193212.4 | BD59: 138162830.3 | BE59: 503620030.1 | BF59: 503500247 | BG59: 0 | BH59: 0 | BI59: 5000 | BJ59: =BA59/$BI59 -> 12016.78541 | BK59: 12014.14348 | BL59: =BC59/$BI59 -> 27638.64248 | BM59: 27632.56605 | BN59: 100724.006 | BO59: 100700.0494 | BP59: 0 | BQ59: 0
B60: Female 0-4 | C60: 2.0384007 | D60: 81.468401 | E60: female | F60: 1 | G60: 1 | H60: =HLOOKUP(Calculations!$E$2,'Population 2016'!$C$3:$BC$249,'Population 2016'!BD60,FALSE) -> 0 | I60: 0 | J60: =HLOOKUP(Calculations!$E$2,Pop2016_in_settlements!$C$3:$BC$249,Pop2016_in_settlements!$BD60,FALSE) -> 0 | K60: =IF(AND(OR(Calculations!$E$2="Orkney Health Board",Calculations!$E$2="Orkney Islands Local Authority"),$F60=1),0,IF(AND(OR(Calculations!$E$2="Shetland Health Board",Calculations!$E$2="Western Isles Health Board",Calculations!$E$2="Shetland Islands Local Authority",Calculations!$E$2="Eilean Siar Local Authority"),OR($F60=1,$F60=5)),0,new_ci(VALUE(LEFT(Options!$B$14,2)),$C60,$E60,$F60,2016,$I60/10,1,$H60/10,$G60*$H60/10,RateRatios_accidents!$B$5)*10)) ->  | L60: =IF(AND(OR(Calculations!$E$2="Orkney Health Board",Calculations!$E$2="Orkney Islands Local Authority"),$F60=1),0,IF(AND(OR(Calculations!$E$2="Shetland Health Board",Calculations!$E$2="Western Isles Health Board",Calculations!$E$2="Shetland Islands Local Authority",Calculations!$E$2="Eilean Siar Local Authority"),OR($F60=1,$F60=5)),0,new_ci(VALUE(LEFT(Options!$B$14,2)),$C60,$E60,$F60,2016,$I60/10+$J60/10,1,$H60/10,$G60*$H60/10,RateRatios_accidents!$B$5)*10)) ->  | M60: =IF(AND(OR(Calculations!$E$2="Orkney Health Board",Calculations!$E$2="Orkney Islands Local Authority"),$F60=1),0,IF(AND(OR(Calculations!$E$2="Shetland Health Board",Calculations!$E$2="Western Isles Health Board",Calculations!$E$2="Shetland Islands Local Authority",Calculations!$E$2="Eilean Siar Local Authority"),OR($F60=1,$F60=5)),0,new_yllv2(VALUE(LEFT(Options!$B$14,2)),$C60,$D60,$E60,$F60,2016,$I60/10,1,$H60/10,$G60*$H60/10,RateRatios_accidents!$B$5)*10)) ->  | N60: =IF(AND(OR(Calculations!$E$2="Orkney Health Board",Calculations!$E$2="Orkney Islands Local Authority"),$F60=1),0,IF(AND(OR(Calculations!$E$2="Shetland Health Board",Calculations!$E$2="Western Isles Health Board",Calculations!$E$2="Shetland Islands Local Authority",Calculations!$E$2="Eilean Siar Local Authority"),OR($F60=1,$F60=5)),0,new_yllv2(VALUE(LEFT(Options!$B$14,2)),$C60,$D60,$E60,$F60,2016,$I60/10+$J60/10,1,$H60/10,$G60*$H60/10,RateRatios_accidents!$B$5)*10)) ->  | O60: =IF(AND(OR(Calculations!$E$2="Orkney Health Board",Calculations!$E$2="Orkney Islands Local Authority"),$F60=1),0,IF(AND(OR(Calculations!$E$2="Shetland Health Board",Calculations!$E$2="Western Isles Health Board",Calculations!$E$2="Shetland Islands Local Authority",Calculations!$E$2="Eilean Siar Local Authority"),OR($F60=1,$F60=5)),0,hosp_count(VALUE(LEFT(Options!$B$14,2)),$C60,$E60,$F60,2016,$I60/10,1,$H60/10,$G60*$H60/10, RateRatios_accidents!$B$4, RateRatios_accidents!$B$5)*10)) ->  | P60: =IF(AND(OR(Calculations!$E$2="Orkney Health Board",Calculations!$E$2="Orkney Islands Local Authority"),$F60=1),0,IF(AND(OR(Calculations!$E$2="Shetland Health Board",Calculations!$E$2="Western Isles Health Board",Calculations!$E$2="Shetland Islands Local Authority",Calculations!$E$2="Eilean Siar Local Authority"),OR($F60=1,$F60=5)),0,hosp_count(VALUE(LEFT(Options!$B$14,2)),$C60,$E60,$F60,2016,$I60/10+$J60/10,1,$H60/10,$G60*$H60/10, RateRatios_accidents!$B$4, RateRatios_accidents!$B$5)*10)) ->  | Q60: =IF(AND(OR(Calculations!$E$2="Orkney Health Board",Calculations!$E$2="Orkney Islands Local Authority"),$F60=1),0,IF(AND(OR(Calculations!$E$2="Shetland Health Board",Calculations!$E$2="Western Isles Health Board",Calculations!$E$2="Shetland Islands Local Authority",Calculations!$E$2="Eilean Siar Local Authority"),OR($F60=1,$F60=5)),0,prem_mort(VALUE(LEFT(Options!$B$14,2)),$C60,$E60,$F60,2016,$I60/10,1,$H60/10,$G60*$H60/10,RateRatios_accidents!$B$5)*10)) ->  | R60: =IF(AND(OR(Calculations!$E$2="Orkney Health Board",Calculations!$E$2="Orkney Islands Local Authority"),$F60=1),0,IF(AND(OR(Calculations!$E$2="Shetland Health Board",Calculations!$E$2="Western Isles Health Board",Calculations!$E$2="Shetland Islands Local Authority",Calculations!$E$2="Eilean Siar Local Authority"),OR($F60=1,$F60=5)),0,prem_mort(VALUE(LEFT(Options!$B$14,2)),$C60,$E60,$F60,2016,$I60/10+$J60/10,1,$H60/10,$G60*$H60/10,RateRatios_accidents!$B$5)*10)) ->  | T60: =IF(AND(OR(Calculations!$E$2="Orkney Health Board",Calculations!$E$2="Orkney Islands Local Authority"),$F60=1),0,IF(AND(OR(Calculations!$E$2="Shetland Health Board",Calculations!$E$2="Western Isles Health Board",Calculations!$E$2="Shetland Islands Local Authority",Calculations!$E$2="Eilean Siar Local Authority"),OR($F60=1,$F60=5)),0,new_ci(VALUE(LEFT(Options!$B$14,2)),$C60,$E60,$F60,2016,$I60/10,1,$H60/10,$G60*$H60/10,RateRatios_airpollution!$C60)*10)) ->  | U60: =IF(AND(OR(Calculations!$E$2="Orkney Health Board",Calculations!$E$2="Orkney Islands Local Authority"),$F60=1),0,IF(AND(OR(Calculations!$E$2="Shetland Health Board",Calculations!$E$2="Western Isles Health Board",Calculations!$E$2="Shetland Islands Local Authority",Calculations!$E$2="Eilean Siar Local Authority"),OR($F60=1,$F60=5)),0,new_ci(VALUE(LEFT(Options!$B$14,2)),$C60,$E60,$F60,2016,$I60/10+$J60/10,1,$H60/10,$G60*$H60/10,RateRatios_airpollution!$C60)*10)) ->  | V60: =IF(AND(OR(Calculations!$E$2="Orkney Health Board",Calculations!$E$2="Orkney Islands Local Authority"),$F60=1),0,IF(AND(OR(Calculations!$E$2="Shetland Health Board",Calculations!$E$2="Western Isles Health Board",Calculations!$E$2="Shetland Islands Local Authority",Calculations!$E$2="Eilean Siar Local Authority"),OR($F60=1,$F60=5)),0,new_yllv2(VALUE(LEFT(Options!$B$14,2)),$C60,$D60,$E60,$F60,2016,$I60/10,1,$H60/10,$G60*$H60/10,RateRatios_airpollution!$C60)*10)) ->  | W60: =IF(AND(OR(Calculations!$E$2="Orkney Health Board",Calculations!$E$2="Orkney Islands Local Authority"),$F60=1),0,IF(AND(OR(Calculations!$E$2="Shetland Health Board",Calculations!$E$2="Western Isles Health Board",Calculations!$E$2="Shetland Islands Local Authority",Calculations!$E$2="Eilean Siar Local Authority"),OR($F60=1,$F60=5)),0,new_yllv2(VALUE(LEFT(Options!$B$14,2)),$C60,$D60,$E60,$F60,2016,$I60/10+$J60/10,1,$H60/10,$G60*$H60/10,RateRatios_airpollution!$C60)*10)) ->  | X60: =IF(AND(OR(Calculations!$E$2="Orkney Health Board",Calculations!$E$2="Orkney Islands Local Authority"),$F60=1),0,IF(AND(OR(Calculations!$E$2="Shetland Health Board",Calculations!$E$2="Western Isles Health Board",Calculations!$E$2="Shetland Islands Local Authority",Calculations!$E$2="Eilean Siar Local Authority"),OR($F60=1,$F60=5)),0,hosp_count(VALUE(LEFT(Options!$B$14,2)),$C60,$E60,$F60,2016,$I60/10,1,$H60/10,$G60*$H60/10, RateRatios_airpollution!$D60, RateRatios_airpollution!$C60)*10)) ->  | Y60: =IF(AND(OR(Calculations!$E$2="Orkney Health Board",Calculations!$E$2="Orkney Islands Local Authority"),$F60=1),0,IF(AND(OR(Calculations!$E$2="Shetland Health Board",Calculations!$E$2="Western Isles Health Board",Calculations!$E$2="Shetland Islands Local Authority",Calculations!$E$2="Eilean Siar Local Authority"),OR($F60=1,$F60=5)),0,hosp_count(VALUE(LEFT(Options!$B$14,2)),$C60,$E60,$F60,2016,$I60/10+$J60/10,1,$H60/10,$G60*$H60/10, RateRatios_airpollution!$D60, RateRatios_airpollution!$C60)*10)) ->  | Z60: =IF(AND(OR(Calculations!$E$2="Orkney Health Board",Calculations!$E$2="Orkney Islands Local Authority"),$F60=1),0,IF(AND(OR(Calculations!$E$2="Shetland Health Board",Calculations!$E$2="Western Isles Health Board",Calculations!$E$2="Shetland Islands Local Authority",Calculations!$E$2="Eilean Siar Local Authority"),OR($F60=1,$F60=5)),0,prem_mort(VALUE(LEFT(Options!$B$14,2)),$C60,$E60,$F60,2016,$I60/10,1,$H60/10,$G60*$H60/10,RateRatios_airpollution!$C60)*10)) ->  | AA60: =IF(AND(OR(Calculations!$E$2="Orkney Health Board",Calculations!$E$2="Orkney Islands Local Authority"),$F60=1),0,IF(AND(OR(Calculations!$E$2="Shetland Health Board",Calculations!$E$2="Western Isles Health Board",Calculations!$E$2="Shetland Islands Local Authority",Calculations!$E$2="Eilean Siar Local Authority"),OR($F60=1,$F60=5)),0,prem_mort(VALUE(LEFT(Options!$B$14,2)),$C60,$E60,$F60,2016,$I60/10+$J60/10,1,$H60/10,$G60*$H60/10,RateRatios_airpollution!$C60)*10)) ->  | AC60: =IF(AND(OR(Calculations!$E$2="Orkney Health Board",Calculations!$E$2="Orkney Islands Local Authority"),$F60=1),0,IF(AND(OR(Calculations!$E$2="Shetland Health Board",Calculations!$E$2="Western Isles Health Board",Calculations!$E$2="Shetland Islands Local Authority",Calculations!$E$2="Eilean Siar Local Authority"),OR($F60=1,$F60=5)),0,new_ci(VALUE(LEFT(Options!$B$14,2)),$C60,$E60,$F60,2016,$I60/10,1,$H60/10,$G60*$H60/10,RateRatios_airpollution!$E60)*10)) ->  | AD60: =IF(AND(OR(Calculations!$E$2="Orkney Health Board",Calculations!$E$2="Orkney Islands Local Authority"),$F60=1),0,IF(AND(OR(Calculations!$E$2="Shetland Health Board",Calculations!$E$2="Western Isles Health Board",Calculations!$E$2="Shetland Islands Local Authority",Calculations!$E$2="Eilean Siar Local Authority"),OR($F60=1,$F60=5)),0,new_ci(VALUE(LEFT(Options!$B$14,2)),$C60,$E60,$F60,2016,$I60/10+$J60/10,1,$H60/10,$G60*$H60/10,RateRatios_airpollution!$E60)*10)) ->  | AE60: =IF(AND(OR(Calculations!$E$2="Orkney Health Board",Calculations!$E$2="Orkney Islands Local Authority"),$F60=1),0,IF(AND(OR(Calculations!$E$2="Shetland Health Board",Calculations!$E$2="Western Isles Health Board",Calculations!$E$2="Shetland Islands Local Authority",Calculations!$E$2="Eilean Siar Local Authority"),OR($F60=1,$F60=5)),0,new_yllv2(VALUE(LEFT(Options!$B$14,2)),$C60,$D60,$E60,$F60,2016,$I60/10,1,$H60/10,$G60*$H60/10,RateRatios_airpollution!$E60)*10)) ->  | AF60: =IF(AND(OR(Calculations!$E$2="Orkney Health Board",Calculations!$E$2="Orkney Islands Local Authority"),$F60=1),0,IF(AND(OR(Calculations!$E$2="Shetland Health Board",Calculations!$E$2="Western Isles Health Board",Calculations!$E$2="Shetland Islands Local Authority",Calculations!$E$2="Eilean Siar Local Authority"),OR($F60=1,$F60=5)),0,new_yllv2(VALUE(LEFT(Options!$B$14,2)),$C60,$D60,$E60,$F60,2016,$I60/10+$J60/10,1,$H60/10,$G60*$H60/10,RateRatios_airpollution!$E60)*10)) ->  | AG60: =IF(AND(OR(Calculations!$E$2="Orkney Health Board",Calculations!$E$2="Orkney Islands Local Authority"),$F60=1),0,IF(AND(OR(Calculations!$E$2="Shetland Health Board",Calculations!$E$2="Western Isles Health Board",Calculations!$E$2="Shetland Islands Local Authority",Calculations!$E$2="Eilean Siar Local Authority"),OR($F60=1,$F60=5)),0,hosp_count(VALUE(LEFT(Options!$B$14,2)),$C60,$E60,$F60,2016,$I60/10,1,$H60/10,$G60*$H60/10, RateRatios_airpollution!$F60, RateRatios_airpollution!$E60)*10)) ->  | AH60: =IF(AND(OR(Calculations!$E$2="Orkney Health Board",Calculations!$E$2="Orkney Islands Local Authority"),$F60=1),0,IF(AND(OR(Calculations!$E$2="Shetland Health Board",Calculations!$E$2="Western Isles Health Board",Calculations!$E$2="Shetland Islands Local Authority",Calculations!$E$2="Eilean Siar Local Authority"),OR($F60=1,$F60=5)),0,hosp_count(VALUE(LEFT(Options!$B$14,2)),$C60,$E60,$F60,2016,$I60/10+$J60/10,1,$H60/10,$G60*$H60/10, RateRatios_airpollution!$F60, RateRatios_airpollution!$E60)*10)) ->  | AI60: =IF(AND(OR(Calculations!$E$2="Orkney Health Board",Calculations!$E$2="Orkney Islands Local Authority"),$F60=1),0,IF(AND(OR(Calculations!$E$2="Shetland Health Board",Calculations!$E$2="Western Isles Health Board",Calculations!$E$2="Shetland Islands Local Authority",Calculations!$E$2="Eilean Siar Local Authority"),OR($F60=1,$F60=5)),0,prem_mort(VALUE(LEFT(Options!$B$14,2)),$C60,$E60,$F60,2016,$I60/10,1,$H60/10,$G60*$H60/10,RateRatios_airpollution!$E60)*10)) ->  | AJ60: =IF(AND(OR(Calculations!$E$2="Orkney Health Board",Calculations!$E$2="Orkney Islands Local Authority"),$F60=1),0,IF(AND(OR(Calculations!$E$2="Shetland Health Board",Calculations!$E$2="Western Isles Health Board",Calculations!$E$2="Shetland Islands Local Authority",Calculations!$E$2="Eilean Siar Local Authority"),OR($F60=1,$F60=5)),0,prem_mort(VALUE(LEFT(Options!$B$14,2)),$C60,$E60,$F60,2016,$I60/10+$J60/10,1,$H60/10,$G60*$H60/10,RateRatios_airpollution!$E60)*10)) ->  | AS60: =K60*100000/$H60 ->  | AT60: =L60*100000/$H60 ->  | AU60: =M60*100000/$H60 ->  | AV60: =N60*100000/$H60 ->  | AW60: =O60*100000/$H60 ->  | AX60: =P60*100000/$H60 ->  | AY60: =Q60*100000/$H60 ->  | AZ60: =R60*100000/$H60 ->  | BA60: =AS60*$BI60 ->  | BB60: =AT60*$BI60 ->  | BC60: =AU60*$BI60 ->  | BD60: =AV60*$BI60 ->  | BE60: =AW60*$BI60 ->  | BF60: =AX60*$BI60 ->  | BG60: =AY60*$BI60 ->  | BH60: =AZ60*$BI60 ->  | BI60: 5000
B61: Female 5-9 | C61: 6.9792795 | D61: 81.43928 | E61: female | F61: 1 | G61: 1 | H61: =HLOOKUP(Calculations!$E$2,'Population 2016'!$C$3:$BC$249,'Population 2016'!BD61,FALSE) -> 0 | I61: 0 | J61: =HLOOKUP(Calculations!$E$2,Pop2016_in_settlements!$C$3:$BC$249,Pop2016_in_settlements!$BD61,FALSE) -> 0 | K61: =IF(AND(OR(Calculations!$E$2="Orkney Health Board",Calculations!$E$2="Orkney Islands Local Authority"),$F61=1),0,IF(AND(OR(Calculations!$E$2="Shetland Health Board",Calculations!$E$2="Western Isles Health Board",Calculations!$E$2="Shetland Islands Local Authority",Calculations!$E$2="Eilean Siar Local Authority"),OR($F61=1,$F61=5)),0,new_ci(VALUE(LEFT(Options!$B$14,2)),$C61,$E61,$F61,2016,$I61/10,1,$H61/10,$G61*$H61/10,RateRatios_accidents!$B$5)*10)) ->  | L61: =IF(AND(OR(Calculations!$E$2="Orkney Health Board",Calculations!$E$2="Orkney Islands Local Authority"),$F61=1),0,IF(AND(OR(Calculations!$E$2="Shetland Health Board",Calculations!$E$2="Western Isles Health Board",Calculations!$E$2="Shetland Islands Local Authority",Calculations!$E$2="Eilean Siar Local Authority"),OR($F61=1,$F61=5)),0,new_ci(VALUE(LEFT(Options!$B$14,2)),$C61,$E61,$F61,2016,$I61/10+$J61/10,1,$H61/10,$G61*$H61/10,RateRatios_accidents!$B$5)*10)) ->  | M61: =IF(AND(OR(Calculations!$E$2="Orkney Health Board",Calculations!$E$2="Orkney Islands Local Authority"),$F61=1),0,IF(AND(OR(Calculations!$E$2="Shetland Health Board",Calculations!$E$2="Western Isles Health Board",Calculations!$E$2="Shetland Islands Local Authority",Calculations!$E$2="Eilean Siar Local Authority"),OR($F61=1,$F61=5)),0,new_yllv2(VALUE(LEFT(Options!$B$14,2)),$C61,$D61,$E61,$F61,2016,$I61/10,1,$H61/10,$G61*$H61/10,RateRatios_accidents!$B$5)*10)) ->  | N61: =IF(AND(OR(Calculations!$E$2="Orkney Health Board",Calculations!$E$2="Orkney Islands Local Authority"),$F61=1),0,IF(AND(OR(Calculations!$E$2="Shetland Health Board",Calculations!$E$2="Western Isles Health Board",Calculations!$E$2="Shetland Islands Local Authority",Calculations!$E$2="Eilean Siar Local Authority"),OR($F61=1,$F61=5)),0,new_yllv2(VALUE(LEFT(Options!$B$14,2)),$C61,$D61,$E61,$F61,2016,$I61/10+$J61/10,1,$H61/10,$G61*$H61/10,RateRatios_accidents!$B$5)*10)) ->  | O61: =IF(AND(OR(Calculations!$E$2="Orkney Health Board",Calculations!$E$2="Orkney Islands Local Authority"),$F61=1),0,IF(AND(OR(Calculations!$E$2="Shetland Health Board",Calculations!$E$2="Western Isles Health Board",Calculations!$E$2="Shetland Islands Local Authority",Calculations!$E$2="Eilean Siar Local Authority"),OR($F61=1,$F61=5)),0,hosp_count(VALUE(LEFT(Options!$B$14,2)),$C61,$E61,$F61,2016,$I61/10,1,$H61/10,$G61*$H61/10, RateRatios_accidents!$B$4, RateRatios_accidents!$B$5)*10)) ->  | P61: =IF(AND(OR(Calculations!$E$2="Orkney Health Board",Calculations!$E$2="Orkney Islands Local Authority"),$F61=1),0,IF(AND(OR(Calculations!$E$2="Shetland Health Board",Calculations!$E$2="Western Isles Health Board",Calculations!$E$2="Shetland Islands Local Authority",Calculations!$E$2="Eilean Siar Local Authority"),OR($F61=1,$F61=5)),0,hosp_count(VALUE(LEFT(Options!$B$14,2)),$C61,$E61,$F61,2016,$I61/10+$J61/10,1,$H61/10,$G61*$H61/10, RateRatios_accidents!$B$4, RateRatios_accidents!$B$5)*10)) ->  | Q61: =IF(AND(OR(Calculations!$E$2="Orkney Health Board",Calculations!$E$2="Orkney Islands Local Authority"),$F61=1),0,IF(AND(OR(Calculations!$E$2="Shetland Health Board",Calculations!$E$2="Western Isles Health Board",Calculations!$E$2="Shetland Islands Local Authority",Calculations!$E$2="Eilean Siar Local Authority"),OR($F61=1,$F61=5)),0,prem_mort(VALUE(LEFT(Options!$B$14,2)),$C61,$E61,$F61,2016,$I61/10,1,$H61/10,$G61*$H61/10,RateRatios_accidents!$B$5)*10)) ->  | R61: =IF(AND(OR(Calculations!$E$2="Orkney Health Board",Calculations!$E$2="Orkney Islands Local Authority"),$F61=1),0,IF(AND(OR(Calculations!$E$2="Shetland Health Board",Calculations!$E$2="Western Isles Health Board",Calculations!$E$2="Shetland Islands Local Authority",Calculations!$E$2="Eilean Siar Local Authority"),OR($F61=1,$F61=5)),0,prem_mort(VALUE(LEFT(Options!$B$14,2)),$C61,$E61,$F61,2016,$I61/10+$J61/10,1,$H61/10,$G61*$H61/10,RateRatios_accidents!$B$5)*10)) ->  | T61: =IF(AND(OR(Calculations!$E$2="Orkney Health Board",Calculations!$E$2="Orkney Islands Local Authority"),$F61=1),0,IF(AND(OR(Calculations!$E$2="Shetland Health Board",Calculations!$E$2="Western Isles Health Board",Calculations!$E$2="Shetland Islands Local Authority",Calculations!$E$2="Eilean Siar Local Authority"),OR($F61=1,$F61=5)),0,new_ci(VALUE(LEFT(Options!$B$14,2)),$C61,$E61,$F61,2016,$I61/10,1,$H61/10,$G61*$H61/10,RateRatios_airpollution!$C61)*10)) ->  | U61: =IF(AND(OR(Calculations!$E$2="Orkney Health Board",Calculations!$E$2="Orkney Islands Local Authority"),$F61=1),0,IF(AND(OR(Calculations!$E$2="Shetland Health Board",Calculations!$E$2="Western Isles Health Board",Calculations!$E$2="Shetland Islands Local Authority",Calculations!$E$2="Eilean Siar Local Authority"),OR($F61=1,$F61=5)),0,new_ci(VALUE(LEFT(Options!$B$14,2)),$C61,$E61,$F61,2016,$I61/10+$J61/10,1,$H61/10,$G61*$H61/10,RateRatios_airpollution!$C61)*10)) ->  | V61: =IF(AND(OR(Calculations!$E$2="Orkney Health Board",Calculations!$E$2="Orkney Islands Local Authority"),$F61=1),0,IF(AND(OR(Calculations!$E$2="Shetland Health Board",Calculations!$E$2="Western Isles Health Board",Calculations!$E$2="Shetland Islands Local Authority",Calculations!$E$2="Eilean Siar Local Authority"),OR($F61=1,$F61=5)),0,new_yllv2(VALUE(LEFT(Options!$B$14,2)),$C61,$D61,$E61,$F61,2016,$I61/10,1,$H61/10,$G61*$H61/10,RateRatios_airpollution!$C61)*10)) ->  | W61: =IF(AND(OR(Calculations!$E$2="Orkney Health Board",Calculations!$E$2="Orkney Islands Local Authority"),$F61=1),0,IF(AND(OR(Calculations!$E$2="Shetland Health Board",Calculations!$E$2="Western Isles Health Board",Calculations!$E$2="Shetland Islands Local Authority",Calculations!$E$2="Eilean Siar Local Authority"),OR($F61=1,$F61=5)),0,new_yllv2(VALUE(LEFT(Options!$B$14,2)),$C61,$D61,$E61,$F61,2016,$I61/10+$J61/10,1,$H61/10,$G61*$H61/10,RateRatios_airpollution!$C61)*10)) ->  | X61: =IF(AND(OR(Calculations!$E$2="Orkney Health Board",Calculations!$E$2="Orkney Islands Local Authority"),$F61=1),0,IF(AND(OR(Calculations!$E$2="Shetland Health Board",Calculations!$E$2="Western Isles Health Board",Calculations!$E$2="Shetland Islands Local Authority",Calculations!$E$2="Eilean Siar Local Authority"),OR($F61=1,$F61=5)),0,hosp_count(VALUE(LEFT(Options!$B$14,2)),$C61,$E61,$F61,2016,$I61/10,1,$H61/10,$G61*$H61/10, RateRatios_airpollution!$D61, RateRatios_airpollution!$C61)*10)) ->  | Y61: =IF(AND(OR(Calculations!$E$2="Orkney Health Board",Calculations!$E$2="Orkney Islands Local Authority"),$F61=1),0,IF(AND(OR(Calculations!$E$2="Shetland Health Board",Calculations!$E$2="Western Isles Health Board",Calculations!$E$2="Shetland Islands Local Authority",Calculations!$E$2="Eilean Siar Local Authority"),OR($F61=1,$F61=5)),0,hosp_count(VALUE(LEFT(Options!$B$14,2)),$C61,$E61,$F61,2016,$I61/10+$J61/10,1,$H61/10,$G61*$H61/10, RateRatios_airpollution!$D61, RateRatios_airpollution!$C61)*10)) ->  | Z61: =IF(AND(OR(Calculations!$E$2="Orkney Health Board",Calculations!$E$2="Orkney Islands Local Authority"),$F61=1),0,IF(AND(OR(Calculations!$E$2="Shetland Health Board",Calculations!$E$2="Western Isles Health Board",Calculations!$E$2="Shetland Islands Local Authority",Calculations!$E$2="Eilean Siar Local Authority"),OR($F61=1,$F61=5)),0,prem_mort(VALUE(LEFT(Options!$B$14,2)),$C61,$E61,$F61,2016,$I61/10,1,$H61/10,$G61*$H61/10,RateRatios_airpollution!$C61)*10)) ->  | AA61: =IF(AND(OR(Calculations!$E$2="Orkney Health Board",Calculations!$E$2="Orkney Islands Local Authority"),$F61=1),0,IF(AND(OR(Calculations!$E$2="Shetland Health Board",Calculations!$E$2="Western Isles Health Board",Calculations!$E$2="Shetland Islands Local Authority",Calculations!$E$2="Eilean Siar Local Authority"),OR($F61=1,$F61=5)),0,prem_mort(VALUE(LEFT(Options!$B$14,2)),$C61,$E61,$F61,2016,$I61/10+$J61/10,1,$H61/10,$G61*$H61/10,RateRatios_airpollution!$C61)*10)) ->  | AC61: =IF(AND(OR(Calculations!$E$2="Orkney Health Board",Calculations!$E$2="Orkney Islands Local Authority"),$F61=1),0,IF(AND(OR(Calculations!$E$2="Shetland Health Board",Calculations!$E$2="Western Isles Health Board",Calculations!$E$2="Shetland Islands Local Authority",Calculations!$E$2="Eilean Siar Local Authority"),OR($F61=1,$F61=5)),0,new_ci(VALUE(LEFT(Options!$B$14,2)),$C61,$E61,$F61,2016,$I61/10,1,$H61/10,$G61*$H61/10,RateRatios_airpollution!$E61)*10)) ->  | AD61: =IF(AND(OR(Calculations!$E$2="Orkney Health Board",Calculations!$E$2="Orkney Islands Local Authority"),$F61=1),0,IF(AND(OR(Calculations!$E$2="Shetland Health Board",Calculations!$E$2="Western Isles Health Board",Calculations!$E$2="Shetland Islands Local Authority",Calculations!$E$2="Eilean Siar Local Authority"),OR($F61=1,$F61=5)),0,new_ci(VALUE(LEFT(Options!$B$14,2)),$C61,$E61,$F61,2016,$I61/10+$J61/10,1,$H61/10,$G61*$H61/10,RateRatios_airpollution!$E61)*10)) ->  | AE61: =IF(AND(OR(Calculations!$E$2="Orkney Health Board",Calculations!$E$2="Orkney Islands Local Authority"),$F61=1),0,IF(AND(OR(Calculations!$E$2="Shetland Health Board",Calculations!$E$2="Western Isles Health Board",Calculations!$E$2="Shetland Islands Local Authority",Calculations!$E$2="Eilean Siar Local Authority"),OR($F61=1,$F61=5)),0,new_yllv2(VALUE(LEFT(Options!$B$14,2)),$C61,$D61,$E61,$F61,2016,$I61/10,1,$H61/10,$G61*$H61/10,RateRatios_airpollution!$E61)*10)) ->  | AF61: =IF(AND(OR(Calculations!$E$2="Orkney Health Board",Calculations!$E$2="Orkney Islands Local Authority"),$F61=1),0,IF(AND(OR(Calculations!$E$2="Shetland Health Board",Calculations!$E$2="Western Isles Health Board",Calculations!$E$2="Shetland Islands Local Authority",Calculations!$E$2="Eilean Siar Local Authority"),OR($F61=1,$F61=5)),0,new_yllv2(VALUE(LEFT(Options!$B$14,2)),$C61,$D61,$E61,$F61,2016,$I61/10+$J61/10,1,$H61/10,$G61*$H61/10,RateRatios_airpollution!$E61)*10)) ->  | AG61: =IF(AND(OR(Calculations!$E$2="Orkney Health Board",Calculations!$E$2="Orkney Islands Local Authority"),$F61=1),0,IF(AND(OR(Calculations!$E$2="Shetland Health Board",Calculations!$E$2="Western Isles Health Board",Calculations!$E$2="Shetland Islands Local Authority",Calculations!$E$2="Eilean Siar Local Authority"),OR($F61=1,$F61=5)),0,hosp_count(VALUE(LEFT(Options!$B$14,2)),$C61,$E61,$F61,2016,$I61/10,1,$H61/10,$G61*$H61/10, RateRatios_airpollution!$F61, RateRatios_airpollution!$E61)*10)) ->  | AH61: =IF(AND(OR(Calculations!$E$2="Orkney Health Board",Calculations!$E$2="Orkney Islands Local Authority"),$F61=1),0,IF(AND(OR(Calculations!$E$2="Shetland Health Board",Calculations!$E$2="Western Isles Health Board",Calculations!$E$2="Shetland Islands Local Authority",Calculations!$E$2="Eilean Siar Local Authority"),OR($F61=1,$F61=5)),0,hosp_count(VALUE(LEFT(Options!$B$14,2)),$C61,$E61,$F61,2016,$I61/10+$J61/10,1,$H61/10,$G61*$H61/10, RateRatios_airpollution!$F61, RateRatios_airpollution!$E61)*10)) ->  | AI61: =IF(AND(OR(Calculations!$E$2="Orkney Health Board",Calculations!$E$2="Orkney Islands Local Authority"),$F61=1),0,IF(AND(OR(Calculations!$E$2="Shetland Health Board",Calculations!$E$2="Western Isles Health Board",Calculations!$E$2="Shetland Islands Local Authority",Calculations!$E$2="Eilean Siar Local Authority"),OR($F61=1,$F61=5)),0,prem_mort(VALUE(LEFT(Options!$B$14,2)),$C61,$E61,$F61,2016,$I61/10,1,$H61/10,$G61*$H61/10,RateRatios_airpollution!$E61)*10)) ->  | AJ61: =IF(AND(OR(Calculations!$E$2="Orkney Health Board",Calculations!$E$2="Orkney Islands Local Authority"),$F61=1),0,IF(AND(OR(Calculations!$E$2="Shetland Health Board",Calculations!$E$2="Western Isles Health Board",Calculations!$E$2="Shetland Islands Local Authority",Calculations!$E$2="Eilean Siar Local Authority"),OR($F61=1,$F61=5)),0,prem_mort(VALUE(LEFT(Options!$B$14,2)),$C61,$E61,$F61,2016,$I61/10+$J61/10,1,$H61/10,$G61*$H61/10,RateRatios_airpollution!$E61)*10)) ->  | AK61: =K61 ->  | AM61: =M61 ->  | AO61: =O61 ->  | AQ61: =Q61 ->  | BA61: =AS61*$BI61 ->  | BB61: =AT61*$BI61 ->  | BC61: =AU61*$BI61 ->  | BI61: 5500
B62: Female 10-15 | C62: 12.478312 | D62: 81.94831 | E62: female | F62: 1 | G62: 1 | H62: =HLOOKUP(Calculations!$E$2,'Population 2016'!$C$3:$BC$249,'Population 2016'!BD62,FALSE) -> 0 | I62: 0 | J62: =HLOOKUP(Calculations!$E$2,Pop2016_in_settlements!$C$3:$BC$249,Pop2016_in_settlements!$BD62,FALSE) -> 0 | K62: =IF(AND(OR(Calculations!$E$2="Orkney Health Board",Calculations!$E$2="Orkney Islands Local Authority"),$F62=1),0,IF(AND(OR(Calculations!$E$2="Shetland Health Board",Calculations!$E$2="Western Isles Health Board",Calculations!$E$2="Shetland Islands Local Authority",Calculations!$E$2="Eilean Siar Local Authority"),OR($F62=1,$F62=5)),0,new_ci(VALUE(LEFT(Options!$B$14,2)),$C62,$E62,$F62,2016,$I62/10,1,$H62/10,$G62*$H62/10,RateRatios_accidents!$B$5)*10)) ->  | L62: =IF(AND(OR(Calculations!$E$2="Orkney Health Board",Calculations!$E$2="Orkney Islands Local Authority"),$F62=1),0,IF(AND(OR(Calculations!$E$2="Shetland Health Board",Calculations!$E$2="Western Isles Health Board",Calculations!$E$2="Shetland Islands Local Authority",Calculations!$E$2="Eilean Siar Local Authority"),OR($F62=1,$F62=5)),0,new_ci(VALUE(LEFT(Options!$B$14,2)),$C62,$E62,$F62,2016,$I62/10+$J62/10,1,$H62/10,$G62*$H62/10,RateRatios_accidents!$B$5)*10)) ->  | M62: =IF(AND(OR(Calculations!$E$2="Orkney Health Board",Calculations!$E$2="Orkney Islands Local Authority"),$F62=1),0,IF(AND(OR(Calculations!$E$2="Shetland Health Board",Calculations!$E$2="Western Isles Health Board",Calculations!$E$2="Shetland Islands Local Authority",Calculations!$E$2="Eilean Siar Local Authority"),OR($F62=1,$F62=5)),0,new_yllv2(VALUE(LEFT(Options!$B$14,2)),$C62,$D62,$E62,$F62,2016,$I62/10,1,$H62/10,$G62*$H62/10,RateRatios_accidents!$B$5)*10)) ->  | N62: =IF(AND(OR(Calculations!$E$2="Orkney Health Board",Calculations!$E$2="Orkney Islands Local Authority"),$F62=1),0,IF(AND(OR(Calculations!$E$2="Shetland Health Board",Calculations!$E$2="Western Isles Health Board",Calculations!$E$2="Shetland Islands Local Authority",Calculations!$E$2="Eilean Siar Local Authority"),OR($F62=1,$F62=5)),0,new_yllv2(VALUE(LEFT(Options!$B$14,2)),$C62,$D62,$E62,$F62,2016,$I62/10+$J62/10,1,$H62/10,$G62*$H62/10,RateRatios_accidents!$B$5)*10)) ->  | O62: =IF(AND(OR(Calculations!$E$2="Orkney Health Board",Calculations!$E$2="Orkney Islands Local Authority"),$F62=1),0,IF(AND(OR(Calculations!$E$2="Shetland Health Board",Calculations!$E$2="Western Isles Health Board",Calculations!$E$2="Shetland Islands Local Authority",Calculations!$E$2="Eilean Siar Local Authority"),OR($F62=1,$F62=5)),0,hosp_count(VALUE(LEFT(Options!$B$14,2)),$C62,$E62,$F62,2016,$I62/10,1,$H62/10,$G62*$H62/10, RateRatios_accidents!$B$4, RateRatios_accidents!$B$5)*10)) ->  | P62: =IF(AND(OR(Calculations!$E$2="Orkney Health Board",Calculations!$E$2="Orkney Islands Local Authority"),$F62=1),0,IF(AND(OR(Calculations!$E$2="Shetland Health Board",Calculations!$E$2="Western Isles Health Board",Calculations!$E$2="Shetland Islands Local Authority",Calculations!$E$2="Eilean Siar Local Authority"),OR($F62=1,$F62=5)),0,hosp_count(VALUE(LEFT(Options!$B$14,2)),$C62,$E62,$F62,2016,$I62/10+$J62/10,1,$H62/10,$G62*$H62/10, RateRatios_accidents!$B$4, RateRatios_accidents!$B$5)*10)) ->  | Q62: =IF(AND(OR(Calculations!$E$2="Orkney Health Board",Calculations!$E$2="Orkney Islands Local Authority"),$F62=1),0,IF(AND(OR(Calculations!$E$2="Shetland Health Board",Calculations!$E$2="Western Isles Health Board",Calculations!$E$2="Shetland Islands Local Authority",Calculations!$E$2="Eilean Siar Local Authority"),OR($F62=1,$F62=5)),0,prem_mort(VALUE(LEFT(Options!$B$14,2)),$C62,$E62,$F62,2016,$I62/10,1,$H62/10,$G62*$H62/10,RateRatios_accidents!$B$5)*10)) ->  | R62: =IF(AND(OR(Calculations!$E$2="Orkney Health Board",Calculations!$E$2="Orkney Islands Local Authority"),$F62=1),0,IF(AND(OR(Calculations!$E$2="Shetland Health Board",Calculations!$E$2="Western Isles Health Board",Calculations!$E$2="Shetland Islands Local Authority",Calculations!$E$2="Eilean Siar Local Authority"),OR($F62=1,$F62=5)),0,prem_mort(VALUE(LEFT(Options!$B$14,2)),$C62,$E62,$F62,2016,$I62/10+$J62/10,1,$H62/10,$G62*$H62/10,RateRatios_accidents!$B$5)*10)) ->  | T62: =IF(AND(OR(Calculations!$E$2="Orkney Health Board",Calculations!$E$2="Orkney Islands Local Authority"),$F62=1),0,IF(AND(OR(Calculations!$E$2="Shetland Health Board",Calculations!$E$2="Western Isles Health Board",Calculations!$E$2="Shetland Islands Local Authority",Calculations!$E$2="Eilean Siar Local Authority"),OR($F62=1,$F62=5)),0,new_ci(VALUE(LEFT(Options!$B$14,2)),$C62,$E62,$F62,2016,$I62/10,1,$H62/10,$G62*$H62/10,RateRatios_airpollution!$C62)*10)) ->  | U62: =IF(AND(OR(Calculations!$E$2="Orkney Health Board",Calculations!$E$2="Orkney Islands Local Authority"),$F62=1),0,IF(AND(OR(Calculations!$E$2="Shetland Health Board",Calculations!$E$2="Western Isles Health Board",Calculations!$E$2="Shetland Islands Local Authority",Calculations!$E$2="Eilean Siar Local Authority"),OR($F62=1,$F62=5)),0,new_ci(VALUE(LEFT(Options!$B$14,2)),$C62,$E62,$F62,2016,$I62/10+$J62/10,1,$H62/10,$G62*$H62/10,RateRatios_airpollution!$C62)*10)) ->  | V62: =IF(AND(OR(Calculations!$E$2="Orkney Health Board",Calculations!$E$2="Orkney Islands Local Authority"),$F62=1),0,IF(AND(OR(Calculations!$E$2="Shetland Health Board",Calculations!$E$2="Western Isles Health Board",Calculations!$E$2="Shetland Islands Local Authority",Calculations!$E$2="Eilean Siar Local Authority"),OR($F62=1,$F62=5)),0,new_yllv2(VALUE(LEFT(Options!$B$14,2)),$C62,$D62,$E62,$F62,2016,$I62/10,1,$H62/10,$G62*$H62/10,RateRatios_airpollution!$C62)*10)) ->  | W62: =IF(AND(OR(Calculations!$E$2="Orkney Health Board",Calculations!$E$2="Orkney Islands Local Authority"),$F62=1),0,IF(AND(OR(Calculations!$E$2="Shetland Health Board",Calculations!$E$2="Western Isles Health Board",Calculations!$E$2="Shetland Islands Local Authority",Calculations!$E$2="Eilean Siar Local Authority"),OR($F62=1,$F62=5)),0,new_yllv2(VALUE(LEFT(Options!$B$14,2)),$C62,$D62,$E62,$F62,2016,$I62/10+$J62/10,1,$H62/10,$G62*$H62/10,RateRatios_airpollution!$C62)*10)) ->  | X62: =IF(AND(OR(Calculations!$E$2="Orkney Health Board",Calculations!$E$2="Orkney Islands Local Authority"),$F62=1),0,IF(AND(OR(Calculations!$E$2="Shetland Health Board",Calculations!$E$2="Western Isles Health Board",Calculations!$E$2="Shetland Islands Local Authority",Calculations!$E$2="Eilean Siar Local Authority"),OR($F62=1,$F62=5)),0,hosp_count(VALUE(LEFT(Options!$B$14,2)),$C62,$E62,$F62,2016,$I62/10,1,$H62/10,$G62*$H62/10, RateRatios_airpollution!$D62, RateRatios_airpollution!$C62)*10)) ->  | Y62: =IF(AND(OR(Calculations!$E$2="Orkney Health Board",Calculations!$E$2="Orkney Islands Local Authority"),$F62=1),0,IF(AND(OR(Calculations!$E$2="Shetland Health Board",Calculations!$E$2="Western Isles Health Board",Calculations!$E$2="Shetland Islands Local Authority",Calculations!$E$2="Eilean Siar Local Authority"),OR($F62=1,$F62=5)),0,hosp_count(VALUE(LEFT(Options!$B$14,2)),$C62,$E62,$F62,2016,$I62/10+$J62/10,1,$H62/10,$G62*$H62/10, RateRatios_airpollution!$D62, RateRatios_airpollution!$C62)*10)) ->  | Z62: =IF(AND(OR(Calculations!$E$2="Orkney Health Board",Calculations!$E$2="Orkney Islands Local Authority"),$F62=1),0,IF(AND(OR(Calculations!$E$2="Shetland Health Board",Calculations!$E$2="Western Isles Health Board",Calculations!$E$2="Shetland Islands Local Authority",Calculations!$E$2="Eilean Siar Local Authority"),OR($F62=1,$F62=5)),0,prem_mort(VALUE(LEFT(Options!$B$14,2)),$C62,$E62,$F62,2016,$I62/10,1,$H62/10,$G62*$H62/10,RateRatios_airpollution!$C62)*10)) ->  | AA62: =IF(AND(OR(Calculations!$E$2="Orkney Health Board",Calculations!$E$2="Orkney Islands Local Authority"),$F62=1),0,IF(AND(OR(Calculations!$E$2="Shetland Health Board",Calculations!$E$2="Western Isles Health Board",Calculations!$E$2="Shetland Islands Local Authority",Calculations!$E$2="Eilean Siar Local Authority"),OR($F62=1,$F62=5)),0,prem_mort(VALUE(LEFT(Options!$B$14,2)),$C62,$E62,$F62,2016,$I62/10+$J62/10,1,$H62/10,$G62*$H62/10,RateRatios_airpollution!$C62)*10)) ->  | AC62: =IF(AND(OR(Calculations!$E$2="Orkney Health Board",Calculations!$E$2="Orkney Islands Local Authority"),$F62=1),0,IF(AND(OR(Calculations!$E$2="Shetland Health Board",Calculations!$E$2="Western Isles Health Board",Calculations!$E$2="Shetland Islands Local Authority",Calculations!$E$2="Eilean Siar Local Authority"),OR($F62=1,$F62=5)),0,new_ci(VALUE(LEFT(Options!$B$14,2)),$C62,$E62,$F62,2016,$I62/10,1,$H62/10,$G62*$H62/10,RateRatios_airpollution!$E62)*10)) ->  | AD62: =IF(AND(OR(Calculations!$E$2="Orkney Health Board",Calculations!$E$2="Orkney Islands Local Authority"),$F62=1),0,IF(AND(OR(Calculations!$E$2="Shetland Health Board",Calculations!$E$2="Western Isles Health Board",Calculations!$E$2="Shetland Islands Local Authority",Calculations!$E$2="Eilean Siar Local Authority"),OR($F62=1,$F62=5)),0,new_ci(VALUE(LEFT(Options!$B$14,2)),$C62,$E62,$F62,2016,$I62/10+$J62/10,1,$H62/10,$G62*$H62/10,RateRatios_airpollution!$E62)*10)) ->  | AE62: =IF(AND(OR(Calculations!$E$2="Orkney Health Board",Calculations!$E$2="Orkney Islands Local Authority"),$F62=1),0,IF(AND(OR(Calculations!$E$2="Shetland Health Board",Calculations!$E$2="Western Isles Health Board",Calculations!$E$2="Shetland Islands Local Authority",Calculations!$E$2="Eilean Siar Local Authority"),OR($F62=1,$F62=5)),0,new_yllv2(VALUE(LEFT(Options!$B$14,2)),$C62,$D62,$E62,$F62,2016,$I62/10,1,$H62/10,$G62*$H62/10,RateRatios_airpollution!$E62)*10)) ->  | AF62: =IF(AND(OR(Calculations!$E$2="Orkney Health Board",Calculations!$E$2="Orkney Islands Local Authority"),$F62=1),0,IF(AND(OR(Calculations!$E$2="Shetland Health Board",Calculations!$E$2="Western Isles Health Board",Calculations!$E$2="Shetland Islands Local Authority",Calculations!$E$2="Eilean Siar Local Authority"),OR($F62=1,$F62=5)),0,new_yllv2(VALUE(LEFT(Options!$B$14,2)),$C62,$D62,$E62,$F62,2016,$I62/10+$J62/10,1,$H62/10,$G62*$H62/10,RateRatios_airpollution!$E62)*10)) ->  | AG62: =IF(AND(OR(Calculations!$E$2="Orkney Health Board",Calculations!$E$2="Orkney Islands Local Authority"),$F62=1),0,IF(AND(OR(Calculations!$E$2="Shetland Health Board",Calculations!$E$2="Western Isles Health Board",Calculations!$E$2="Shetland Islands Local Authority",Calculations!$E$2="Eilean Siar Local Authority"),OR($F62=1,$F62=5)),0,hosp_count(VALUE(LEFT(Options!$B$14,2)),$C62,$E62,$F62,2016,$I62/10,1,$H62/10,$G62*$H62/10, RateRatios_airpollution!$F62, RateRatios_airpollution!$E62)*10)) ->  | AH62: =IF(AND(OR(Calculations!$E$2="Orkney Health Board",Calculations!$E$2="Orkney Islands Local Authority"),$F62=1),0,IF(AND(OR(Calculations!$E$2="Shetland Health Board",Calculations!$E$2="Western Isles Health Board",Calculations!$E$2="Shetland Islands Local Authority",Calculations!$E$2="Eilean Siar Local Authority"),OR($F62=1,$F62=5)),0,hosp_count(VALUE(LEFT(Options!$B$14,2)),$C62,$E62,$F62,2016,$I62/10+$J62/10,1,$H62/10,$G62*$H62/10, RateRatios_airpollution!$F62, RateRatios_airpollution!$E62)*10)) ->  | AI62: =IF(AND(OR(Calculations!$E$2="Orkney Health Board",Calculations!$E$2="Orkney Islands Local Authority"),$F62=1),0,IF(AND(OR(Calculations!$E$2="Shetland Health Board",Calculations!$E$2="Western Isles Health Board",Calculations!$E$2="Shetland Islands Local Authority",Calculations!$E$2="Eilean Siar Local Authority"),OR($F62=1,$F62=5)),0,prem_mort(VALUE(LEFT(Options!$B$14,2)),$C62,$E62,$F62,2016,$I62/10,1,$H62/10,$G62*$H62/10,RateRatios_airpollution!$E62)*10)) ->  | AJ62: =IF(AND(OR(Calculations!$E$2="Orkney Health Board",Calculations!$E$2="Orkney Islands Local Authority"),$F62=1),0,IF(AND(OR(Calculations!$E$2="Shetland Health Board",Calculations!$E$2="Western Isles Health Board",Calculations!$E$2="Shetland Islands Local Authority",Calculations!$E$2="Eilean Siar Local Authority"),OR($F62=1,$F62=5)),0,prem_mort(VALUE(LEFT(Options!$B$14,2)),$C62,$E62,$F62,2016,$I62/10+$J62/10,1,$H62/10,$G62*$H62/10,RateRatios_airpollution!$E62)*10)) ->  | BI62: 6600
A63: SIMD Q1 (most deprived) | B63: Female 16-19 | C63: 17.570053 | D63: 81.10005 | E63: female | F63: 1 | G63: 1 | H63: =HLOOKUP(Calculations!$E$2,'Population 2016'!$C$3:$BC$249,'Population 2016'!BD63,FALSE) -> 24142 | I63: 0 | J63: =HLOOKUP(Calculations!$E$2,Pop2016_in_settlements!$C$3:$BC$249,Pop2016_in_settlements!$BD63,FALSE) -> 17676 | K63: =IF(AND(OR(Calculations!$E$2="Orkney Health Board",Calculations!$E$2="Orkney Islands Local Authority"),$F63=1),0,IF(AND(OR(Calculations!$E$2="Shetland Health Board",Calculations!$E$2="Western Isles Health Board",Calculations!$E$2="Shetland Islands Local Authority",Calculations!$E$2="Eilean Siar Local Authority"),OR($F63=1,$F63=5)),0,new_ci(VALUE(LEFT(Options!$B$14,2)),$C63,$E63,$F63,2016,$I63/10,1,$H63/10,$G63*$H63/10,RateRatios_accidents!$B$5)*10)) -> 7.677704023 | L63: =IF(AND(OR(Calculations!$E$2="Orkney Health Board",Calculations!$E$2="Orkney Islands Local Authority"),$F63=1),0,IF(AND(OR(Calculations!$E$2="Shetland Health Board",Calculations!$E$2="Western Isles Health Board",Calculations!$E$2="Shetland Islands Local Authority",Calculations!$E$2="Eilean Siar Local Authority"),OR($F63=1,$F63=5)),0,new_ci(VALUE(LEFT(Options!$B$14,2)),$C63,$E63,$F63,2016,$I63/10+$J63/10,1,$H63/10,$G63*$H63/10,RateRatios_accidents!$B$5)*10)) -> 7.675457404 | M63: =IF(AND(OR(Calculations!$E$2="Orkney Health Board",Calculations!$E$2="Orkney Islands Local Authority"),$F63=1),0,IF(AND(OR(Calculations!$E$2="Shetland Health Board",Calculations!$E$2="Western Isles Health Board",Calculations!$E$2="Shetland Islands Local Authority",Calculations!$E$2="Eilean Siar Local Authority"),OR($F63=1,$F63=5)),0,new_yllv2(VALUE(LEFT(Options!$B$14,2)),$C63,$D63,$E63,$F63,2016,$I63/10,1,$H63/10,$G63*$H63/10,RateRatios_accidents!$B$5)*10)) -> 480.0868095 | N63: =IF(AND(OR(Calculations!$E$2="Orkney Health Board",Calculations!$E$2="Orkney Islands Local Authority"),$F63=1),0,IF(AND(OR(Calculations!$E$2="Shetland Health Board",Calculations!$E$2="Western Isles Health Board",Calculations!$E$2="Shetland Islands Local Authority",Calculations!$E$2="Eilean Siar Local Authority"),OR($F63=1,$F63=5)),0,new_yllv2(VALUE(LEFT(Options!$B$14,2)),$C63,$D63,$E63,$F63,2016,$I63/10+$J63/10,1,$H63/10,$G63*$H63/10,RateRatios_accidents!$B$5)*10)) -> 479.9463284 | O63: =IF(AND(OR(Calculations!$E$2="Orkney Health Board",Calculations!$E$2="Orkney Islands Local Authority"),$F63=1),0,IF(AND(OR(Calculations!$E$2="Shetland Health Board",Calculations!$E$2="Western Isles Health Board",Calculations!$E$2="Shetland Islands Local Authority",Calculations!$E$2="Eilean Siar Local Authority"),OR($F63=1,$F63=5)),0,hosp_count(VALUE(LEFT(Options!$B$14,2)),$C63,$E63,$F63,2016,$I63/10,1,$H63/10,$G63*$H63/10, RateRatios_accidents!$B$4, RateRatios_accidents!$B$5)*10)) -> 3441.218007 | P63: =IF(AND(OR(Calculations!$E$2="Orkney Health Board",Calculations!$E$2="Orkney Islands Local Authority"),$F63=1),0,IF(AND(OR(Calculations!$E$2="Shetland Health Board",Calculations!$E$2="Western Isles Health Board",Calculations!$E$2="Shetland Islands Local Authority",Calculations!$E$2="Eilean Siar Local Authority"),OR($F63=1,$F63=5)),0,hosp_count(VALUE(LEFT(Options!$B$14,2)),$C63,$E63,$F63,2016,$I63/10+$J63/10,1,$H63/10,$G63*$H63/10, RateRatios_accidents!$B$4, RateRatios_accidents!$B$5)*10)) -> 3440.210187 | Q63: =IF(AND(OR(Calculations!$E$2="Orkney Health Board",Calculations!$E$2="Orkney Islands Local Authority"),$F63=1),0,IF(AND(OR(Calculations!$E$2="Shetland Health Board",Calculations!$E$2="Western Isles Health Board",Calculations!$E$2="Shetland Islands Local Authority",Calculations!$E$2="Eilean Siar Local Authority"),OR($F63=1,$F63=5)),0,prem_mort(VALUE(LEFT(Options!$B$14,2)),$C63,$E63,$F63,2016,$I63/10,1,$H63/10,$G63*$H63/10,RateRatios_accidents!$B$5)*10)) -> 7.677704023 | R63: =IF(AND(OR(Calculations!$E$2="Orkney Health Board",Calculations!$E$2="Orkney Islands Local Authority"),$F63=1),0,IF(AND(OR(Calculations!$E$2="Shetland Health Board",Calculations!$E$2="Western Isles Health Board",Calculations!$E$2="Shetland Islands Local Authority",Calculations!$E$2="Eilean Siar Local Authority"),OR($F63=1,$F63=5)),0,prem_mort(VALUE(LEFT(Options!$B$14,2)),$C63,$E63,$F63,2016,$I63/10+$J63/10,1,$H63/10,$G63*$H63/10,RateRatios_accidents!$B$5)*10)) -> 7.675457404 | T63: =IF(AND(OR(Calculations!$E$2="Orkney Health Board",Calculations!$E$2="Orkney Islands Local Authority"),$F63=1),0,IF(AND(OR(Calculations!$E$2="Shetland Health Board",Calculations!$E$2="Western Isles Health Board",Calculations!$E$2="Shetland Islands Local Authority",Calculations!$E$2="Eilean Siar Local Authority"),OR($F63=1,$F63=5)),0,new_ci(VALUE(LEFT(Options!$B$14,2)),$C63,$E63,$F63,2016,$I63/10,1,$H63/10,$G63*$H63/10,RateRatios_airpollution!$C63)*10)) -> 7.677704023 | U63: =IF(AND(OR(Calculations!$E$2="Orkney Health Board",Calculations!$E$2="Orkney Islands Local Authority"),$F63=1),0,IF(AND(OR(Calculations!$E$2="Shetland Health Board",Calculations!$E$2="Western Isles Health Board",Calculations!$E$2="Shetland Islands Local Authority",Calculations!$E$2="Eilean Siar Local Authority"),OR($F63=1,$F63=5)),0,new_ci(VALUE(LEFT(Options!$B$14,2)),$C63,$E63,$F63,2016,$I63/10+$J63/10,1,$H63/10,$G63*$H63/10,RateRatios_airpollution!$C63)*10)) -> 7.677571453 | V63: =IF(AND(OR(Calculations!$E$2="Orkney Health Board",Calculations!$E$2="Orkney Islands Local Authority"),$F63=1),0,IF(AND(OR(Calculations!$E$2="Shetland Health Board",Calculations!$E$2="Western Isles Health Board",Calculations!$E$2="Shetland Islands Local Authority",Calculations!$E$2="Eilean Siar Local Authority"),OR($F63=1,$F63=5)),0,new_yllv2(VALUE(LEFT(Options!$B$14,2)),$C63,$D63,$E63,$F63,2016,$I63/10,1,$H63/10,$G63*$H63/10,RateRatios_airpollution!$C63)*10)) -> 480.0868095 | W63: =IF(AND(OR(Calculations!$E$2="Orkney Health Board",Calculations!$E$2="Orkney Islands Local Authority"),$F63=1),0,IF(AND(OR(Calculations!$E$2="Shetland Health Board",Calculations!$E$2="Western Isles Health Board",Calculations!$E$2="Shetland Islands Local Authority",Calculations!$E$2="Eilean Siar Local Authority"),OR($F63=1,$F63=5)),0,new_yllv2(VALUE(LEFT(Options!$B$14,2)),$C63,$D63,$E63,$F63,2016,$I63/10+$J63/10,1,$H63/10,$G63*$H63/10,RateRatios_airpollution!$C63)*10)) -> 480.0785199 | X63: =IF(AND(OR(Calculations!$E$2="Orkney Health Board",Calculations!$E$2="Orkney Islands Local Authority"),$F63=1),0,IF(AND(OR(Calculations!$E$2="Shetland Health Board",Calculations!$E$2="Western Isles Health Board",Calculations!$E$2="Shetland Islands Local Authority",Calculations!$E$2="Eilean Siar Local Authority"),OR($F63=1,$F63=5)),0,hosp_count(VALUE(LEFT(Options!$B$14,2)),$C63,$E63,$F63,2016,$I63/10,1,$H63/10,$G63*$H63/10, RateRatios_airpollution!$D63, RateRatios_airpollution!$C63)*10)) -> 3441.218007 | Y63: =IF(AND(OR(Calculations!$E$2="Orkney Health Board",Calculations!$E$2="Orkney Islands Local Authority"),$F63=1),0,IF(AND(OR(Calculations!$E$2="Shetland Health Board",Calculations!$E$2="Western Isles Health Board",Calculations!$E$2="Shetland Islands Local Authority",Calculations!$E$2="Eilean Siar Local Authority"),OR($F63=1,$F63=5)),0,hosp_count(VALUE(LEFT(Options!$B$14,2)),$C63,$E63,$F63,2016,$I63/10+$J63/10,1,$H63/10,$G63*$H63/10, RateRatios_airpollution!$D63, RateRatios_airpollution!$C63)*10)) -> 3441.106139 | Z63: =IF(AND(OR(Calculations!$E$2="Orkney Health Board",Calculations!$E$2="Orkney Islands Local Authority"),$F63=1),0,IF(AND(OR(Calculations!$E$2="Shetland Health Board",Calculations!$E$2="Western Isles Health Board",Calculations!$E$2="Shetland Islands Local Authority",Calculations!$E$2="Eilean Siar Local Authority"),OR($F63=1,$F63=5)),0,prem_mort(VALUE(LEFT(Options!$B$14,2)),$C63,$E63,$F63,2016,$I63/10,1,$H63/10,$G63*$H63/10,RateRatios_airpollution!$C63)*10)) -> 7.677704023 | AA63: =IF(AND(OR(Calculations!$E$2="Orkney Health Board",Calculations!$E$2="Orkney Islands Local Authority"),$F63=1),0,IF(AND(OR(Calculations!$E$2="Shetland Health Board",Calculations!$E$2="Western Isles Health Board",Calculations!$E$2="Shetland Islands Local Authority",Calculations!$E$2="Eilean Siar Local Authority"),OR($F63=1,$F63=5)),0,prem_mort(VALUE(LEFT(Options!$B$14,2)),$C63,$E63,$F63,2016,$I63/10+$J63/10,1,$H63/10,$G63*$H63/10,RateRatios_airpollution!$C63)*10)) -> 7.677571453 | AC63: =IF(AND(OR(Calculations!$E$2="Orkney Health Board",Calculations!$E$2="Orkney Islands Local Authority"),$F63=1),0,IF(AND(OR(Calculations!$E$2="Shetland Health Board",Calculations!$E$2="Western Isles Health Board",Calculations!$E$2="Shetland Islands Local Authority",Calculations!$E$2="Eilean Siar Local Authority"),OR($F63=1,$F63=5)),0,new_ci(VALUE(LEFT(Options!$B$14,2)),$C63,$E63,$F63,2016,$I63/10,1,$H63/10,$G63*$H63/10,RateRatios_airpollution!$E63)*10)) -> 7.677704023 | AD63: =IF(AND(OR(Calculations!$E$2="Orkney Health Board",Calculations!$E$2="Orkney Islands Local Authority"),$F63=1),0,IF(AND(OR(Calculations!$E$2="Shetland Health Board",Calculations!$E$2="Western Isles Health Board",Calculations!$E$2="Shetland Islands Local Authority",Calculations!$E$2="Eilean Siar Local Authority"),OR($F63=1,$F63=5)),0,new_ci(VALUE(LEFT(Options!$B$14,2)),$C63,$E63,$F63,2016,$I63/10+$J63/10,1,$H63/10,$G63*$H63/10,RateRatios_airpollution!$E63)*10)) -> 7.677642157 | AE63: =IF(AND(OR(Calculations!$E$2="Orkney Health Board",Calculations!$E$2="Orkney Islands Local Authority"),$F63=1),0,IF(AND(OR(Calculations!$E$2="Shetland Health Board",Calculations!$E$2="Western Isles Health Board",Calculations!$E$2="Shetland Islands Local Authority",Calculations!$E$2="Eilean Siar Local Authority"),OR($F63=1,$F63=5)),0,new_yllv2(VALUE(LEFT(Options!$B$14,2)),$C63,$D63,$E63,$F63,2016,$I63/10,1,$H63/10,$G63*$H63/10,RateRatios_airpollution!$E63)*10)) -> 480.0868095 | AF63: =IF(AND(OR(Calculations!$E$2="Orkney Health Board",Calculations!$E$2="Orkney Islands Local Authority"),$F63=1),0,IF(AND(OR(Calculations!$E$2="Shetland Health Board",Calculations!$E$2="Western Isles Health Board",Calculations!$E$2="Shetland Islands Local Authority",Calculations!$E$2="Eilean Siar Local Authority"),OR($F63=1,$F63=5)),0,new_yllv2(VALUE(LEFT(Options!$B$14,2)),$C63,$D63,$E63,$F63,2016,$I63/10+$J63/10,1,$H63/10,$G63*$H63/10,RateRatios_airpollution!$E63)*10)) -> 480.082941 | AG63: =IF(AND(OR(Calculations!$E$2="Orkney Health Board",Calculations!$E$2="Orkney Islands Local Authority"),$F63=1),0,IF(AND(OR(Calculations!$E$2="Shetland Health Board",Calculations!$E$2="Western Isles Health Board",Calculations!$E$2="Shetland Islands Local Authority",Calculations!$E$2="Eilean Siar Local Authority"),OR($F63=1,$F63=5)),0,hosp_count(VALUE(LEFT(Options!$B$14,2)),$C63,$E63,$F63,2016,$I63/10,1,$H63/10,$G63*$H63/10, RateRatios_airpollution!$F63, RateRatios_airpollution!$E63)*10)) -> 3441.218007 | AH63: =IF(AND(OR(Calculations!$E$2="Orkney Health Board",Calculations!$E$2="Orkney Islands Local Authority"),$F63=1),0,IF(AND(OR(Calculations!$E$2="Shetland Health Board",Calculations!$E$2="Western Isles Health Board",Calculations!$E$2="Shetland Islands Local Authority",Calculations!$E$2="Eilean Siar Local Authority"),OR($F63=1,$F63=5)),0,hosp_count(VALUE(LEFT(Options!$B$14,2)),$C63,$E63,$F63,2016,$I63/10+$J63/10,1,$H63/10,$G63*$H63/10, RateRatios_airpollution!$F63, RateRatios_airpollution!$E63)*10)) -> 3441.218007 | AI63: =IF(AND(OR(Calculations!$E$2="Orkney Health Board",Calculations!$E$2="Orkney Islands Local Authority"),$F63=1),0,IF(AND(OR(Calculations!$E$2="Shetland Health Board",Calculations!$E$2="Western Isles Health Board",Calculations!$E$2="Shetland Islands Local Authority",Calculations!$E$2="Eilean Siar Local Authority"),OR($F63=1,$F63=5)),0,prem_mort(VALUE(LEFT(Options!$B$14,2)),$C63,$E63,$F63,2016,$I63/10,1,$H63/10,$G63*$H63/10,RateRatios_airpollution!$E63)*10)) -> 7.677704023 | AJ63: =IF(AND(OR(Calculations!$E$2="Orkney Health Board",Calculations!$E$2="Orkney Islands Local Authority"),$F63=1),0,IF(AND(OR(Calculations!$E$2="Shetland Health Board",Calculations!$E$2="Western Isles Health Board",Calculations!$E$2="Shetland Islands Local Authority",Calculations!$E$2="Eilean Siar Local Authority"),OR($F63=1,$F63=5)),0,prem_mort(VALUE(LEFT(Options!$B$14,2)),$C63,$E63,$F63,2016,$I63/10+$J63/10,1,$H63/10,$G63*$H63/10,RateRatios_airpollution!$E63)*10)) -> 7.677642157 | AK63: 7.677704023 | AL63: 7.675262968 | AM63: 480.0868095 | AN63: 479.9341704 | AO63: 3441.218007 | AP63: =AO63-((AO63-P63)+(AO63-Y63)+(AO63-AH63)) -> 3440.098319 | AQ63: 7.677704023 | AR63: =AQ63-((AQ63-R63)+(AQ63-AA63)+(AQ63-AJ63)) -> 7.675262968 | AS63: =AK63*100000/$H63 -> 31.80227 | AT63: =AL63*100000/$H63 -> 31.79215876 | AU63: 1988.595848 | AV63: 1987.963592 | AW63: 14254.07177 | AX63: 14249.43384 | AY63: 31.80227 | AZ63: 31.79215876 | BA63: =AS63*$BI63 -> 139929.988 | BB63: 139885.4985 | BC63: 8749821.729 | BD63: 8747039.804 | BE63: 62717915.79 | BF63: 62697508.92 | BG63: 139929.988 | BH63: =AZ63*$BI63 -> 139885.4985 | BI63: 4400
B64: Female 20-24 | C64: 22.077057 | D64: 81.66706 | E64: female | F64: 1 | G64: 1 | H64: =HLOOKUP(Calculations!$E$2,'Population 2016'!$C$3:$BC$249,'Population 2016'!BD64,FALSE) -> 37624 | I64: 0 | J64: =HLOOKUP(Calculations!$E$2,Pop2016_in_settlements!$C$3:$BC$249,Pop2016_in_settlements!$BD64,FALSE) -> 27907 | K64: =IF(AND(OR(Calculations!$E$2="Orkney Health Board",Calculations!$E$2="Orkney Islands Local Authority"),$F64=1),0,IF(AND(OR(Calculations!$E$2="Shetland Health Board",Calculations!$E$2="Western Isles Health Board",Calculations!$E$2="Shetland Islands Local Authority",Calculations!$E$2="Eilean Siar Local Authority"),OR($F64=1,$F64=5)),0,new_ci(VALUE(LEFT(Options!$B$14,2)),$C64,$E64,$F64,2016,$I64/10,1,$H64/10,$G64*$H64/10,RateRatios_accidents!$B$5)*10)) -> 17.55389106 | L64: =IF(AND(OR(Calculations!$E$2="Orkney Health Board",Calculations!$E$2="Orkney Islands Local Authority"),$F64=1),0,IF(AND(OR(Calculations!$E$2="Shetland Health Board",Calculations!$E$2="Western Isles Health Board",Calculations!$E$2="Shetland Islands Local Authority",Calculations!$E$2="Eilean Siar Local Authority"),OR($F64=1,$F64=5)),0,new_ci(VALUE(LEFT(Options!$B$14,2)),$C64,$E64,$F64,2016,$I64/10+$J64/10,1,$H64/10,$G64*$H64/10,RateRatios_accidents!$B$5)*10)) -> 17.54868362 | M64: =IF(AND(OR(Calculations!$E$2="Orkney Health Board",Calculations!$E$2="Orkney Islands Local Authority"),$F64=1),0,IF(AND(OR(Calculations!$E$2="Shetland Health Board",Calculations!$E$2="Western Isles Health Board",Calculations!$E$2="Shetland Islands Local Authority",Calculations!$E$2="Eilean Siar Local Authority"),OR($F64=1,$F64=5)),0,new_yllv2(VALUE(LEFT(Options!$B$14,2)),$C64,$D64,$E64,$F64,2016,$I64/10,1,$H64/10,$G64*$H64/10,RateRatios_accidents!$B$5)*10)) -> 1028.48253 | N64: =IF(AND(OR(Calculations!$E$2="Orkney Health Board",Calculations!$E$2="Orkney Islands Local Authority"),$F64=1),0,IF(AND(OR(Calculations!$E$2="Shetland Health Board",Calculations!$E$2="Western Isles Health Board",Calculations!$E$2="Shetland Islands Local Authority",Calculations!$E$2="Eilean Siar Local Authority"),OR($F64=1,$F64=5)),0,new_yllv2(VALUE(LEFT(Options!$B$14,2)),$C64,$D64,$E64,$F64,2016,$I64/10+$J64/10,1,$H64/10,$G64*$H64/10,RateRatios_accidents!$B$5)*10)) -> 1028.177426 | O64: =IF(AND(OR(Calculations!$E$2="Orkney Health Board",Calculations!$E$2="Orkney Islands Local Authority"),$F64=1),0,IF(AND(OR(Calculations!$E$2="Shetland Health Board",Calculations!$E$2="Western Isles Health Board",Calculations!$E$2="Shetland Islands Local Authority",Calculations!$E$2="Eilean Siar Local Authority"),OR($F64=1,$F64=5)),0,hosp_count(VALUE(LEFT(Options!$B$14,2)),$C64,$E64,$F64,2016,$I64/10,1,$H64/10,$G64*$H64/10, RateRatios_accidents!$B$4, RateRatios_accidents!$B$5)*10)) -> 6006.741035 | P64: =IF(AND(OR(Calculations!$E$2="Orkney Health Board",Calculations!$E$2="Orkney Islands Local Authority"),$F64=1),0,IF(AND(OR(Calculations!$E$2="Shetland Health Board",Calculations!$E$2="Western Isles Health Board",Calculations!$E$2="Shetland Islands Local Authority",Calculations!$E$2="Eilean Siar Local Authority"),OR($F64=1,$F64=5)),0,hosp_count(VALUE(LEFT(Options!$B$14,2)),$C64,$E64,$F64,2016,$I64/10+$J64/10,1,$H64/10,$G64*$H64/10, RateRatios_accidents!$B$4, RateRatios_accidents!$B$5)*10)) -> 6004.958875 | Q64: =IF(AND(OR(Calculations!$E$2="Orkney Health Board",Calculations!$E$2="Orkney Islands Local Authority"),$F64=1),0,IF(AND(OR(Calculations!$E$2="Shetland Health Board",Calculations!$E$2="Western Isles Health Board",Calculations!$E$2="Shetland Islands Local Authority",Calculations!$E$2="Eilean Siar Local Authority"),OR($F64=1,$F64=5)),0,prem_mort(VALUE(LEFT(Options!$B$14,2)),$C64,$E64,$F64,2016,$I64/10,1,$H64/10,$G64*$H64/10,RateRatios_accidents!$B$5)*10)) -> 17.55389106 | R64: =IF(AND(OR(Calculations!$E$2="Orkney Health Board",Calculations!$E$2="Orkney Islands Local Authority"),$F64=1),0,IF(AND(OR(Calculations!$E$2="Shetland Health Board",Calculations!$E$2="Western Isles Health Board",Calculations!$E$2="Shetland Islands Local Authority",Calculations!$E$2="Eilean Siar Local Authority"),OR($F64=1,$F64=5)),0,prem_mort(VALUE(LEFT(Options!$B$14,2)),$C64,$E64,$F64,2016,$I64/10+$J64/10,1,$H64/10,$G64*$H64/10,RateRatios_accidents!$B$5)*10)) -> 17.54868362 | T64: =IF(AND(OR(Calculations!$E$2="Orkney Health Board",Calculations!$E$2="Orkney Islands Local Authority"),$F64=1),0,IF(AND(OR(Calculations!$E$2="Shetland Health Board",Calculations!$E$2="Western Isles Health Board",Calculations!$E$2="Shetland Islands Local Authority",Calculations!$E$2="Eilean Siar Local Authority"),OR($F64=1,$F64=5)),0,new_ci(VALUE(LEFT(Options!$B$14,2)),$C64,$E64,$F64,2016,$I64/10,1,$H64/10,$G64*$H64/10,RateRatios_airpollution!$C64)*10)) -> 17.55389106 | U64: =IF(AND(OR(Calculations!$E$2="Orkney Health Board",Calculations!$E$2="Orkney Islands Local Authority"),$F64=1),0,IF(AND(OR(Calculations!$E$2="Shetland Health Board",Calculations!$E$2="Western Isles Health Board",Calculations!$E$2="Shetland Islands Local Authority",Calculations!$E$2="Eilean Siar Local Authority"),OR($F64=1,$F64=5)),0,new_ci(VALUE(LEFT(Options!$B$14,2)),$C64,$E64,$F64,2016,$I64/10+$J64/10,1,$H64/10,$G64*$H64/10,RateRatios_airpollution!$C64)*10)) -> 17.55355897 | V64: =IF(AND(OR(Calculations!$E$2="Orkney Health Board",Calculations!$E$2="Orkney Islands Local Authority"),$F64=1),0,IF(AND(OR(Calculations!$E$2="Shetland Health Board",Calculations!$E$2="Western Isles Health Board",Calculations!$E$2="Shetland Islands Local Authority",Calculations!$E$2="Eilean Siar Local Authority"),OR($F64=1,$F64=5)),0,new_yllv2(VALUE(LEFT(Options!$B$14,2)),$C64,$D64,$E64,$F64,2016,$I64/10,1,$H64/10,$G64*$H64/10,RateRatios_airpollution!$C64)*10)) -> 1028.48253 | W64: =IF(AND(OR(Calculations!$E$2="Orkney Health Board",Calculations!$E$2="Orkney Islands Local Authority"),$F64=1),0,IF(AND(OR(Calculations!$E$2="Shetland Health Board",Calculations!$E$2="Western Isles Health Board",Calculations!$E$2="Shetland Islands Local Authority",Calculations!$E$2="Eilean Siar Local Authority"),OR($F64=1,$F64=5)),0,new_yllv2(VALUE(LEFT(Options!$B$14,2)),$C64,$D64,$E64,$F64,2016,$I64/10+$J64/10,1,$H64/10,$G64*$H64/10,RateRatios_airpollution!$C64)*10)) -> 1028.463073 | X64: =IF(AND(OR(Calculations!$E$2="Orkney Health Board",Calculations!$E$2="Orkney Islands Local Authority"),$F64=1),0,IF(AND(OR(Calculations!$E$2="Shetland Health Board",Calculations!$E$2="Western Isles Health Board",Calculations!$E$2="Shetland Islands Local Authority",Calculations!$E$2="Eilean Siar Local Authority"),OR($F64=1,$F64=5)),0,hosp_count(VALUE(LEFT(Options!$B$14,2)),$C64,$E64,$F64,2016,$I64/10,1,$H64/10,$G64*$H64/10, RateRatios_airpollution!$D64, RateRatios_airpollution!$C64)*10)) -> 6006.741035 | Y64: =IF(AND(OR(Calculations!$E$2="Orkney Health Board",Calculations!$E$2="Orkney Islands Local Authority"),$F64=1),0,IF(AND(OR(Calculations!$E$2="Shetland Health Board",Calculations!$E$2="Western Isles Health Board",Calculations!$E$2="Shetland Islands Local Authority",Calculations!$E$2="Eilean Siar Local Authority"),OR($F64=1,$F64=5)),0,hosp_count(VALUE(LEFT(Options!$B$14,2)),$C64,$E64,$F64,2016,$I64/10+$J64/10,1,$H64/10,$G64*$H64/10, RateRatios_airpollution!$D64, RateRatios_airpollution!$C64)*10)) -> 6006.527661 | Z64: =IF(AND(OR(Calculations!$E$2="Orkney Health Board",Calculations!$E$2="Orkney Islands Local Authority"),$F64=1),0,IF(AND(OR(Calculations!$E$2="Shetland Health Board",Calculations!$E$2="Western Isles Health Board",Calculations!$E$2="Shetland Islands Local Authority",Calculations!$E$2="Eilean Siar Local Authority"),OR($F64=1,$F64=5)),0,prem_mort(VALUE(LEFT(Options!$B$14,2)),$C64,$E64,$F64,2016,$I64/10,1,$H64/10,$G64*$H64/10,RateRatios_airpollution!$C64)*10)) -> 17.55389106 | AA64: =IF(AND(OR(Calculations!$E$2="Orkney Health Board",Calculations!$E$2="Orkney Islands Local Authority"),$F64=1),0,IF(AND(OR(Calculations!$E$2="Shetland Health Board",Calculations!$E$2="Western Isles Health Board",Calculations!$E$2="Shetland Islands Local Authority",Calculations!$E$2="Eilean Siar Local Authority"),OR($F64=1,$F64=5)),0,prem_mort(VALUE(LEFT(Options!$B$14,2)),$C64,$E64,$F64,2016,$I64/10+$J64/10,1,$H64/10,$G64*$H64/10,RateRatios_airpollution!$C64)*10)) -> 17.55355897 | AC64: =IF(AND(OR(Calculations!$E$2="Orkney Health Board",Calculations!$E$2="Orkney Islands Local Authority"),$F64=1),0,IF(AND(OR(Calculations!$E$2="Shetland Health Board",Calculations!$E$2="Western Isles Health Board",Calculations!$E$2="Shetland Islands Local Authority",Calculations!$E$2="Eilean Siar Local Authority"),OR($F64=1,$F64=5)),0,new_ci(VALUE(LEFT(Options!$B$14,2)),$C64,$E64,$F64,2016,$I64/10,1,$H64/10,$G64*$H64/10,RateRatios_airpollution!$E64)*10)) -> 17.55389106 | AD64: =IF(AND(OR(Calculations!$E$2="Orkney Health Board",Calculations!$E$2="Orkney Islands Local Authority"),$F64=1),0,IF(AND(OR(Calculations!$E$2="Shetland Health Board",Calculations!$E$2="Western Isles Health Board",Calculations!$E$2="Shetland Islands Local Authority",Calculations!$E$2="Eilean Siar Local Authority"),OR($F64=1,$F64=5)),0,new_ci(VALUE(LEFT(Options!$B$14,2)),$C64,$E64,$F64,2016,$I64/10+$J64/10,1,$H64/10,$G64*$H64/10,RateRatios_airpollution!$E64)*10)) -> 17.55373758 | AE64: =IF(AND(OR(Calculations!$E$2="Orkney Health Board",Calculations!$E$2="Orkney Islands Local Authority"),$F64=1),0,IF(AND(OR(Calculations!$E$2="Shetland Health Board",Calculations!$E$2="Western Isles Health Board",Calculations!$E$2="Shetland Islands Local Authority",Calculations!$E$2="Eilean Siar Local Authority"),OR($F64=1,$F64=5)),0,new_yllv2(VALUE(LEFT(Options!$B$14,2)),$C64,$D64,$E64,$F64,2016,$I64/10,1,$H64/10,$G64*$H64/10,RateRatios_airpollution!$E64)*10)) -> 1028.48253 | AF64: =IF(AND(OR(Calculations!$E$2="Orkney Health Board",Calculations!$E$2="Orkney Islands Local Authority"),$F64=1),0,IF(AND(OR(Calculations!$E$2="Shetland Health Board",Calculations!$E$2="Western Isles Health Board",Calculations!$E$2="Shetland Islands Local Authority",Calculations!$E$2="Eilean Siar Local Authority"),OR($F64=1,$F64=5)),0,new_yllv2(VALUE(LEFT(Options!$B$14,2)),$C64,$D64,$E64,$F64,2016,$I64/10+$J64/10,1,$H64/10,$G64*$H64/10,RateRatios_airpollution!$E64)*10)) -> 1028.473537 | AG64: =IF(AND(OR(Calculations!$E$2="Orkney Health Board",Calculations!$E$2="Orkney Islands Local Authority"),$F64=1),0,IF(AND(OR(Calculations!$E$2="Shetland Health Board",Calculations!$E$2="Western Isles Health Board",Calculations!$E$2="Shetland Islands Local Authority",Calculations!$E$2="Eilean Siar Local Authority"),OR($F64=1,$F64=5)),0,hosp_count(VALUE(LEFT(Options!$B$14,2)),$C64,$E64,$F64,2016,$I64/10,1,$H64/10,$G64*$H64/10, RateRatios_airpollution!$F64, RateRatios_airpollution!$E64)*10)) -> 6006.741035 | AH64: =IF(AND(OR(Calculations!$E$2="Orkney Health Board",Calculations!$E$2="Orkney Islands Local Authority"),$F64=1),0,IF(AND(OR(Calculations!$E$2="Shetland Health Board",Calculations!$E$2="Western Isles Health Board",Calculations!$E$2="Shetland Islands Local Authority",Calculations!$E$2="Eilean Siar Local Authority"),OR($F64=1,$F64=5)),0,hosp_count(VALUE(LEFT(Options!$B$14,2)),$C64,$E64,$F64,2016,$I64/10+$J64/10,1,$H64/10,$G64*$H64/10, RateRatios_airpollution!$F64, RateRatios_airpollution!$E64)*10)) -> 6006.741035 | AI64: =IF(AND(OR(Calculations!$E$2="Orkney Health Board",Calculations!$E$2="Orkney Islands Local Authority"),$F64=1),0,IF(AND(OR(Calculations!$E$2="Shetland Health Board",Calculations!$E$2="Western Isles Health Board",Calculations!$E$2="Shetland Islands Local Authority",Calculations!$E$2="Eilean Siar Local Authority"),OR($F64=1,$F64=5)),0,prem_mort(VALUE(LEFT(Options!$B$14,2)),$C64,$E64,$F64,2016,$I64/10,1,$H64/10,$G64*$H64/10,RateRatios_airpollution!$E64)*10)) -> 17.55389106 | AJ64: =IF(AND(OR(Calculations!$E$2="Orkney Health Board",Calculations!$E$2="Orkney Islands Local Authority"),$F64=1),0,IF(AND(OR(Calculations!$E$2="Shetland Health Board",Calculations!$E$2="Western Isles Health Board",Calculations!$E$2="Shetland Islands Local Authority",Calculations!$E$2="Eilean Siar Local Authority"),OR($F64=1,$F64=5)),0,prem_mort(VALUE(LEFT(Options!$B$14,2)),$C64,$E64,$F64,2016,$I64/10+$J64/10,1,$H64/10,$G64*$H64/10,RateRatios_airpollution!$E64)*10)) -> 17.55373758 | AK64: 17.55389106 | AL64: 17.54819804 | AM64: 1028.48253 | AN64: 1028.148976 | AO64: 6006.741035 | AP64: 6004.7455 | AQ64: 17.55389106 | AR64: 17.54819804 | AS64: =AK64*100000/$H64 -> 46.6561 | AT64: =AL64*100000/$H64 -> 46.64096863 | AU64: =AM64*100000/$H64 -> 2733.581039 | AV64: =AN64*100000/$H64 -> 2732.694492 | AW64: =AO64*100000/$H64 -> 15965.18455 | AX64: =AP64*100000/$H64 -> 15959.88066 | AY64: =AQ64*100000/$H64 -> 46.6561 | AZ64: =AR64*100000/$H64 -> 46.64096863 | BA64: 279936.6 | BB64: 279845.8118 | BC64: 16401486.23 | BD64: 16396166.95 | BE64: 95791107.3 | BF64: 95759283.97 | BG64: 279936.6 | BH64: 279845.8118 | BI64: 6000
B65: Female 25-29 | C65: 26.975187 | D65: 81.64519 | E65: female | F65: 1 | G65: 1 | H65: =HLOOKUP(Calculations!$E$2,'Population 2016'!$C$3:$BC$249,'Population 2016'!BD65,FALSE) -> 45129 | I65: 0 | J65: =HLOOKUP(Calculations!$E$2,Pop2016_in_settlements!$C$3:$BC$249,Pop2016_in_settlements!$BD65,FALSE) -> 32950 | K65: =IF(AND(OR(Calculations!$E$2="Orkney Health Board",Calculations!$E$2="Orkney Islands Local Authority"),$F65=1),0,IF(AND(OR(Calculations!$E$2="Shetland Health Board",Calculations!$E$2="Western Isles Health Board",Calculations!$E$2="Shetland Islands Local Authority",Calculations!$E$2="Eilean Siar Local Authority"),OR($F65=1,$F65=5)),0,new_ci(VALUE(LEFT(Options!$B$14,2)),$C65,$E65,$F65,2016,$I65/10,1,$H65/10,$G65*$H65/10,RateRatios_accidents!$B$5)*10)) -> 31.93316758 | L65: =IF(AND(OR(Calculations!$E$2="Orkney Health Board",Calculations!$E$2="Orkney Islands Local Authority"),$F65=1),0,IF(AND(OR(Calculations!$E$2="Shetland Health Board",Calculations!$E$2="Western Isles Health Board",Calculations!$E$2="Shetland Islands Local Authority",Calculations!$E$2="Eilean Siar Local Authority"),OR($F65=1,$F65=5)),0,new_ci(VALUE(LEFT(Options!$B$14,2)),$C65,$E65,$F65,2016,$I65/10+$J65/10,1,$H65/10,$G65*$H65/10,RateRatios_accidents!$B$5)*10)) -> 31.92384273 | M65: =IF(AND(OR(Calculations!$E$2="Orkney Health Board",Calculations!$E$2="Orkney Islands Local Authority"),$F65=1),0,IF(AND(OR(Calculations!$E$2="Shetland Health Board",Calculations!$E$2="Western Isles Health Board",Calculations!$E$2="Shetland Islands Local Authority",Calculations!$E$2="Eilean Siar Local Authority"),OR($F65=1,$F65=5)),0,new_yllv2(VALUE(LEFT(Options!$B$14,2)),$C65,$D65,$E65,$F65,2016,$I65/10,1,$H65/10,$G65*$H65/10,RateRatios_accidents!$B$5)*10)) -> 1713.8532 | N65: =IF(AND(OR(Calculations!$E$2="Orkney Health Board",Calculations!$E$2="Orkney Islands Local Authority"),$F65=1),0,IF(AND(OR(Calculations!$E$2="Shetland Health Board",Calculations!$E$2="Western Isles Health Board",Calculations!$E$2="Shetland Islands Local Authority",Calculations!$E$2="Eilean Siar Local Authority"),OR($F65=1,$F65=5)),0,new_yllv2(VALUE(LEFT(Options!$B$14,2)),$C65,$D65,$E65,$F65,2016,$I65/10+$J65/10,1,$H65/10,$G65*$H65/10,RateRatios_accidents!$B$5)*10)) -> 1713.352735 | O65: =IF(AND(OR(Calculations!$E$2="Orkney Health Board",Calculations!$E$2="Orkney Islands Local Authority"),$F65=1),0,IF(AND(OR(Calculations!$E$2="Shetland Health Board",Calculations!$E$2="Western Isles Health Board",Calculations!$E$2="Shetland Islands Local Authority",Calculations!$E$2="Eilean Siar Local Authority"),OR($F65=1,$F65=5)),0,hosp_count(VALUE(LEFT(Options!$B$14,2)),$C65,$E65,$F65,2016,$I65/10,1,$H65/10,$G65*$H65/10, RateRatios_accidents!$B$4, RateRatios_accidents!$B$5)*10)) -> 8149.619987 | P65: =IF(AND(OR(Calculations!$E$2="Orkney Health Board",Calculations!$E$2="Orkney Islands Local Authority"),$F65=1),0,IF(AND(OR(Calculations!$E$2="Shetland Health Board",Calculations!$E$2="Western Isles Health Board",Calculations!$E$2="Shetland Islands Local Authority",Calculations!$E$2="Eilean Siar Local Authority"),OR($F65=1,$F65=5)),0,hosp_count(VALUE(LEFT(Options!$B$14,2)),$C65,$E65,$F65,2016,$I65/10+$J65/10,1,$H65/10,$G65*$H65/10, RateRatios_accidents!$B$4, RateRatios_accidents!$B$5)*10)) -> 8147.239876 | Q65: =IF(AND(OR(Calculations!$E$2="Orkney Health Board",Calculations!$E$2="Orkney Islands Local Authority"),$F65=1),0,IF(AND(OR(Calculations!$E$2="Shetland Health Board",Calculations!$E$2="Western Isles Health Board",Calculations!$E$2="Shetland Islands Local Authority",Calculations!$E$2="Eilean Siar Local Authority"),OR($F65=1,$F65=5)),0,prem_mort(VALUE(LEFT(Options!$B$14,2)),$C65,$E65,$F65,2016,$I65/10,1,$H65/10,$G65*$H65/10,RateRatios_accidents!$B$5)*10)) -> 31.93316758 | R65: =IF(AND(OR(Calculations!$E$2="Orkney Health Board",Calculations!$E$2="Orkney Islands Local Authority"),$F65=1),0,IF(AND(OR(Calculations!$E$2="Shetland Health Board",Calculations!$E$2="Western Isles Health Board",Calculations!$E$2="Shetland Islands Local Authority",Calculations!$E$2="Eilean Siar Local Authority"),OR($F65=1,$F65=5)),0,prem_mort(VALUE(LEFT(Options!$B$14,2)),$C65,$E65,$F65,2016,$I65/10+$J65/10,1,$H65/10,$G65*$H65/10,RateRatios_accidents!$B$5)*10)) -> 31.92384273 | T65: =IF(AND(OR(Calculations!$E$2="Orkney Health Board",Calculations!$E$2="Orkney Islands Local Authority"),$F65=1),0,IF(AND(OR(Calculations!$E$2="Shetland Health Board",Calculations!$E$2="Western Isles Health Board",Calculations!$E$2="Shetland Islands Local Authority",Calculations!$E$2="Eilean Siar Local Authority"),OR($F65=1,$F65=5)),0,new_ci(VALUE(LEFT(Options!$B$14,2)),$C65,$E65,$F65,2016,$I65/10,1,$H65/10,$G65*$H65/10,RateRatios_airpollution!$C65)*10)) -> 31.93316758 | U65: =IF(AND(OR(Calculations!$E$2="Orkney Health Board",Calculations!$E$2="Orkney Islands Local Authority"),$F65=1),0,IF(AND(OR(Calculations!$E$2="Shetland Health Board",Calculations!$E$2="Western Isles Health Board",Calculations!$E$2="Shetland Islands Local Authority",Calculations!$E$2="Eilean Siar Local Authority"),OR($F65=1,$F65=5)),0,new_ci(VALUE(LEFT(Options!$B$14,2)),$C65,$E65,$F65,2016,$I65/10+$J65/10,1,$H65/10,$G65*$H65/10,RateRatios_airpollution!$C65)*10)) -> 31.93255471 | V65: =IF(AND(OR(Calculations!$E$2="Orkney Health Board",Calculations!$E$2="Orkney Islands Local Authority"),$F65=1),0,IF(AND(OR(Calculations!$E$2="Shetland Health Board",Calculations!$E$2="Western Isles Health Board",Calculations!$E$2="Shetland Islands Local Authority",Calculations!$E$2="Eilean Siar Local Authority"),OR($F65=1,$F65=5)),0,new_yllv2(VALUE(LEFT(Options!$B$14,2)),$C65,$D65,$E65,$F65,2016,$I65/10,1,$H65/10,$G65*$H65/10,RateRatios_airpollution!$C65)*10)) -> 1713.8532 | W65: =IF(AND(OR(Calculations!$E$2="Orkney Health Board",Calculations!$E$2="Orkney Islands Local Authority"),$F65=1),0,IF(AND(OR(Calculations!$E$2="Shetland Health Board",Calculations!$E$2="Western Isles Health Board",Calculations!$E$2="Shetland Islands Local Authority",Calculations!$E$2="Eilean Siar Local Authority"),OR($F65=1,$F65=5)),0,new_yllv2(VALUE(LEFT(Options!$B$14,2)),$C65,$D65,$E65,$F65,2016,$I65/10+$J65/10,1,$H65/10,$G65*$H65/10,RateRatios_airpollution!$C65)*10)) -> 1713.820307 | X65: =IF(AND(OR(Calculations!$E$2="Orkney Health Board",Calculations!$E$2="Orkney Islands Local Authority"),$F65=1),0,IF(AND(OR(Calculations!$E$2="Shetland Health Board",Calculations!$E$2="Western Isles Health Board",Calculations!$E$2="Shetland Islands Local Authority",Calculations!$E$2="Eilean Siar Local Authority"),OR($F65=1,$F65=5)),0,hosp_count(VALUE(LEFT(Options!$B$14,2)),$C65,$E65,$F65,2016,$I65/10,1,$H65/10,$G65*$H65/10, RateRatios_airpollution!$D65, RateRatios_airpollution!$C65)*10)) -> 8149.619987 | Y65: =IF(AND(OR(Calculations!$E$2="Orkney Health Board",Calculations!$E$2="Orkney Islands Local Authority"),$F65=1),0,IF(AND(OR(Calculations!$E$2="Shetland Health Board",Calculations!$E$2="Western Isles Health Board",Calculations!$E$2="Shetland Islands Local Authority",Calculations!$E$2="Eilean Siar Local Authority"),OR($F65=1,$F65=5)),0,hosp_count(VALUE(LEFT(Options!$B$14,2)),$C65,$E65,$F65,2016,$I65/10+$J65/10,1,$H65/10,$G65*$H65/10, RateRatios_airpollution!$D65, RateRatios_airpollution!$C65)*10)) -> 8149.326185 | Z65: =IF(AND(OR(Calculations!$E$2="Orkney Health Board",Calculations!$E$2="Orkney Islands Local Authority"),$F65=1),0,IF(AND(OR(Calculations!$E$2="Shetland Health Board",Calculations!$E$2="Western Isles Health Board",Calculations!$E$2="Shetland Islands Local Authority",Calculations!$E$2="Eilean Siar Local Authority"),OR($F65=1,$F65=5)),0,prem_mort(VALUE(LEFT(Options!$B$14,2)),$C65,$E65,$F65,2016,$I65/10,1,$H65/10,$G65*$H65/10,RateRatios_airpollution!$C65)*10)) -> 31.93316758 | AA65: =IF(AND(OR(Calculations!$E$2="Orkney Health Board",Calculations!$E$2="Orkney Islands Local Authority"),$F65=1),0,IF(AND(OR(Calculations!$E$2="Shetland Health Board",Calculations!$E$2="Western Isles Health Board",Calculations!$E$2="Shetland Islands Local Authority",Calculations!$E$2="Eilean Siar Local Authority"),OR($F65=1,$F65=5)),0,prem_mort(VALUE(LEFT(Options!$B$14,2)),$C65,$E65,$F65,2016,$I65/10+$J65/10,1,$H65/10,$G65*$H65/10,RateRatios_airpollution!$C65)*10)) -> 31.93255471 | AC65: =IF(AND(OR(Calculations!$E$2="Orkney Health Board",Calculations!$E$2="Orkney Islands Local Authority"),$F65=1),0,IF(AND(OR(Calculations!$E$2="Shetland Health Board",Calculations!$E$2="Western Isles Health Board",Calculations!$E$2="Shetland Islands Local Authority",Calculations!$E$2="Eilean Siar Local Authority"),OR($F65=1,$F65=5)),0,new_ci(VALUE(LEFT(Options!$B$14,2)),$C65,$E65,$F65,2016,$I65/10,1,$H65/10,$G65*$H65/10,RateRatios_airpollution!$E65)*10)) -> 31.93316758 | AD65: =IF(AND(OR(Calculations!$E$2="Orkney Health Board",Calculations!$E$2="Orkney Islands Local Authority"),$F65=1),0,IF(AND(OR(Calculations!$E$2="Shetland Health Board",Calculations!$E$2="Western Isles Health Board",Calculations!$E$2="Shetland Islands Local Authority",Calculations!$E$2="Eilean Siar Local Authority"),OR($F65=1,$F65=5)),0,new_ci(VALUE(LEFT(Options!$B$14,2)),$C65,$E65,$F65,2016,$I65/10+$J65/10,1,$H65/10,$G65*$H65/10,RateRatios_airpollution!$E65)*10)) -> 31.93288091 | AE65: =IF(AND(OR(Calculations!$E$2="Orkney Health Board",Calculations!$E$2="Orkney Islands Local Authority"),$F65=1),0,IF(AND(OR(Calculations!$E$2="Shetland Health Board",Calculations!$E$2="Western Isles Health Board",Calculations!$E$2="Shetland Islands Local Authority",Calculations!$E$2="Eilean Siar Local Authority"),OR($F65=1,$F65=5)),0,new_yllv2(VALUE(LEFT(Options!$B$14,2)),$C65,$D65,$E65,$F65,2016,$I65/10,1,$H65/10,$G65*$H65/10,RateRatios_airpollution!$E65)*10)) -> 1713.8532 | AF65: =IF(AND(OR(Calculations!$E$2="Orkney Health Board",Calculations!$E$2="Orkney Islands Local Authority"),$F65=1),0,IF(AND(OR(Calculations!$E$2="Shetland Health Board",Calculations!$E$2="Western Isles Health Board",Calculations!$E$2="Shetland Islands Local Authority",Calculations!$E$2="Eilean Siar Local Authority"),OR($F65=1,$F65=5)),0,new_yllv2(VALUE(LEFT(Options!$B$14,2)),$C65,$D65,$E65,$F65,2016,$I65/10+$J65/10,1,$H65/10,$G65*$H65/10,RateRatios_airpollution!$E65)*10)) -> 1713.837814 | AG65: =IF(AND(OR(Calculations!$E$2="Orkney Health Board",Calculations!$E$2="Orkney Islands Local Authority"),$F65=1),0,IF(AND(OR(Calculations!$E$2="Shetland Health Board",Calculations!$E$2="Western Isles Health Board",Calculations!$E$2="Shetland Islands Local Authority",Calculations!$E$2="Eilean Siar Local Authority"),OR($F65=1,$F65=5)),0,hosp_count(VALUE(LEFT(Options!$B$14,2)),$C65,$E65,$F65,2016,$I65/10,1,$H65/10,$G65*$H65/10, RateRatios_airpollution!$F65, RateRatios_airpollution!$E65)*10)) -> 8149.619987 | AH65: =IF(AND(OR(Calculations!$E$2="Orkney Health Board",Calculations!$E$2="Orkney Islands Local Authority"),$F65=1),0,IF(AND(OR(Calculations!$E$2="Shetland Health Board",Calculations!$E$2="Western Isles Health Board",Calculations!$E$2="Shetland Islands Local Authority",Calculations!$E$2="Eilean Siar Local Authority"),OR($F65=1,$F65=5)),0,hosp_count(VALUE(LEFT(Options!$B$14,2)),$C65,$E65,$F65,2016,$I65/10+$J65/10,1,$H65/10,$G65*$H65/10, RateRatios_airpollution!$F65, RateRatios_airpollution!$E65)*10)) -> 8149.619987 | AI65: =IF(AND(OR(Calculations!$E$2="Orkney Health Board",Calculations!$E$2="Orkney Islands Local Authority"),$F65=1),0,IF(AND(OR(Calculations!$E$2="Shetland Health Board",Calculations!$E$2="Western Isles Health Board",Calculations!$E$2="Shetland Islands Local Authority",Calculations!$E$2="Eilean Siar Local Authority"),OR($F65=1,$F65=5)),0,prem_mort(VALUE(LEFT(Options!$B$14,2)),$C65,$E65,$F65,2016,$I65/10,1,$H65/10,$G65*$H65/10,RateRatios_airpollution!$E65)*10)) -> 31.93316758 | AJ65: =IF(AND(OR(Calculations!$E$2="Orkney Health Board",Calculations!$E$2="Orkney Islands Local Authority"),$F65=1),0,IF(AND(OR(Calculations!$E$2="Shetland Health Board",Calculations!$E$2="Western Isles Health Board",Calculations!$E$2="Shetland Islands Local Authority",Calculations!$E$2="Eilean Siar Local Authority"),OR($F65=1,$F65=5)),0,prem_mort(VALUE(LEFT(Options!$B$14,2)),$C65,$E65,$F65,2016,$I65/10+$J65/10,1,$H65/10,$G65*$H65/10,RateRatios_airpollution!$E65)*10)) -> 31.93288091 | AK65: 31.93316758 | AL65: 31.92294319 | AM65: 1713.8532 | AN65: 1713.304457 | AO65: 8149.619987 | AP65: 8146.946074 | AQ65: 31.93316758 | AR65: 31.92294319 | AS65: 70.75975 | AT65: 70.73709409 | AU65: 3797.675995 | AV65: 3796.460052 | AW65: 18058.49894 | AX65: 18052.5739 | AY65: 70.75975 | AZ65: 70.73709409 | BA65: 424558.5 | BB65: =AT65*$BI65 -> 424422.5645 | BC65: 22786055.97 | BD65: 22778760.31 | BE65: 108350993.6 | BF65: 108315443.4 | BG65: 424558.5 | BH65: 424422.5645 | BI65: 6000
B66: Female 30-34 | C66: 31.999905 | D66: 81.7999 | E66: female | F66: 1 | G66: 1 | H66: =HLOOKUP(Calculations!$E$2,'Population 2016'!$C$3:$BC$249,'Population 2016'!BD66,FALSE) -> 41240 | I66: 0 | J66: =HLOOKUP(Calculations!$E$2,Pop2016_in_settlements!$C$3:$BC$249,Pop2016_in_settlements!$BD66,FALSE) -> 29725 | K66: =IF(AND(OR(Calculations!$E$2="Orkney Health Board",Calculations!$E$2="Orkney Islands Local Authority"),$F66=1),0,IF(AND(OR(Calculations!$E$2="Shetland Health Board",Calculations!$E$2="Western Isles Health Board",Calculations!$E$2="Shetland Islands Local Authority",Calculations!$E$2="Eilean Siar Local Authority"),OR($F66=1,$F66=5)),0,new_ci(VALUE(LEFT(Options!$B$14,2)),$C66,$E66,$F66,2016,$I66/10,1,$H66/10,$G66*$H66/10,RateRatios_accidents!$B$5)*10)) -> 44.73311873 | L66: =IF(AND(OR(Calculations!$E$2="Orkney Health Board",Calculations!$E$2="Orkney Islands Local Authority"),$F66=1),0,IF(AND(OR(Calculations!$E$2="Shetland Health Board",Calculations!$E$2="Western Isles Health Board",Calculations!$E$2="Shetland Islands Local Authority",Calculations!$E$2="Eilean Siar Local Authority"),OR($F66=1,$F66=5)),0,new_ci(VALUE(LEFT(Options!$B$14,2)),$C66,$E66,$F66,2016,$I66/10+$J66/10,1,$H66/10,$G66*$H66/10,RateRatios_accidents!$B$5)*10)) -> 44.72022997 | M66: =IF(AND(OR(Calculations!$E$2="Orkney Health Board",Calculations!$E$2="Orkney Islands Local Authority"),$F66=1),0,IF(AND(OR(Calculations!$E$2="Shetland Health Board",Calculations!$E$2="Western Isles Health Board",Calculations!$E$2="Shetland Islands Local Authority",Calculations!$E$2="Eilean Siar Local Authority"),OR($F66=1,$F66=5)),0,new_yllv2(VALUE(LEFT(Options!$B$14,2)),$C66,$D66,$E66,$F66,2016,$I66/10,1,$H66/10,$G66*$H66/10,RateRatios_accidents!$B$5)*10)) -> 2182.97597 | N66: =IF(AND(OR(Calculations!$E$2="Orkney Health Board",Calculations!$E$2="Orkney Islands Local Authority"),$F66=1),0,IF(AND(OR(Calculations!$E$2="Shetland Health Board",Calculations!$E$2="Western Isles Health Board",Calculations!$E$2="Shetland Islands Local Authority",Calculations!$E$2="Eilean Siar Local Authority"),OR($F66=1,$F66=5)),0,new_yllv2(VALUE(LEFT(Options!$B$14,2)),$C66,$D66,$E66,$F66,2016,$I66/10+$J66/10,1,$H66/10,$G66*$H66/10,RateRatios_accidents!$B$5)*10)) -> 2182.346999 | O66: =IF(AND(OR(Calculations!$E$2="Orkney Health Board",Calculations!$E$2="Orkney Islands Local Authority"),$F66=1),0,IF(AND(OR(Calculations!$E$2="Shetland Health Board",Calculations!$E$2="Western Isles Health Board",Calculations!$E$2="Shetland Islands Local Authority",Calculations!$E$2="Eilean Siar Local Authority"),OR($F66=1,$F66=5)),0,hosp_count(VALUE(LEFT(Options!$B$14,2)),$C66,$E66,$F66,2016,$I66/10,1,$H66/10,$G66*$H66/10, RateRatios_accidents!$B$4, RateRatios_accidents!$B$5)*10)) -> 8450.664705 | P66: =IF(AND(OR(Calculations!$E$2="Orkney Health Board",Calculations!$E$2="Orkney Islands Local Authority"),$F66=1),0,IF(AND(OR(Calculations!$E$2="Shetland Health Board",Calculations!$E$2="Western Isles Health Board",Calculations!$E$2="Shetland Islands Local Authority",Calculations!$E$2="Eilean Siar Local Authority"),OR($F66=1,$F66=5)),0,hosp_count(VALUE(LEFT(Options!$B$14,2)),$C66,$E66,$F66,2016,$I66/10+$J66/10,1,$H66/10,$G66*$H66/10, RateRatios_accidents!$B$4, RateRatios_accidents!$B$5)*10)) -> 8448.228275 | Q66: =IF(AND(OR(Calculations!$E$2="Orkney Health Board",Calculations!$E$2="Orkney Islands Local Authority"),$F66=1),0,IF(AND(OR(Calculations!$E$2="Shetland Health Board",Calculations!$E$2="Western Isles Health Board",Calculations!$E$2="Shetland Islands Local Authority",Calculations!$E$2="Eilean Siar Local Authority"),OR($F66=1,$F66=5)),0,prem_mort(VALUE(LEFT(Options!$B$14,2)),$C66,$E66,$F66,2016,$I66/10,1,$H66/10,$G66*$H66/10,RateRatios_accidents!$B$5)*10)) -> 44.73311873 | R66: =IF(AND(OR(Calculations!$E$2="Orkney Health Board",Calculations!$E$2="Orkney Islands Local Authority"),$F66=1),0,IF(AND(OR(Calculations!$E$2="Shetland Health Board",Calculations!$E$2="Western Isles Health Board",Calculations!$E$2="Shetland Islands Local Authority",Calculations!$E$2="Eilean Siar Local Authority"),OR($F66=1,$F66=5)),0,prem_mort(VALUE(LEFT(Options!$B$14,2)),$C66,$E66,$F66,2016,$I66/10+$J66/10,1,$H66/10,$G66*$H66/10,RateRatios_accidents!$B$5)*10)) -> 44.72022997 | T66: =IF(AND(OR(Calculations!$E$2="Orkney Health Board",Calculations!$E$2="Orkney Islands Local Authority"),$F66=1),0,IF(AND(OR(Calculations!$E$2="Shetland Health Board",Calculations!$E$2="Western Isles Health Board",Calculations!$E$2="Shetland Islands Local Authority",Calculations!$E$2="Eilean Siar Local Authority"),OR($F66=1,$F66=5)),0,new_ci(VALUE(LEFT(Options!$B$14,2)),$C66,$E66,$F66,2016,$I66/10,1,$H66/10,$G66*$H66/10,RateRatios_airpollution!$C66)*10)) -> 44.73311873 | U66: =IF(AND(OR(Calculations!$E$2="Orkney Health Board",Calculations!$E$2="Orkney Islands Local Authority"),$F66=1),0,IF(AND(OR(Calculations!$E$2="Shetland Health Board",Calculations!$E$2="Western Isles Health Board",Calculations!$E$2="Shetland Islands Local Authority",Calculations!$E$2="Eilean Siar Local Authority"),OR($F66=1,$F66=5)),0,new_ci(VALUE(LEFT(Options!$B$14,2)),$C66,$E66,$F66,2016,$I66/10+$J66/10,1,$H66/10,$G66*$H66/10,RateRatios_airpollution!$C66)*10)) -> 44.73230129 | V66: =IF(AND(OR(Calculations!$E$2="Orkney Health Board",Calculations!$E$2="Orkney Islands Local Authority"),$F66=1),0,IF(AND(OR(Calculations!$E$2="Shetland Health Board",Calculations!$E$2="Western Isles Health Board",Calculations!$E$2="Shetland Islands Local Authority",Calculations!$E$2="Eilean Siar Local Authority"),OR($F66=1,$F66=5)),0,new_yllv2(VALUE(LEFT(Options!$B$14,2)),$C66,$D66,$E66,$F66,2016,$I66/10,1,$H66/10,$G66*$H66/10,RateRatios_airpollution!$C66)*10)) -> 2182.97597 | W66: =IF(AND(OR(Calculations!$E$2="Orkney Health Board",Calculations!$E$2="Orkney Islands Local Authority"),$F66=1),0,IF(AND(OR(Calculations!$E$2="Shetland Health Board",Calculations!$E$2="Western Isles Health Board",Calculations!$E$2="Shetland Islands Local Authority",Calculations!$E$2="Eilean Siar Local Authority"),OR($F66=1,$F66=5)),0,new_yllv2(VALUE(LEFT(Options!$B$14,2)),$C66,$D66,$E66,$F66,2016,$I66/10+$J66/10,1,$H66/10,$G66*$H66/10,RateRatios_airpollution!$C66)*10)) -> 2182.936079 | X66: =IF(AND(OR(Calculations!$E$2="Orkney Health Board",Calculations!$E$2="Orkney Islands Local Authority"),$F66=1),0,IF(AND(OR(Calculations!$E$2="Shetland Health Board",Calculations!$E$2="Western Isles Health Board",Calculations!$E$2="Shetland Islands Local Authority",Calculations!$E$2="Eilean Siar Local Authority"),OR($F66=1,$F66=5)),0,hosp_count(VALUE(LEFT(Options!$B$14,2)),$C66,$E66,$F66,2016,$I66/10,1,$H66/10,$G66*$H66/10, RateRatios_airpollution!$D66, RateRatios_airpollution!$C66)*10)) -> 8450.664705 | Y66: =IF(AND(OR(Calculations!$E$2="Orkney Health Board",Calculations!$E$2="Orkney Islands Local Authority"),$F66=1),0,IF(AND(OR(Calculations!$E$2="Shetland Health Board",Calculations!$E$2="Western Isles Health Board",Calculations!$E$2="Shetland Islands Local Authority",Calculations!$E$2="Eilean Siar Local Authority"),OR($F66=1,$F66=5)),0,hosp_count(VALUE(LEFT(Options!$B$14,2)),$C66,$E66,$F66,2016,$I66/10+$J66/10,1,$H66/10,$G66*$H66/10, RateRatios_airpollution!$D66, RateRatios_airpollution!$C66)*10)) -> 8450.373275 | Z66: =IF(AND(OR(Calculations!$E$2="Orkney Health Board",Calculations!$E$2="Orkney Islands Local Authority"),$F66=1),0,IF(AND(OR(Calculations!$E$2="Shetland Health Board",Calculations!$E$2="Western Isles Health Board",Calculations!$E$2="Shetland Islands Local Authority",Calculations!$E$2="Eilean Siar Local Authority"),OR($F66=1,$F66=5)),0,prem_mort(VALUE(LEFT(Options!$B$14,2)),$C66,$E66,$F66,2016,$I66/10,1,$H66/10,$G66*$H66/10,RateRatios_airpollution!$C66)*10)) -> 44.73311873 | AA66: =IF(AND(OR(Calculations!$E$2="Orkney Health Board",Calculations!$E$2="Orkney Islands Local Authority"),$F66=1),0,IF(AND(OR(Calculations!$E$2="Shetland Health Board",Calculations!$E$2="Western Isles Health Board",Calculations!$E$2="Shetland Islands Local Authority",Calculations!$E$2="Eilean Siar Local Authority"),OR($F66=1,$F66=5)),0,prem_mort(VALUE(LEFT(Options!$B$14,2)),$C66,$E66,$F66,2016,$I66/10+$J66/10,1,$H66/10,$G66*$H66/10,RateRatios_airpollution!$C66)*10)) -> 44.73230129 | AC66: =IF(AND(OR(Calculations!$E$2="Orkney Health Board",Calculations!$E$2="Orkney Islands Local Authority"),$F66=1),0,IF(AND(OR(Calculations!$E$2="Shetland Health Board",Calculations!$E$2="Western Isles Health Board",Calculations!$E$2="Shetland Islands Local Authority",Calculations!$E$2="Eilean Siar Local Authority"),OR($F66=1,$F66=5)),0,new_ci(VALUE(LEFT(Options!$B$14,2)),$C66,$E66,$F66,2016,$I66/10,1,$H66/10,$G66*$H66/10,RateRatios_airpollution!$E66)*10)) -> 44.73311873 | AD66: =IF(AND(OR(Calculations!$E$2="Orkney Health Board",Calculations!$E$2="Orkney Islands Local Authority"),$F66=1),0,IF(AND(OR(Calculations!$E$2="Shetland Health Board",Calculations!$E$2="Western Isles Health Board",Calculations!$E$2="Shetland Islands Local Authority",Calculations!$E$2="Eilean Siar Local Authority"),OR($F66=1,$F66=5)),0,new_ci(VALUE(LEFT(Options!$B$14,2)),$C66,$E66,$F66,2016,$I66/10+$J66/10,1,$H66/10,$G66*$H66/10,RateRatios_airpollution!$E66)*10)) -> 44.7327323 | AE66: =IF(AND(OR(Calculations!$E$2="Orkney Health Board",Calculations!$E$2="Orkney Islands Local Authority"),$F66=1),0,IF(AND(OR(Calculations!$E$2="Shetland Health Board",Calculations!$E$2="Western Isles Health Board",Calculations!$E$2="Shetland Islands Local Authority",Calculations!$E$2="Eilean Siar Local Authority"),OR($F66=1,$F66=5)),0,new_yllv2(VALUE(LEFT(Options!$B$14,2)),$C66,$D66,$E66,$F66,2016,$I66/10,1,$H66/10,$G66*$H66/10,RateRatios_airpollution!$E66)*10)) -> 2182.97597 | AF66: =IF(AND(OR(Calculations!$E$2="Orkney Health Board",Calculations!$E$2="Orkney Islands Local Authority"),$F66=1),0,IF(AND(OR(Calculations!$E$2="Shetland Health Board",Calculations!$E$2="Western Isles Health Board",Calculations!$E$2="Shetland Islands Local Authority",Calculations!$E$2="Eilean Siar Local Authority"),OR($F66=1,$F66=5)),0,new_yllv2(VALUE(LEFT(Options!$B$14,2)),$C66,$D66,$E66,$F66,2016,$I66/10+$J66/10,1,$H66/10,$G66*$H66/10,RateRatios_airpollution!$E66)*10)) -> 2182.957113 | AG66: =IF(AND(OR(Calculations!$E$2="Orkney Health Board",Calculations!$E$2="Orkney Islands Local Authority"),$F66=1),0,IF(AND(OR(Calculations!$E$2="Shetland Health Board",Calculations!$E$2="Western Isles Health Board",Calculations!$E$2="Shetland Islands Local Authority",Calculations!$E$2="Eilean Siar Local Authority"),OR($F66=1,$F66=5)),0,hosp_count(VALUE(LEFT(Options!$B$14,2)),$C66,$E66,$F66,2016,$I66/10,1,$H66/10,$G66*$H66/10, RateRatios_airpollution!$F66, RateRatios_airpollution!$E66)*10)) -> 8450.664705 | AH66: =IF(AND(OR(Calculations!$E$2="Orkney Health Board",Calculations!$E$2="Orkney Islands Local Authority"),$F66=1),0,IF(AND(OR(Calculations!$E$2="Shetland Health Board",Calculations!$E$2="Western Isles Health Board",Calculations!$E$2="Shetland Islands Local Authority",Calculations!$E$2="Eilean Siar Local Authority"),OR($F66=1,$F66=5)),0,hosp_count(VALUE(LEFT(Options!$B$14,2)),$C66,$E66,$F66,2016,$I66/10+$J66/10,1,$H66/10,$G66*$H66/10, RateRatios_airpollution!$F66, RateRatios_airpollution!$E66)*10)) -> 8450.664705 | AI66: =IF(AND(OR(Calculations!$E$2="Orkney Health Board",Calculations!$E$2="Orkney Islands Local Authority"),$F66=1),0,IF(AND(OR(Calculations!$E$2="Shetland Health Board",Calculations!$E$2="Western Isles Health Board",Calculations!$E$2="Shetland Islands Local Authority",Calculations!$E$2="Eilean Siar Local Authority"),OR($F66=1,$F66=5)),0,prem_mort(VALUE(LEFT(Options!$B$14,2)),$C66,$E66,$F66,2016,$I66/10,1,$H66/10,$G66*$H66/10,RateRatios_airpollution!$E66)*10)) -> 44.73311873 | AJ66: =IF(AND(OR(Calculations!$E$2="Orkney Health Board",Calculations!$E$2="Orkney Islands Local Authority"),$F66=1),0,IF(AND(OR(Calculations!$E$2="Shetland Health Board",Calculations!$E$2="Western Isles Health Board",Calculations!$E$2="Shetland Islands Local Authority",Calculations!$E$2="Eilean Siar Local Authority"),OR($F66=1,$F66=5)),0,prem_mort(VALUE(LEFT(Options!$B$14,2)),$C66,$E66,$F66,2016,$I66/10+$J66/10,1,$H66/10,$G66*$H66/10,RateRatios_airpollution!$E66)*10)) -> 44.7327323 | AK66: 44.73311873 | AL66: 44.71902611 | AM66: 2182.97597 | AN66: 2182.28825 | AO66: 8450.664705 | AP66: 8447.936845 | AQ66: 44.73311873 | AR66: 44.71902611 | AS66: 108.47022 | AT66: 108.4360478 | AU66: 5293.346194 | AV66: 5291.67859 | AW66: 20491.42751 | AX66: 20484.81291 | AY66: 108.47022 | AZ66: 108.4360478 | BA66: 705056.43 | BB66: 704834.3106 | BC66: 34406750.26 | BD66: 34395910.83 | BE66: 133194278.8 | BF66: 133151283.9 | BG66: 705056.43 | BH66: 704834.3106 | BI66: 6500
B67: Female 35-39 | C67: 36.918118 | D67: 81.89812 | E67: female | F67: 1 | G67: 1 | H67: =HLOOKUP(Calculations!$E$2,'Population 2016'!$C$3:$BC$249,'Population 2016'!BD67,FALSE) -> 35038 | I67: 0 | J67: =HLOOKUP(Calculations!$E$2,Pop2016_in_settlements!$C$3:$BC$249,Pop2016_in_settlements!$BD67,FALSE) -> 25255 | K67: =IF(AND(OR(Calculations!$E$2="Orkney Health Board",Calculations!$E$2="Orkney Islands Local Authority"),$F67=1),0,IF(AND(OR(Calculations!$E$2="Shetland Health Board",Calculations!$E$2="Western Isles Health Board",Calculations!$E$2="Shetland Islands Local Authority",Calculations!$E$2="Eilean Siar Local Authority"),OR($F67=1,$F67=5)),0,new_ci(VALUE(LEFT(Options!$B$14,2)),$C67,$E67,$F67,2016,$I67/10,1,$H67/10,$G67*$H67/10,RateRatios_accidents!$B$5)*10)) -> 57.72972651 | L67: =IF(AND(OR(Calculations!$E$2="Orkney Health Board",Calculations!$E$2="Orkney Islands Local Authority"),$F67=1),0,IF(AND(OR(Calculations!$E$2="Shetland Health Board",Calculations!$E$2="Western Isles Health Board",Calculations!$E$2="Shetland Islands Local Authority",Calculations!$E$2="Eilean Siar Local Authority"),OR($F67=1,$F67=5)),0,new_ci(VALUE(LEFT(Options!$B$14,2)),$C67,$E67,$F67,2016,$I67/10+$J67/10,1,$H67/10,$G67*$H67/10,RateRatios_accidents!$B$5)*10)) -> 57.71309357 | M67: =IF(AND(OR(Calculations!$E$2="Orkney Health Board",Calculations!$E$2="Orkney Islands Local Authority"),$F67=1),0,IF(AND(OR(Calculations!$E$2="Shetland Health Board",Calculations!$E$2="Western Isles Health Board",Calculations!$E$2="Shetland Islands Local Authority",Calculations!$E$2="Eilean Siar Local Authority"),OR($F67=1,$F67=5)),0,new_yllv2(VALUE(LEFT(Options!$B$14,2)),$C67,$D67,$E67,$F67,2016,$I67/10,1,$H67/10,$G67*$H67/10,RateRatios_accidents!$B$5)*10)) -> 2538.953487 | N67: =IF(AND(OR(Calculations!$E$2="Orkney Health Board",Calculations!$E$2="Orkney Islands Local Authority"),$F67=1),0,IF(AND(OR(Calculations!$E$2="Shetland Health Board",Calculations!$E$2="Western Isles Health Board",Calculations!$E$2="Shetland Islands Local Authority",Calculations!$E$2="Eilean Siar Local Authority"),OR($F67=1,$F67=5)),0,new_yllv2(VALUE(LEFT(Options!$B$14,2)),$C67,$D67,$E67,$F67,2016,$I67/10+$J67/10,1,$H67/10,$G67*$H67/10,RateRatios_accidents!$B$5)*10)) -> 2538.221971 | O67: =IF(AND(OR(Calculations!$E$2="Orkney Health Board",Calculations!$E$2="Orkney Islands Local Authority"),$F67=1),0,IF(AND(OR(Calculations!$E$2="Shetland Health Board",Calculations!$E$2="Western Isles Health Board",Calculations!$E$2="Shetland Islands Local Authority",Calculations!$E$2="Eilean Siar Local Authority"),OR($F67=1,$F67=5)),0,hosp_count(VALUE(LEFT(Options!$B$14,2)),$C67,$E67,$F67,2016,$I67/10,1,$H67/10,$G67*$H67/10, RateRatios_accidents!$B$4, RateRatios_accidents!$B$5)*10)) -> 8125.285242 | P67: =IF(AND(OR(Calculations!$E$2="Orkney Health Board",Calculations!$E$2="Orkney Islands Local Authority"),$F67=1),0,IF(AND(OR(Calculations!$E$2="Shetland Health Board",Calculations!$E$2="Western Isles Health Board",Calculations!$E$2="Shetland Islands Local Authority",Calculations!$E$2="Eilean Siar Local Authority"),OR($F67=1,$F67=5)),0,hosp_count(VALUE(LEFT(Options!$B$14,2)),$C67,$E67,$F67,2016,$I67/10+$J67/10,1,$H67/10,$G67*$H67/10, RateRatios_accidents!$B$4, RateRatios_accidents!$B$5)*10)) -> 8122.942596 | Q67: =IF(AND(OR(Calculations!$E$2="Orkney Health Board",Calculations!$E$2="Orkney Islands Local Authority"),$F67=1),0,IF(AND(OR(Calculations!$E$2="Shetland Health Board",Calculations!$E$2="Western Isles Health Board",Calculations!$E$2="Shetland Islands Local Authority",Calculations!$E$2="Eilean Siar Local Authority"),OR($F67=1,$F67=5)),0,prem_mort(VALUE(LEFT(Options!$B$14,2)),$C67,$E67,$F67,2016,$I67/10,1,$H67/10,$G67*$H67/10,RateRatios_accidents!$B$5)*10)) -> 57.72972651 | R67: =IF(AND(OR(Calculations!$E$2="Orkney Health Board",Calculations!$E$2="Orkney Islands Local Authority"),$F67=1),0,IF(AND(OR(Calculations!$E$2="Shetland Health Board",Calculations!$E$2="Western Isles Health Board",Calculations!$E$2="Shetland Islands Local Authority",Calculations!$E$2="Eilean Siar Local Authority"),OR($F67=1,$F67=5)),0,prem_mort(VALUE(LEFT(Options!$B$14,2)),$C67,$E67,$F67,2016,$I67/10+$J67/10,1,$H67/10,$G67*$H67/10,RateRatios_accidents!$B$5)*10)) -> 57.71309357 | T67: =IF(AND(OR(Calculations!$E$2="Orkney Health Board",Calculations!$E$2="Orkney Islands Local Authority"),$F67=1),0,IF(AND(OR(Calculations!$E$2="Shetland Health Board",Calculations!$E$2="Western Isles Health Board",Calculations!$E$2="Shetland Islands Local Authority",Calculations!$E$2="Eilean Siar Local Authority"),OR($F67=1,$F67=5)),0,new_ci(VALUE(LEFT(Options!$B$14,2)),$C67,$E67,$F67,2016,$I67/10,1,$H67/10,$G67*$H67/10,RateRatios_airpollution!$C67)*10)) -> 57.72972651 | U67: =IF(AND(OR(Calculations!$E$2="Orkney Health Board",Calculations!$E$2="Orkney Islands Local Authority"),$F67=1),0,IF(AND(OR(Calculations!$E$2="Shetland Health Board",Calculations!$E$2="Western Isles Health Board",Calculations!$E$2="Shetland Islands Local Authority",Calculations!$E$2="Eilean Siar Local Authority"),OR($F67=1,$F67=5)),0,new_ci(VALUE(LEFT(Options!$B$14,2)),$C67,$E67,$F67,2016,$I67/10+$J67/10,1,$H67/10,$G67*$H67/10,RateRatios_airpollution!$C67)*10)) -> 57.72869611 | V67: =IF(AND(OR(Calculations!$E$2="Orkney Health Board",Calculations!$E$2="Orkney Islands Local Authority"),$F67=1),0,IF(AND(OR(Calculations!$E$2="Shetland Health Board",Calculations!$E$2="Western Isles Health Board",Calculations!$E$2="Shetland Islands Local Authority",Calculations!$E$2="Eilean Siar Local Authority"),OR($F67=1,$F67=5)),0,new_yllv2(VALUE(LEFT(Options!$B$14,2)),$C67,$D67,$E67,$F67,2016,$I67/10,1,$H67/10,$G67*$H67/10,RateRatios_airpollution!$C67)*10)) -> 2538.953487 | W67: =IF(AND(OR(Calculations!$E$2="Orkney Health Board",Calculations!$E$2="Orkney Islands Local Authority"),$F67=1),0,IF(AND(OR(Calculations!$E$2="Shetland Health Board",Calculations!$E$2="Western Isles Health Board",Calculations!$E$2="Shetland Islands Local Authority",Calculations!$E$2="Eilean Siar Local Authority"),OR($F67=1,$F67=5)),0,new_yllv2(VALUE(LEFT(Options!$B$14,2)),$C67,$D67,$E67,$F67,2016,$I67/10+$J67/10,1,$H67/10,$G67*$H67/10,RateRatios_airpollution!$C67)*10)) -> 2538.90817 | X67: =IF(AND(OR(Calculations!$E$2="Orkney Health Board",Calculations!$E$2="Orkney Islands Local Authority"),$F67=1),0,IF(AND(OR(Calculations!$E$2="Shetland Health Board",Calculations!$E$2="Western Isles Health Board",Calculations!$E$2="Shetland Islands Local Authority",Calculations!$E$2="Eilean Siar Local Authority"),OR($F67=1,$F67=5)),0,hosp_count(VALUE(LEFT(Options!$B$14,2)),$C67,$E67,$F67,2016,$I67/10,1,$H67/10,$G67*$H67/10, RateRatios_airpollution!$D67, RateRatios_airpollution!$C67)*10)) -> 8125.285242 | Y67: =IF(AND(OR(Calculations!$E$2="Orkney Health Board",Calculations!$E$2="Orkney Islands Local Authority"),$F67=1),0,IF(AND(OR(Calculations!$E$2="Shetland Health Board",Calculations!$E$2="Western Isles Health Board",Calculations!$E$2="Shetland Islands Local Authority",Calculations!$E$2="Eilean Siar Local Authority"),OR($F67=1,$F67=5)),0,hosp_count(VALUE(LEFT(Options!$B$14,2)),$C67,$E67,$F67,2016,$I67/10+$J67/10,1,$H67/10,$G67*$H67/10, RateRatios_airpollution!$D67, RateRatios_airpollution!$C67)*10)) -> 8125.012336 | Z67: =IF(AND(OR(Calculations!$E$2="Orkney Health Board",Calculations!$E$2="Orkney Islands Local Authority"),$F67=1),0,IF(AND(OR(Calculations!$E$2="Shetland Health Board",Calculations!$E$2="Western Isles Health Board",Calculations!$E$2="Shetland Islands Local Authority",Calculations!$E$2="Eilean Siar Local Authority"),OR($F67=1,$F67=5)),0,prem_mort(VALUE(LEFT(Options!$B$14,2)),$C67,$E67,$F67,2016,$I67/10,1,$H67/10,$G67*$H67/10,RateRatios_airpollution!$C67)*10)) -> 57.72972651 | AA67: =IF(AND(OR(Calculations!$E$2="Orkney Health Board",Calculations!$E$2="Orkney Islands Local Authority"),$F67=1),0,IF(AND(OR(Calculations!$E$2="Shetland Health Board",Calculations!$E$2="Western Isles Health Board",Calculations!$E$2="Shetland Islands Local Authority",Calculations!$E$2="Eilean Siar Local Authority"),OR($F67=1,$F67=5)),0,prem_mort(VALUE(LEFT(Options!$B$14,2)),$C67,$E67,$F67,2016,$I67/10+$J67/10,1,$H67/10,$G67*$H67/10,RateRatios_airpollution!$C67)*10)) -> 57.72869611 | AC67: =IF(AND(OR(Calculations!$E$2="Orkney Health Board",Calculations!$E$2="Orkney Islands Local Authority"),$F67=1),0,IF(AND(OR(Calculations!$E$2="Shetland Health Board",Calculations!$E$2="Western Isles Health Board",Calculations!$E$2="Shetland Islands Local Authority",Calculations!$E$2="Eilean Siar Local Authority"),OR($F67=1,$F67=5)),0,new_ci(VALUE(LEFT(Options!$B$14,2)),$C67,$E67,$F67,2016,$I67/10,1,$H67/10,$G67*$H67/10,RateRatios_airpollution!$E67)*10)) -> 57.72972651 | AD67: =IF(AND(OR(Calculations!$E$2="Orkney Health Board",Calculations!$E$2="Orkney Islands Local Authority"),$F67=1),0,IF(AND(OR(Calculations!$E$2="Shetland Health Board",Calculations!$E$2="Western Isles Health Board",Calculations!$E$2="Shetland Islands Local Authority",Calculations!$E$2="Eilean Siar Local Authority"),OR($F67=1,$F67=5)),0,new_ci(VALUE(LEFT(Options!$B$14,2)),$C67,$E67,$F67,2016,$I67/10+$J67/10,1,$H67/10,$G67*$H67/10,RateRatios_airpollution!$E67)*10)) -> 57.72923656 | AE67: =IF(AND(OR(Calculations!$E$2="Orkney Health Board",Calculations!$E$2="Orkney Islands Local Authority"),$F67=1),0,IF(AND(OR(Calculations!$E$2="Shetland Health Board",Calculations!$E$2="Western Isles Health Board",Calculations!$E$2="Shetland Islands Local Authority",Calculations!$E$2="Eilean Siar Local Authority"),OR($F67=1,$F67=5)),0,new_yllv2(VALUE(LEFT(Options!$B$14,2)),$C67,$D67,$E67,$F67,2016,$I67/10,1,$H67/10,$G67*$H67/10,RateRatios_airpollution!$E67)*10)) -> 2538.953487 | AF67: =IF(AND(OR(Calculations!$E$2="Orkney Health Board",Calculations!$E$2="Orkney Islands Local Authority"),$F67=1),0,IF(AND(OR(Calculations!$E$2="Shetland Health Board",Calculations!$E$2="Western Isles Health Board",Calculations!$E$2="Shetland Islands Local Authority",Calculations!$E$2="Eilean Siar Local Authority"),OR($F67=1,$F67=5)),0,new_yllv2(VALUE(LEFT(Options!$B$14,2)),$C67,$D67,$E67,$F67,2016,$I67/10+$J67/10,1,$H67/10,$G67*$H67/10,RateRatios_airpollution!$E67)*10)) -> 2538.93194 | AG67: =IF(AND(OR(Calculations!$E$2="Orkney Health Board",Calculations!$E$2="Orkney Islands Local Authority"),$F67=1),0,IF(AND(OR(Calculations!$E$2="Shetland Health Board",Calculations!$E$2="Western Isles Health Board",Calculations!$E$2="Shetland Islands Local Authority",Calculations!$E$2="Eilean Siar Local Authority"),OR($F67=1,$F67=5)),0,hosp_count(VALUE(LEFT(Options!$B$14,2)),$C67,$E67,$F67,2016,$I67/10,1,$H67/10,$G67*$H67/10, RateRatios_airpollution!$F67, RateRatios_airpollution!$E67)*10)) -> 8125.285242 | AH67: =IF(AND(OR(Calculations!$E$2="Orkney Health Board",Calculations!$E$2="Orkney Islands Local Authority"),$F67=1),0,IF(AND(OR(Calculations!$E$2="Shetland Health Board",Calculations!$E$2="Western Isles Health Board",Calculations!$E$2="Shetland Islands Local Authority",Calculations!$E$2="Eilean Siar Local Authority"),OR($F67=1,$F67=5)),0,hosp_count(VALUE(LEFT(Options!$B$14,2)),$C67,$E67,$F67,2016,$I67/10+$J67/10,1,$H67/10,$G67*$H67/10, RateRatios_airpollution!$F67, RateRatios_airpollution!$E67)*10)) -> 8125.285242 | AI67: =IF(AND(OR(Calculations!$E$2="Orkney Health Board",Calculations!$E$2="Orkney Islands Local Authority"),$F67=1),0,IF(AND(OR(Calculations!$E$2="Shetland Health Board",Calculations!$E$2="Western Isles Health Board",Calculations!$E$2="Shetland Islands Local Authority",Calculations!$E$2="Eilean Siar Local Authority"),OR($F67=1,$F67=5)),0,prem_mort(VALUE(LEFT(Options!$B$14,2)),$C67,$E67,$F67,2016,$I67/10,1,$H67/10,$G67*$H67/10,RateRatios_airpollution!$E67)*10)) -> 57.72972651 | AJ67: =IF(AND(OR(Calculations!$E$2="Orkney Health Board",Calculations!$E$2="Orkney Islands Local Authority"),$F67=1),0,IF(AND(OR(Calculations!$E$2="Shetland Health Board",Calculations!$E$2="Western Isles Health Board",Calculations!$E$2="Shetland Islands Local Authority",Calculations!$E$2="Eilean Siar Local Authority"),OR($F67=1,$F67=5)),0,prem_mort(VALUE(LEFT(Options!$B$14,2)),$C67,$E67,$F67,2016,$I67/10+$J67/10,1,$H67/10,$G67*$H67/10,RateRatios_airpollution!$E67)*10)) -> 57.72923656 | AK67: 57.72972651 | AL67: 57.71157322 | AM67: 2538.953487 | AN67: 2538.155106 | AO67: 8125.285242 | AP67: 8122.66969 | AQ67: 57.72972651 | AR67: 57.71157322 | AS67: 164.76319 | AT67: 164.7113797 | AU67: 7246.285426 | AV67: 7244.006808 | AW67: 23189.92306 | AX67: 23182.45816 | AY67: 164.76319 | AZ67: 164.7113797 | BA67: 1153342.33 | BB67: 1152979.658 | BC67: 50723997.98 | BD67: 50708047.66 | BE67: 162329461.4 | BF67: 162277207.1 | BG67: 1153342.33 | BH67: 1152979.658 | BI67: 7000
B68: Female 40-44 | C68: 42.077438 | D68: 82.30744 | E68: female | F68: 1 | G68: 1 | H68: =HLOOKUP(Calculations!$E$2,'Population 2016'!$C$3:$BC$249,'Population 2016'!BD68,FALSE) -> 33663 | I68: 0 | J68: =HLOOKUP(Calculations!$E$2,Pop2016_in_settlements!$C$3:$BC$249,Pop2016_in_settlements!$BD68,FALSE) -> 24487 | K68: =IF(AND(OR(Calculations!$E$2="Orkney Health Board",Calculations!$E$2="Orkney Islands Local Authority"),$F68=1),0,IF(AND(OR(Calculations!$E$2="Shetland Health Board",Calculations!$E$2="Western Isles Health Board",Calculations!$E$2="Shetland Islands Local Authority",Calculations!$E$2="Eilean Siar Local Authority"),OR($F68=1,$F68=5)),0,new_ci(VALUE(LEFT(Options!$B$14,2)),$C68,$E68,$F68,2016,$I68/10,1,$H68/10,$G68*$H68/10,RateRatios_accidents!$B$5)*10)) -> 85.97932136 | L68: =IF(AND(OR(Calculations!$E$2="Orkney Health Board",Calculations!$E$2="Orkney Islands Local Authority"),$F68=1),0,IF(AND(OR(Calculations!$E$2="Shetland Health Board",Calculations!$E$2="Western Isles Health Board",Calculations!$E$2="Shetland Islands Local Authority",Calculations!$E$2="Eilean Siar Local Authority"),OR($F68=1,$F68=5)),0,new_ci(VALUE(LEFT(Options!$B$14,2)),$C68,$E68,$F68,2016,$I68/10+$J68/10,1,$H68/10,$G68*$H68/10,RateRatios_accidents!$B$5)*10)) -> 85.95433483 | M68: =IF(AND(OR(Calculations!$E$2="Orkney Health Board",Calculations!$E$2="Orkney Islands Local Authority"),$F68=1),0,IF(AND(OR(Calculations!$E$2="Shetland Health Board",Calculations!$E$2="Western Isles Health Board",Calculations!$E$2="Shetland Islands Local Authority",Calculations!$E$2="Eilean Siar Local Authority"),OR($F68=1,$F68=5)),0,new_yllv2(VALUE(LEFT(Options!$B$14,2)),$C68,$D68,$E68,$F68,2016,$I68/10,1,$H68/10,$G68*$H68/10,RateRatios_accidents!$B$5)*10)) -> 3372.968949 | N68: =IF(AND(OR(Calculations!$E$2="Orkney Health Board",Calculations!$E$2="Orkney Islands Local Authority"),$F68=1),0,IF(AND(OR(Calculations!$E$2="Shetland Health Board",Calculations!$E$2="Western Isles Health Board",Calculations!$E$2="Shetland Islands Local Authority",Calculations!$E$2="Eilean Siar Local Authority"),OR($F68=1,$F68=5)),0,new_yllv2(VALUE(LEFT(Options!$B$14,2)),$C68,$D68,$E68,$F68,2016,$I68/10+$J68/10,1,$H68/10,$G68*$H68/10,RateRatios_accidents!$B$5)*10)) -> 3371.988727 | O68: =IF(AND(OR(Calculations!$E$2="Orkney Health Board",Calculations!$E$2="Orkney Islands Local Authority"),$F68=1),0,IF(AND(OR(Calculations!$E$2="Shetland Health Board",Calculations!$E$2="Western Isles Health Board",Calculations!$E$2="Shetland Islands Local Authority",Calculations!$E$2="Eilean Siar Local Authority"),OR($F68=1,$F68=5)),0,hosp_count(VALUE(LEFT(Options!$B$14,2)),$C68,$E68,$F68,2016,$I68/10,1,$H68/10,$G68*$H68/10, RateRatios_accidents!$B$4, RateRatios_accidents!$B$5)*10)) -> 8888.185251 | P68: =IF(AND(OR(Calculations!$E$2="Orkney Health Board",Calculations!$E$2="Orkney Islands Local Authority"),$F68=1),0,IF(AND(OR(Calculations!$E$2="Shetland Health Board",Calculations!$E$2="Western Isles Health Board",Calculations!$E$2="Shetland Islands Local Authority",Calculations!$E$2="Eilean Siar Local Authority"),OR($F68=1,$F68=5)),0,hosp_count(VALUE(LEFT(Options!$B$14,2)),$C68,$E68,$F68,2016,$I68/10+$J68/10,1,$H68/10,$G68*$H68/10, RateRatios_accidents!$B$4, RateRatios_accidents!$B$5)*10)) -> 8885.599088 | Q68: =IF(AND(OR(Calculations!$E$2="Orkney Health Board",Calculations!$E$2="Orkney Islands Local Authority"),$F68=1),0,IF(AND(OR(Calculations!$E$2="Shetland Health Board",Calculations!$E$2="Western Isles Health Board",Calculations!$E$2="Shetland Islands Local Authority",Calculations!$E$2="Eilean Siar Local Authority"),OR($F68=1,$F68=5)),0,prem_mort(VALUE(LEFT(Options!$B$14,2)),$C68,$E68,$F68,2016,$I68/10,1,$H68/10,$G68*$H68/10,RateRatios_accidents!$B$5)*10)) -> 85.97932136 | R68: =IF(AND(OR(Calculations!$E$2="Orkney Health Board",Calculations!$E$2="Orkney Islands Local Authority"),$F68=1),0,IF(AND(OR(Calculations!$E$2="Shetland Health Board",Calculations!$E$2="Western Isles Health Board",Calculations!$E$2="Shetland Islands Local Authority",Calculations!$E$2="Eilean Siar Local Authority"),OR($F68=1,$F68=5)),0,prem_mort(VALUE(LEFT(Options!$B$14,2)),$C68,$E68,$F68,2016,$I68/10+$J68/10,1,$H68/10,$G68*$H68/10,RateRatios_accidents!$B$5)*10)) -> 85.95433483 | T68: =IF(AND(OR(Calculations!$E$2="Orkney Health Board",Calculations!$E$2="Orkney Islands Local Authority"),$F68=1),0,IF(AND(OR(Calculations!$E$2="Shetland Health Board",Calculations!$E$2="Western Isles Health Board",Calculations!$E$2="Shetland Islands Local Authority",Calculations!$E$2="Eilean Siar Local Authority"),OR($F68=1,$F68=5)),0,new_ci(VALUE(LEFT(Options!$B$14,2)),$C68,$E68,$F68,2016,$I68/10,1,$H68/10,$G68*$H68/10,RateRatios_airpollution!$C68)*10)) -> 85.97932136 | U68: =IF(AND(OR(Calculations!$E$2="Orkney Health Board",Calculations!$E$2="Orkney Islands Local Authority"),$F68=1),0,IF(AND(OR(Calculations!$E$2="Shetland Health Board",Calculations!$E$2="Western Isles Health Board",Calculations!$E$2="Shetland Islands Local Authority",Calculations!$E$2="Eilean Siar Local Authority"),OR($F68=1,$F68=5)),0,new_ci(VALUE(LEFT(Options!$B$14,2)),$C68,$E68,$F68,2016,$I68/10+$J68/10,1,$H68/10,$G68*$H68/10,RateRatios_airpollution!$C68)*10)) -> 85.97782765 | V68: =IF(AND(OR(Calculations!$E$2="Orkney Health Board",Calculations!$E$2="Orkney Islands Local Authority"),$F68=1),0,IF(AND(OR(Calculations!$E$2="Shetland Health Board",Calculations!$E$2="Western Isles Health Board",Calculations!$E$2="Shetland Islands Local Authority",Calculations!$E$2="Eilean Siar Local Authority"),OR($F68=1,$F68=5)),0,new_yllv2(VALUE(LEFT(Options!$B$14,2)),$C68,$D68,$E68,$F68,2016,$I68/10,1,$H68/10,$G68*$H68/10,RateRatios_airpollution!$C68)*10)) -> 3372.968949 | W68: =IF(AND(OR(Calculations!$E$2="Orkney Health Board",Calculations!$E$2="Orkney Islands Local Authority"),$F68=1),0,IF(AND(OR(Calculations!$E$2="Shetland Health Board",Calculations!$E$2="Western Isles Health Board",Calculations!$E$2="Shetland Islands Local Authority",Calculations!$E$2="Eilean Siar Local Authority"),OR($F68=1,$F68=5)),0,new_yllv2(VALUE(LEFT(Options!$B$14,2)),$C68,$D68,$E68,$F68,2016,$I68/10+$J68/10,1,$H68/10,$G68*$H68/10,RateRatios_airpollution!$C68)*10)) -> 3372.910351 | X68: =IF(AND(OR(Calculations!$E$2="Orkney Health Board",Calculations!$E$2="Orkney Islands Local Authority"),$F68=1),0,IF(AND(OR(Calculations!$E$2="Shetland Health Board",Calculations!$E$2="Western Isles Health Board",Calculations!$E$2="Shetland Islands Local Authority",Calculations!$E$2="Eilean Siar Local Authority"),OR($F68=1,$F68=5)),0,hosp_count(VALUE(LEFT(Options!$B$14,2)),$C68,$E68,$F68,2016,$I68/10,1,$H68/10,$G68*$H68/10, RateRatios_airpollution!$D68, RateRatios_airpollution!$C68)*10)) -> 8888.185251 | Y68: =IF(AND(OR(Calculations!$E$2="Orkney Health Board",Calculations!$E$2="Orkney Islands Local Authority"),$F68=1),0,IF(AND(OR(Calculations!$E$2="Shetland Health Board",Calculations!$E$2="Western Isles Health Board",Calculations!$E$2="Shetland Islands Local Authority",Calculations!$E$2="Eilean Siar Local Authority"),OR($F68=1,$F68=5)),0,hosp_count(VALUE(LEFT(Options!$B$14,2)),$C68,$E68,$F68,2016,$I68/10+$J68/10,1,$H68/10,$G68*$H68/10, RateRatios_airpollution!$D68, RateRatios_airpollution!$C68)*10)) -> 8887.894318 | Z68: =IF(AND(OR(Calculations!$E$2="Orkney Health Board",Calculations!$E$2="Orkney Islands Local Authority"),$F68=1),0,IF(AND(OR(Calculations!$E$2="Shetland Health Board",Calculations!$E$2="Western Isles Health Board",Calculations!$E$2="Shetland Islands Local Authority",Calculations!$E$2="Eilean Siar Local Authority"),OR($F68=1,$F68=5)),0,prem_mort(VALUE(LEFT(Options!$B$14,2)),$C68,$E68,$F68,2016,$I68/10,1,$H68/10,$G68*$H68/10,RateRatios_airpollution!$C68)*10)) -> 85.97932136 | AA68: =IF(AND(OR(Calculations!$E$2="Orkney Health Board",Calculations!$E$2="Orkney Islands Local Authority"),$F68=1),0,IF(AND(OR(Calculations!$E$2="Shetland Health Board",Calculations!$E$2="Western Isles Health Board",Calculations!$E$2="Shetland Islands Local Authority",Calculations!$E$2="Eilean Siar Local Authority"),OR($F68=1,$F68=5)),0,prem_mort(VALUE(LEFT(Options!$B$14,2)),$C68,$E68,$F68,2016,$I68/10+$J68/10,1,$H68/10,$G68*$H68/10,RateRatios_airpollution!$C68)*10)) -> 85.97782765 | AC68: =IF(AND(OR(Calculations!$E$2="Orkney Health Board",Calculations!$E$2="Orkney Islands Local Authority"),$F68=1),0,IF(AND(OR(Calculations!$E$2="Shetland Health Board",Calculations!$E$2="Western Isles Health Board",Calculations!$E$2="Shetland Islands Local Authority",Calculations!$E$2="Eilean Siar Local Authority"),OR($F68=1,$F68=5)),0,new_ci(VALUE(LEFT(Options!$B$14,2)),$C68,$E68,$F68,2016,$I68/10,1,$H68/10,$G68*$H68/10,RateRatios_airpollution!$E68)*10)) -> 85.97932136 | AD68: =IF(AND(OR(Calculations!$E$2="Orkney Health Board",Calculations!$E$2="Orkney Islands Local Authority"),$F68=1),0,IF(AND(OR(Calculations!$E$2="Shetland Health Board",Calculations!$E$2="Western Isles Health Board",Calculations!$E$2="Shetland Islands Local Authority",Calculations!$E$2="Eilean Siar Local Authority"),OR($F68=1,$F68=5)),0,new_ci(VALUE(LEFT(Options!$B$14,2)),$C68,$E68,$F68,2016,$I68/10+$J68/10,1,$H68/10,$G68*$H68/10,RateRatios_airpollution!$E68)*10)) -> 85.97860879 | AE68: =IF(AND(OR(Calculations!$E$2="Orkney Health Board",Calculations!$E$2="Orkney Islands Local Authority"),$F68=1),0,IF(AND(OR(Calculations!$E$2="Shetland Health Board",Calculations!$E$2="Western Isles Health Board",Calculations!$E$2="Shetland Islands Local Authority",Calculations!$E$2="Eilean Siar Local Authority"),OR($F68=1,$F68=5)),0,new_yllv2(VALUE(LEFT(Options!$B$14,2)),$C68,$D68,$E68,$F68,2016,$I68/10,1,$H68/10,$G68*$H68/10,RateRatios_airpollution!$E68)*10)) -> 3372.968949 | AF68: =IF(AND(OR(Calculations!$E$2="Orkney Health Board",Calculations!$E$2="Orkney Islands Local Authority"),$F68=1),0,IF(AND(OR(Calculations!$E$2="Shetland Health Board",Calculations!$E$2="Western Isles Health Board",Calculations!$E$2="Shetland Islands Local Authority",Calculations!$E$2="Eilean Siar Local Authority"),OR($F68=1,$F68=5)),0,new_yllv2(VALUE(LEFT(Options!$B$14,2)),$C68,$D68,$E68,$F68,2016,$I68/10+$J68/10,1,$H68/10,$G68*$H68/10,RateRatios_airpollution!$E68)*10)) -> 3372.940995 | AG68: =IF(AND(OR(Calculations!$E$2="Orkney Health Board",Calculations!$E$2="Orkney Islands Local Authority"),$F68=1),0,IF(AND(OR(Calculations!$E$2="Shetland Health Board",Calculations!$E$2="Western Isles Health Board",Calculations!$E$2="Shetland Islands Local Authority",Calculations!$E$2="Eilean Siar Local Authority"),OR($F68=1,$F68=5)),0,hosp_count(VALUE(LEFT(Options!$B$14,2)),$C68,$E68,$F68,2016,$I68/10,1,$H68/10,$G68*$H68/10, RateRatios_airpollution!$F68, RateRatios_airpollution!$E68)*10)) -> 8888.185251 | AH68: =IF(AND(OR(Calculations!$E$2="Orkney Health Board",Calculations!$E$2="Orkney Islands Local Authority"),$F68=1),0,IF(AND(OR(Calculations!$E$2="Shetland Health Board",Calculations!$E$2="Western Isles Health Board",Calculations!$E$2="Shetland Islands Local Authority",Calculations!$E$2="Eilean Siar Local Authority"),OR($F68=1,$F68=5)),0,hosp_count(VALUE(LEFT(Options!$B$14,2)),$C68,$E68,$F68,2016,$I68/10+$J68/10,1,$H68/10,$G68*$H68/10, RateRatios_airpollution!$F68, RateRatios_airpollution!$E68)*10)) -> 8888.185251 | AI68: =IF(AND(OR(Calculations!$E$2="Orkney Health Board",Calculations!$E$2="Orkney Islands Local Authority"),$F68=1),0,IF(AND(OR(Calculations!$E$2="Shetland Health Board",Calculations!$E$2="Western Isles Health Board",Calculations!$E$2="Shetland Islands Local Authority",Calculations!$E$2="Eilean Siar Local Authority"),OR($F68=1,$F68=5)),0,prem_mort(VALUE(LEFT(Options!$B$14,2)),$C68,$E68,$F68,2016,$I68/10,1,$H68/10,$G68*$H68/10,RateRatios_airpollution!$E68)*10)) -> 85.97932136 | AJ68: =IF(AND(OR(Calculations!$E$2="Orkney Health Board",Calculations!$E$2="Orkney Islands Local Authority"),$F68=1),0,IF(AND(OR(Calculations!$E$2="Shetland Health Board",Calculations!$E$2="Western Isles Health Board",Calculations!$E$2="Shetland Islands Local Authority",Calculations!$E$2="Eilean Siar Local Authority"),OR($F68=1,$F68=5)),0,prem_mort(VALUE(LEFT(Options!$B$14,2)),$C68,$E68,$F68,2016,$I68/10+$J68/10,1,$H68/10,$G68*$H68/10,RateRatios_airpollution!$E68)*10)) -> 85.97860879 | AK68: 85.97932136 | AL68: 85.95212855 | AM68: 3372.968949 | AN68: 3371.902175 | AO68: 8888.185251 | AP68: 8885.308155 | AQ68: 85.97932136 | AR68: 85.95212855 | AS68: 255.41194 | AT68: 255.3311605 | AU68: 10019.81092 | AV68: 10016.64194 | AW68: 26403.42587 | AX68: 26394.87911 | AY68: 255.41194 | AZ68: 255.3311605 | BA68: 1787883.58 | BB68: 1787318.123 | BC68: 70138676.42 | BD68: 70116493.55 | BE68: 184823981.1 | BF68: 184764153.8 | BG68: 1787883.58 | BH68: 1787318.123 | BI68: 7000
B69: Female 45-49 | C69: 47.025772 | D69: 82.58577 | E69: female | F69: 1 | G69: 1 | H69: =HLOOKUP(Calculations!$E$2,'Population 2016'!$C$3:$BC$249,'Population 2016'!BD69,FALSE) -> 39197 | I69: 0 | J69: =HLOOKUP(Calculations!$E$2,Pop2016_in_settlements!$C$3:$BC$249,Pop2016_in_settlements!$BD69,FALSE) -> 28713 | K69: =IF(AND(OR(Calculations!$E$2="Orkney Health Board",Calculations!$E$2="Orkney Islands Local Authority"),$F69=1),0,IF(AND(OR(Calculations!$E$2="Shetland Health Board",Calculations!$E$2="Western Isles Health Board",Calculations!$E$2="Shetland Islands Local Authority",Calculations!$E$2="Eilean Siar Local Authority"),OR($F69=1,$F69=5)),0,new_ci(VALUE(LEFT(Options!$B$14,2)),$C69,$E69,$F69,2016,$I69/10,1,$H69/10,$G69*$H69/10,RateRatios_accidents!$B$5)*10)) -> 152.4011462 | L69: =IF(AND(OR(Calculations!$E$2="Orkney Health Board",Calculations!$E$2="Orkney Islands Local Authority"),$F69=1),0,IF(AND(OR(Calculations!$E$2="Shetland Health Board",Calculations!$E$2="Western Isles Health Board",Calculations!$E$2="Shetland Islands Local Authority",Calculations!$E$2="Eilean Siar Local Authority"),OR($F69=1,$F69=5)),0,new_ci(VALUE(LEFT(Options!$B$14,2)),$C69,$E69,$F69,2016,$I69/10+$J69/10,1,$H69/10,$G69*$H69/10,RateRatios_accidents!$B$5)*10)) -> 152.3565779 | M69: =IF(AND(OR(Calculations!$E$2="Orkney Health Board",Calculations!$E$2="Orkney Islands Local Authority"),$F69=1),0,IF(AND(OR(Calculations!$E$2="Shetland Health Board",Calculations!$E$2="Western Isles Health Board",Calculations!$E$2="Shetland Islands Local Authority",Calculations!$E$2="Eilean Siar Local Authority"),OR($F69=1,$F69=5)),0,new_yllv2(VALUE(LEFT(Options!$B$14,2)),$C69,$D69,$E69,$F69,2016,$I69/10,1,$H69/10,$G69*$H69/10,RateRatios_accidents!$B$5)*10)) -> 5266.983309 | N69: =IF(AND(OR(Calculations!$E$2="Orkney Health Board",Calculations!$E$2="Orkney Islands Local Authority"),$F69=1),0,IF(AND(OR(Calculations!$E$2="Shetland Health Board",Calculations!$E$2="Western Isles Health Board",Calculations!$E$2="Shetland Islands Local Authority",Calculations!$E$2="Eilean Siar Local Authority"),OR($F69=1,$F69=5)),0,new_yllv2(VALUE(LEFT(Options!$B$14,2)),$C69,$D69,$E69,$F69,2016,$I69/10+$J69/10,1,$H69/10,$G69*$H69/10,RateRatios_accidents!$B$5)*10)) -> 5265.443028 | O69: =IF(AND(OR(Calculations!$E$2="Orkney Health Board",Calculations!$E$2="Orkney Islands Local Authority"),$F69=1),0,IF(AND(OR(Calculations!$E$2="Shetland Health Board",Calculations!$E$2="Western Isles Health Board",Calculations!$E$2="Shetland Islands Local Authority",Calculations!$E$2="Eilean Siar Local Authority"),OR($F69=1,$F69=5)),0,hosp_count(VALUE(LEFT(Options!$B$14,2)),$C69,$E69,$F69,2016,$I69/10,1,$H69/10,$G69*$H69/10, RateRatios_accidents!$B$4, RateRatios_accidents!$B$5)*10)) -> 11721.12367 | P69: =IF(AND(OR(Calculations!$E$2="Orkney Health Board",Calculations!$E$2="Orkney Islands Local Authority"),$F69=1),0,IF(AND(OR(Calculations!$E$2="Shetland Health Board",Calculations!$E$2="Western Isles Health Board",Calculations!$E$2="Shetland Islands Local Authority",Calculations!$E$2="Eilean Siar Local Authority"),OR($F69=1,$F69=5)),0,hosp_count(VALUE(LEFT(Options!$B$14,2)),$C69,$E69,$F69,2016,$I69/10+$J69/10,1,$H69/10,$G69*$H69/10, RateRatios_accidents!$B$4, RateRatios_accidents!$B$5)*10)) -> 11717.68924 | Q69: =IF(AND(OR(Calculations!$E$2="Orkney Health Board",Calculations!$E$2="Orkney Islands Local Authority"),$F69=1),0,IF(AND(OR(Calculations!$E$2="Shetland Health Board",Calculations!$E$2="Western Isles Health Board",Calculations!$E$2="Shetland Islands Local Authority",Calculations!$E$2="Eilean Siar Local Authority"),OR($F69=1,$F69=5)),0,prem_mort(VALUE(LEFT(Options!$B$14,2)),$C69,$E69,$F69,2016,$I69/10,1,$H69/10,$G69*$H69/10,RateRatios_accidents!$B$5)*10)) -> 152.4011462 | R69: =IF(AND(OR(Calculations!$E$2="Orkney Health Board",Calculations!$E$2="Orkney Islands Local Authority"),$F69=1),0,IF(AND(OR(Calculations!$E$2="Shetland Health Board",Calculations!$E$2="Western Isles Health Board",Calculations!$E$2="Shetland Islands Local Authority",Calculations!$E$2="Eilean Siar Local Authority"),OR($F69=1,$F69=5)),0,prem_mort(VALUE(LEFT(Options!$B$14,2)),$C69,$E69,$F69,2016,$I69/10+$J69/10,1,$H69/10,$G69*$H69/10,RateRatios_accidents!$B$5)*10)) -> 152.3565779 | T69: =IF(AND(OR(Calculations!$E$2="Orkney Health Board",Calculations!$E$2="Orkney Islands Local Authority"),$F69=1),0,IF(AND(OR(Calculations!$E$2="Shetland Health Board",Calculations!$E$2="Western Isles Health Board",Calculations!$E$2="Shetland Islands Local Authority",Calculations!$E$2="Eilean Siar Local Authority"),OR($F69=1,$F69=5)),0,new_ci(VALUE(LEFT(Options!$B$14,2)),$C69,$E69,$F69,2016,$I69/10,1,$H69/10,$G69*$H69/10,RateRatios_airpollution!$C69)*10)) -> 152.4011462 | U69: =IF(AND(OR(Calculations!$E$2="Orkney Health Board",Calculations!$E$2="Orkney Islands Local Authority"),$F69=1),0,IF(AND(OR(Calculations!$E$2="Shetland Health Board",Calculations!$E$2="Western Isles Health Board",Calculations!$E$2="Shetland Islands Local Authority",Calculations!$E$2="Eilean Siar Local Authority"),OR($F69=1,$F69=5)),0,new_ci(VALUE(LEFT(Options!$B$14,2)),$C69,$E69,$F69,2016,$I69/10+$J69/10,1,$H69/10,$G69*$H69/10,RateRatios_airpollution!$C69)*10)) -> 152.3985133 | V69: =IF(AND(OR(Calculations!$E$2="Orkney Health Board",Calculations!$E$2="Orkney Islands Local Authority"),$F69=1),0,IF(AND(OR(Calculations!$E$2="Shetland Health Board",Calculations!$E$2="Western Isles Health Board",Calculations!$E$2="Shetland Islands Local Authority",Calculations!$E$2="Eilean Siar Local Authority"),OR($F69=1,$F69=5)),0,new_yllv2(VALUE(LEFT(Options!$B$14,2)),$C69,$D69,$E69,$F69,2016,$I69/10,1,$H69/10,$G69*$H69/10,RateRatios_airpollution!$C69)*10)) -> 5266.983309 | W69: =IF(AND(OR(Calculations!$E$2="Orkney Health Board",Calculations!$E$2="Orkney Islands Local Authority"),$F69=1),0,IF(AND(OR(Calculations!$E$2="Shetland Health Board",Calculations!$E$2="Western Isles Health Board",Calculations!$E$2="Shetland Islands Local Authority",Calculations!$E$2="Eilean Siar Local Authority"),OR($F69=1,$F69=5)),0,new_yllv2(VALUE(LEFT(Options!$B$14,2)),$C69,$D69,$E69,$F69,2016,$I69/10+$J69/10,1,$H69/10,$G69*$H69/10,RateRatios_airpollution!$C69)*10)) -> 5266.892313 | X69: =IF(AND(OR(Calculations!$E$2="Orkney Health Board",Calculations!$E$2="Orkney Islands Local Authority"),$F69=1),0,IF(AND(OR(Calculations!$E$2="Shetland Health Board",Calculations!$E$2="Western Isles Health Board",Calculations!$E$2="Shetland Islands Local Authority",Calculations!$E$2="Eilean Siar Local Authority"),OR($F69=1,$F69=5)),0,hosp_count(VALUE(LEFT(Options!$B$14,2)),$C69,$E69,$F69,2016,$I69/10,1,$H69/10,$G69*$H69/10, RateRatios_airpollution!$D69, RateRatios_airpollution!$C69)*10)) -> 11721.12367 | Y69: =IF(AND(OR(Calculations!$E$2="Orkney Health Board",Calculations!$E$2="Orkney Islands Local Authority"),$F69=1),0,IF(AND(OR(Calculations!$E$2="Shetland Health Board",Calculations!$E$2="Western Isles Health Board",Calculations!$E$2="Shetland Islands Local Authority",Calculations!$E$2="Eilean Siar Local Authority"),OR($F69=1,$F69=5)),0,hosp_count(VALUE(LEFT(Options!$B$14,2)),$C69,$E69,$F69,2016,$I69/10+$J69/10,1,$H69/10,$G69*$H69/10, RateRatios_airpollution!$D69, RateRatios_airpollution!$C69)*10)) -> 11720.74138 | Z69: =IF(AND(OR(Calculations!$E$2="Orkney Health Board",Calculations!$E$2="Orkney Islands Local Authority"),$F69=1),0,IF(AND(OR(Calculations!$E$2="Shetland Health Board",Calculations!$E$2="Western Isles Health Board",Calculations!$E$2="Shetland Islands Local Authority",Calculations!$E$2="Eilean Siar Local Authority"),OR($F69=1,$F69=5)),0,prem_mort(VALUE(LEFT(Options!$B$14,2)),$C69,$E69,$F69,2016,$I69/10,1,$H69/10,$G69*$H69/10,RateRatios_airpollution!$C69)*10)) -> 152.4011462 | AA69: =IF(AND(OR(Calculations!$E$2="Orkney Health Board",Calculations!$E$2="Orkney Islands Local Authority"),$F69=1),0,IF(AND(OR(Calculations!$E$2="Shetland Health Board",Calculations!$E$2="Western Isles Health Board",Calculations!$E$2="Shetland Islands Local Authority",Calculations!$E$2="Eilean Siar Local Authority"),OR($F69=1,$F69=5)),0,prem_mort(VALUE(LEFT(Options!$B$14,2)),$C69,$E69,$F69,2016,$I69/10+$J69/10,1,$H69/10,$G69*$H69/10,RateRatios_airpollution!$C69)*10)) -> 152.3985133 | AC69: =IF(AND(OR(Calculations!$E$2="Orkney Health Board",Calculations!$E$2="Orkney Islands Local Authority"),$F69=1),0,IF(AND(OR(Calculations!$E$2="Shetland Health Board",Calculations!$E$2="Western Isles Health Board",Calculations!$E$2="Shetland Islands Local Authority",Calculations!$E$2="Eilean Siar Local Authority"),OR($F69=1,$F69=5)),0,new_ci(VALUE(LEFT(Options!$B$14,2)),$C69,$E69,$F69,2016,$I69/10,1,$H69/10,$G69*$H69/10,RateRatios_airpollution!$E69)*10)) -> 152.4011462 | AD69: =IF(AND(OR(Calculations!$E$2="Orkney Health Board",Calculations!$E$2="Orkney Islands Local Authority"),$F69=1),0,IF(AND(OR(Calculations!$E$2="Shetland Health Board",Calculations!$E$2="Western Isles Health Board",Calculations!$E$2="Shetland Islands Local Authority",Calculations!$E$2="Eilean Siar Local Authority"),OR($F69=1,$F69=5)),0,new_ci(VALUE(LEFT(Options!$B$14,2)),$C69,$E69,$F69,2016,$I69/10+$J69/10,1,$H69/10,$G69*$H69/10,RateRatios_airpollution!$E69)*10)) -> 152.3998886 | AE69: =IF(AND(OR(Calculations!$E$2="Orkney Health Board",Calculations!$E$2="Orkney Islands Local Authority"),$F69=1),0,IF(AND(OR(Calculations!$E$2="Shetland Health Board",Calculations!$E$2="Western Isles Health Board",Calculations!$E$2="Shetland Islands Local Authority",Calculations!$E$2="Eilean Siar Local Authority"),OR($F69=1,$F69=5)),0,new_yllv2(VALUE(LEFT(Options!$B$14,2)),$C69,$D69,$E69,$F69,2016,$I69/10,1,$H69/10,$G69*$H69/10,RateRatios_airpollution!$E69)*10)) -> 5266.983309 | AF69: =IF(AND(OR(Calculations!$E$2="Orkney Health Board",Calculations!$E$2="Orkney Islands Local Authority"),$F69=1),0,IF(AND(OR(Calculations!$E$2="Shetland Health Board",Calculations!$E$2="Western Isles Health Board",Calculations!$E$2="Shetland Islands Local Authority",Calculations!$E$2="Eilean Siar Local Authority"),OR($F69=1,$F69=5)),0,new_yllv2(VALUE(LEFT(Options!$B$14,2)),$C69,$D69,$E69,$F69,2016,$I69/10+$J69/10,1,$H69/10,$G69*$H69/10,RateRatios_airpollution!$E69)*10)) -> 5266.939845 | AG69: =IF(AND(OR(Calculations!$E$2="Orkney Health Board",Calculations!$E$2="Orkney Islands Local Authority"),$F69=1),0,IF(AND(OR(Calculations!$E$2="Shetland Health Board",Calculations!$E$2="Western Isles Health Board",Calculations!$E$2="Shetland Islands Local Authority",Calculations!$E$2="Eilean Siar Local Authority"),OR($F69=1,$F69=5)),0,hosp_count(VALUE(LEFT(Options!$B$14,2)),$C69,$E69,$F69,2016,$I69/10,1,$H69/10,$G69*$H69/10, RateRatios_airpollution!$F69, RateRatios_airpollution!$E69)*10)) -> 11721.12367 | AH69: =IF(AND(OR(Calculations!$E$2="Orkney Health Board",Calculations!$E$2="Orkney Islands Local Authority"),$F69=1),0,IF(AND(OR(Calculations!$E$2="Shetland Health Board",Calculations!$E$2="Western Isles Health Board",Calculations!$E$2="Shetland Islands Local Authority",Calculations!$E$2="Eilean Siar Local Authority"),OR($F69=1,$F69=5)),0,hosp_count(VALUE(LEFT(Options!$B$14,2)),$C69,$E69,$F69,2016,$I69/10+$J69/10,1,$H69/10,$G69*$H69/10, RateRatios_airpollution!$F69, RateRatios_airpollution!$E69)*10)) -> 11721.12367 | AI69: =IF(AND(OR(Calculations!$E$2="Orkney Health Board",Calculations!$E$2="Orkney Islands Local Authority"),$F69=1),0,IF(AND(OR(Calculations!$E$2="Shetland Health Board",Calculations!$E$2="Western Isles Health Board",Calculations!$E$2="Shetland Islands Local Authority",Calculations!$E$2="Eilean Siar Local Authority"),OR($F69=1,$F69=5)),0,prem_mort(VALUE(LEFT(Options!$B$14,2)),$C69,$E69,$F69,2016,$I69/10,1,$H69/10,$G69*$H69/10,RateRatios_airpollution!$E69)*10)) -> 152.4011462 | AJ69: =IF(AND(OR(Calculations!$E$2="Orkney Health Board",Calculations!$E$2="Orkney Islands Local Authority"),$F69=1),0,IF(AND(OR(Calculations!$E$2="Shetland Health Board",Calculations!$E$2="Western Isles Health Board",Calculations!$E$2="Shetland Islands Local Authority",Calculations!$E$2="Eilean Siar Local Authority"),OR($F69=1,$F69=5)),0,prem_mort(VALUE(LEFT(Options!$B$14,2)),$C69,$E69,$F69,2016,$I69/10+$J69/10,1,$H69/10,$G69*$H69/10,RateRatios_airpollution!$E69)*10)) -> 152.3998886 | AK69: 152.4011462 | AL69: =AK69-((AK69-L69)+(AK69-U69)+(AK69-AD69)) -> 152.3526873 | AM69: 5266.983309 | AN69: =AM69-((AM69-N69)+(AM69-W69)+(AM69-AF69)) -> 5265.308569 | AO69: 11721.12367 | AP69: =AO69-((AO69-P69)+(AO69-Y69)+(AO69-AH69)) -> 11717.30694 | AQ69: 152.4011462 | AR69: =AQ69-((AQ69-R69)+(AQ69-AA69)+(AQ69-AJ69)) -> 152.3526873 | AS69: 388.80819 | AT69: 388.6845608 | AU69: 13437.21027 | AV69: 13432.93764 | AW69: 29903.1142 | AX69: 29893.3769 | AY69: 388.80819 | AZ69: 388.6845608 | BA69: 2721657.33 | BB69: 2720791.926 | BC69: 94060471.88 | BD69: 94030563.51 | BE69: 209321799.4 | BF69: 209253638.3 | BG69: 2721657.33 | BH69: 2720791.926 | BI69: 7000
B70: Female 50-54 | C70: 51.990826 | D70: 82.98083 | E70: female | F70: 1 | G70: 1 | H70: =HLOOKUP(Calculations!$E$2,'Population 2016'!$C$3:$BC$249,'Population 2016'!BD70,FALSE) -> 39704 | I70: 0 | J70: =HLOOKUP(Calculations!$E$2,Pop2016_in_settlements!$C$3:$BC$249,Pop2016_in_settlements!$BD70,FALSE) -> 29381 | K70: =IF(AND(OR(Calculations!$E$2="Orkney Health Board",Calculations!$E$2="Orkney Islands Local Authority"),$F70=1),0,IF(AND(OR(Calculations!$E$2="Shetland Health Board",Calculations!$E$2="Western Isles Health Board",Calculations!$E$2="Shetland Islands Local Authority",Calculations!$E$2="Eilean Siar Local Authority"),OR($F70=1,$F70=5)),0,new_ci(VALUE(LEFT(Options!$B$14,2)),$C70,$E70,$F70,2016,$I70/10,1,$H70/10,$G70*$H70/10,RateRatios_accidents!$B$5)*10)) -> 235.2490071 | L70: =IF(AND(OR(Calculations!$E$2="Orkney Health Board",Calculations!$E$2="Orkney Islands Local Authority"),$F70=1),0,IF(AND(OR(Calculations!$E$2="Shetland Health Board",Calculations!$E$2="Western Isles Health Board",Calculations!$E$2="Shetland Islands Local Authority",Calculations!$E$2="Eilean Siar Local Authority"),OR($F70=1,$F70=5)),0,new_ci(VALUE(LEFT(Options!$B$14,2)),$C70,$E70,$F70,2016,$I70/10+$J70/10,1,$H70/10,$G70*$H70/10,RateRatios_accidents!$B$5)*10)) -> 235.1795798 | M70: =IF(AND(OR(Calculations!$E$2="Orkney Health Board",Calculations!$E$2="Orkney Islands Local Authority"),$F70=1),0,IF(AND(OR(Calculations!$E$2="Shetland Health Board",Calculations!$E$2="Western Isles Health Board",Calculations!$E$2="Shetland Islands Local Authority",Calculations!$E$2="Eilean Siar Local Authority"),OR($F70=1,$F70=5)),0,new_yllv2(VALUE(LEFT(Options!$B$14,2)),$C70,$D70,$E70,$F70,2016,$I70/10,1,$H70/10,$G70*$H70/10,RateRatios_accidents!$B$5)*10)) -> 7055.118663 | N70: =IF(AND(OR(Calculations!$E$2="Orkney Health Board",Calculations!$E$2="Orkney Islands Local Authority"),$F70=1),0,IF(AND(OR(Calculations!$E$2="Shetland Health Board",Calculations!$E$2="Western Isles Health Board",Calculations!$E$2="Shetland Islands Local Authority",Calculations!$E$2="Eilean Siar Local Authority"),OR($F70=1,$F70=5)),0,new_yllv2(VALUE(LEFT(Options!$B$14,2)),$C70,$D70,$E70,$F70,2016,$I70/10+$J70/10,1,$H70/10,$G70*$H70/10,RateRatios_accidents!$B$5)*10)) -> 7053.036538 | O70: =IF(AND(OR(Calculations!$E$2="Orkney Health Board",Calculations!$E$2="Orkney Islands Local Authority"),$F70=1),0,IF(AND(OR(Calculations!$E$2="Shetland Health Board",Calculations!$E$2="Western Isles Health Board",Calculations!$E$2="Shetland Islands Local Authority",Calculations!$E$2="Eilean Siar Local Authority"),OR($F70=1,$F70=5)),0,hosp_count(VALUE(LEFT(Options!$B$14,2)),$C70,$E70,$F70,2016,$I70/10,1,$H70/10,$G70*$H70/10, RateRatios_accidents!$B$4, RateRatios_accidents!$B$5)*10)) -> 13452.08093 | P70: =IF(AND(OR(Calculations!$E$2="Orkney Health Board",Calculations!$E$2="Orkney Islands Local Authority"),$F70=1),0,IF(AND(OR(Calculations!$E$2="Shetland Health Board",Calculations!$E$2="Western Isles Health Board",Calculations!$E$2="Shetland Islands Local Authority",Calculations!$E$2="Eilean Siar Local Authority"),OR($F70=1,$F70=5)),0,hosp_count(VALUE(LEFT(Options!$B$14,2)),$C70,$E70,$F70,2016,$I70/10+$J70/10,1,$H70/10,$G70*$H70/10, RateRatios_accidents!$B$4, RateRatios_accidents!$B$5)*10)) -> 13448.09911 | Q70: =IF(AND(OR(Calculations!$E$2="Orkney Health Board",Calculations!$E$2="Orkney Islands Local Authority"),$F70=1),0,IF(AND(OR(Calculations!$E$2="Shetland Health Board",Calculations!$E$2="Western Isles Health Board",Calculations!$E$2="Shetland Islands Local Authority",Calculations!$E$2="Eilean Siar Local Authority"),OR($F70=1,$F70=5)),0,prem_mort(VALUE(LEFT(Options!$B$14,2)),$C70,$E70,$F70,2016,$I70/10,1,$H70/10,$G70*$H70/10,RateRatios_accidents!$B$5)*10)) -> 235.2490071 | R70: =IF(AND(OR(Calculations!$E$2="Orkney Health Board",Calculations!$E$2="Orkney Islands Local Authority"),$F70=1),0,IF(AND(OR(Calculations!$E$2="Shetland Health Board",Calculations!$E$2="Western Isles Health Board",Calculations!$E$2="Shetland Islands Local Authority",Calculations!$E$2="Eilean Siar Local Authority"),OR($F70=1,$F70=5)),0,prem_mort(VALUE(LEFT(Options!$B$14,2)),$C70,$E70,$F70,2016,$I70/10+$J70/10,1,$H70/10,$G70*$H70/10,RateRatios_accidents!$B$5)*10)) -> 235.1795798 | T70: =IF(AND(OR(Calculations!$E$2="Orkney Health Board",Calculations!$E$2="Orkney Islands Local Authority"),$F70=1),0,IF(AND(OR(Calculations!$E$2="Shetland Health Board",Calculations!$E$2="Western Isles Health Board",Calculations!$E$2="Shetland Islands Local Authority",Calculations!$E$2="Eilean Siar Local Authority"),OR($F70=1,$F70=5)),0,new_ci(VALUE(LEFT(Options!$B$14,2)),$C70,$E70,$F70,2016,$I70/10,1,$H70/10,$G70*$H70/10,RateRatios_airpollution!$C70)*10)) -> 235.2490071 | U70: =IF(AND(OR(Calculations!$E$2="Orkney Health Board",Calculations!$E$2="Orkney Islands Local Authority"),$F70=1),0,IF(AND(OR(Calculations!$E$2="Shetland Health Board",Calculations!$E$2="Western Isles Health Board",Calculations!$E$2="Shetland Islands Local Authority",Calculations!$E$2="Eilean Siar Local Authority"),OR($F70=1,$F70=5)),0,new_ci(VALUE(LEFT(Options!$B$14,2)),$C70,$E70,$F70,2016,$I70/10+$J70/10,1,$H70/10,$G70*$H70/10,RateRatios_airpollution!$C70)*10)) -> 235.2448937 | V70: =IF(AND(OR(Calculations!$E$2="Orkney Health Board",Calculations!$E$2="Orkney Islands Local Authority"),$F70=1),0,IF(AND(OR(Calculations!$E$2="Shetland Health Board",Calculations!$E$2="Western Isles Health Board",Calculations!$E$2="Shetland Islands Local Authority",Calculations!$E$2="Eilean Siar Local Authority"),OR($F70=1,$F70=5)),0,new_yllv2(VALUE(LEFT(Options!$B$14,2)),$C70,$D70,$E70,$F70,2016,$I70/10,1,$H70/10,$G70*$H70/10,RateRatios_airpollution!$C70)*10)) -> 7055.118663 | W70: =IF(AND(OR(Calculations!$E$2="Orkney Health Board",Calculations!$E$2="Orkney Islands Local Authority"),$F70=1),0,IF(AND(OR(Calculations!$E$2="Shetland Health Board",Calculations!$E$2="Western Isles Health Board",Calculations!$E$2="Shetland Islands Local Authority",Calculations!$E$2="Eilean Siar Local Authority"),OR($F70=1,$F70=5)),0,new_yllv2(VALUE(LEFT(Options!$B$14,2)),$C70,$D70,$E70,$F70,2016,$I70/10+$J70/10,1,$H70/10,$G70*$H70/10,RateRatios_airpollution!$C70)*10)) -> 7054.995304 | X70: =IF(AND(OR(Calculations!$E$2="Orkney Health Board",Calculations!$E$2="Orkney Islands Local Authority"),$F70=1),0,IF(AND(OR(Calculations!$E$2="Shetland Health Board",Calculations!$E$2="Western Isles Health Board",Calculations!$E$2="Shetland Islands Local Authority",Calculations!$E$2="Eilean Siar Local Authority"),OR($F70=1,$F70=5)),0,hosp_count(VALUE(LEFT(Options!$B$14,2)),$C70,$E70,$F70,2016,$I70/10,1,$H70/10,$G70*$H70/10, RateRatios_airpollution!$D70, RateRatios_airpollution!$C70)*10)) -> 13452.08093 | Y70: =IF(AND(OR(Calculations!$E$2="Orkney Health Board",Calculations!$E$2="Orkney Islands Local Authority"),$F70=1),0,IF(AND(OR(Calculations!$E$2="Shetland Health Board",Calculations!$E$2="Western Isles Health Board",Calculations!$E$2="Shetland Islands Local Authority",Calculations!$E$2="Eilean Siar Local Authority"),OR($F70=1,$F70=5)),0,hosp_count(VALUE(LEFT(Options!$B$14,2)),$C70,$E70,$F70,2016,$I70/10+$J70/10,1,$H70/10,$G70*$H70/10, RateRatios_airpollution!$D70, RateRatios_airpollution!$C70)*10)) -> 13451.63612 | Z70: =IF(AND(OR(Calculations!$E$2="Orkney Health Board",Calculations!$E$2="Orkney Islands Local Authority"),$F70=1),0,IF(AND(OR(Calculations!$E$2="Shetland Health Board",Calculations!$E$2="Western Isles Health Board",Calculations!$E$2="Shetland Islands Local Authority",Calculations!$E$2="Eilean Siar Local Authority"),OR($F70=1,$F70=5)),0,prem_mort(VALUE(LEFT(Options!$B$14,2)),$C70,$E70,$F70,2016,$I70/10,1,$H70/10,$G70*$H70/10,RateRatios_airpollution!$C70)*10)) -> 235.2490071 | AA70: =IF(AND(OR(Calculations!$E$2="Orkney Health Board",Calculations!$E$2="Orkney Islands Local Authority"),$F70=1),0,IF(AND(OR(Calculations!$E$2="Shetland Health Board",Calculations!$E$2="Western Isles Health Board",Calculations!$E$2="Shetland Islands Local Authority",Calculations!$E$2="Eilean Siar Local Authority"),OR($F70=1,$F70=5)),0,prem_mort(VALUE(LEFT(Options!$B$14,2)),$C70,$E70,$F70,2016,$I70/10+$J70/10,1,$H70/10,$G70*$H70/10,RateRatios_airpollution!$C70)*10)) -> 235.2448937 | AC70: =IF(AND(OR(Calculations!$E$2="Orkney Health Board",Calculations!$E$2="Orkney Islands Local Authority"),$F70=1),0,IF(AND(OR(Calculations!$E$2="Shetland Health Board",Calculations!$E$2="Western Isles Health Board",Calculations!$E$2="Shetland Islands Local Authority",Calculations!$E$2="Eilean Siar Local Authority"),OR($F70=1,$F70=5)),0,new_ci(VALUE(LEFT(Options!$B$14,2)),$C70,$E70,$F70,2016,$I70/10,1,$H70/10,$G70*$H70/10,RateRatios_airpollution!$E70)*10)) -> 235.2490071 | AD70: =IF(AND(OR(Calculations!$E$2="Orkney Health Board",Calculations!$E$2="Orkney Islands Local Authority"),$F70=1),0,IF(AND(OR(Calculations!$E$2="Shetland Health Board",Calculations!$E$2="Western Isles Health Board",Calculations!$E$2="Shetland Islands Local Authority",Calculations!$E$2="Eilean Siar Local Authority"),OR($F70=1,$F70=5)),0,new_ci(VALUE(LEFT(Options!$B$14,2)),$C70,$E70,$F70,2016,$I70/10+$J70/10,1,$H70/10,$G70*$H70/10,RateRatios_airpollution!$E70)*10)) -> 235.2470415 | AE70: =IF(AND(OR(Calculations!$E$2="Orkney Health Board",Calculations!$E$2="Orkney Islands Local Authority"),$F70=1),0,IF(AND(OR(Calculations!$E$2="Shetland Health Board",Calculations!$E$2="Western Isles Health Board",Calculations!$E$2="Shetland Islands Local Authority",Calculations!$E$2="Eilean Siar Local Authority"),OR($F70=1,$F70=5)),0,new_yllv2(VALUE(LEFT(Options!$B$14,2)),$C70,$D70,$E70,$F70,2016,$I70/10,1,$H70/10,$G70*$H70/10,RateRatios_airpollution!$E70)*10)) -> 7055.118663 | AF70: =IF(AND(OR(Calculations!$E$2="Orkney Health Board",Calculations!$E$2="Orkney Islands Local Authority"),$F70=1),0,IF(AND(OR(Calculations!$E$2="Shetland Health Board",Calculations!$E$2="Western Isles Health Board",Calculations!$E$2="Shetland Islands Local Authority",Calculations!$E$2="Eilean Siar Local Authority"),OR($F70=1,$F70=5)),0,new_yllv2(VALUE(LEFT(Options!$B$14,2)),$C70,$D70,$E70,$F70,2016,$I70/10+$J70/10,1,$H70/10,$G70*$H70/10,RateRatios_airpollution!$E70)*10)) -> 7055.059715 | AG70: =IF(AND(OR(Calculations!$E$2="Orkney Health Board",Calculations!$E$2="Orkney Islands Local Authority"),$F70=1),0,IF(AND(OR(Calculations!$E$2="Shetland Health Board",Calculations!$E$2="Western Isles Health Board",Calculations!$E$2="Shetland Islands Local Authority",Calculations!$E$2="Eilean Siar Local Authority"),OR($F70=1,$F70=5)),0,hosp_count(VALUE(LEFT(Options!$B$14,2)),$C70,$E70,$F70,2016,$I70/10,1,$H70/10,$G70*$H70/10, RateRatios_airpollution!$F70, RateRatios_airpollution!$E70)*10)) -> 13452.08093 | AH70: =IF(AND(OR(Calculations!$E$2="Orkney Health Board",Calculations!$E$2="Orkney Islands Local Authority"),$F70=1),0,IF(AND(OR(Calculations!$E$2="Shetland Health Board",Calculations!$E$2="Western Isles Health Board",Calculations!$E$2="Shetland Islands Local Authority",Calculations!$E$2="Eilean Siar Local Authority"),OR($F70=1,$F70=5)),0,hosp_count(VALUE(LEFT(Options!$B$14,2)),$C70,$E70,$F70,2016,$I70/10+$J70/10,1,$H70/10,$G70*$H70/10, RateRatios_airpollution!$F70, RateRatios_airpollution!$E70)*10)) -> 13452.08093 | AI70: =IF(AND(OR(Calculations!$E$2="Orkney Health Board",Calculations!$E$2="Orkney Islands Local Authority"),$F70=1),0,IF(AND(OR(Calculations!$E$2="Shetland Health Board",Calculations!$E$2="Western Isles Health Board",Calculations!$E$2="Shetland Islands Local Authority",Calculations!$E$2="Eilean Siar Local Authority"),OR($F70=1,$F70=5)),0,prem_mort(VALUE(LEFT(Options!$B$14,2)),$C70,$E70,$F70,2016,$I70/10,1,$H70/10,$G70*$H70/10,RateRatios_airpollution!$E70)*10)) -> 235.2490071 | AJ70: =IF(AND(OR(Calculations!$E$2="Orkney Health Board",Calculations!$E$2="Orkney Islands Local Authority"),$F70=1),0,IF(AND(OR(Calculations!$E$2="Shetland Health Board",Calculations!$E$2="Western Isles Health Board",Calculations!$E$2="Shetland Islands Local Authority",Calculations!$E$2="Eilean Siar Local Authority"),OR($F70=1,$F70=5)),0,prem_mort(VALUE(LEFT(Options!$B$14,2)),$C70,$E70,$F70,2016,$I70/10+$J70/10,1,$H70/10,$G70*$H70/10,RateRatios_airpollution!$E70)*10)) -> 235.2470415 | AK70: 235.2490071 | AL70: 235.1735008 | AM70: 7055.118663 | AN70: 7052.854231 | AO70: 13452.08093 | AP70: 13447.65429 | AQ70: 235.2490071 | AR70: 235.1735008 | AS70: 592.50707 | AT70: 592.3168971 | AU70: 17769.2894 | AV70: 17763.58611 | AW70: 33880.92115 | AX70: 33869.77205 | AY70: 592.50707 | AZ70: 592.3168971 | BA70: 4147549.49 | BB70: 4146218.28 | BC70: 124385025.8 | BD70: 124345102.8 | BE70: 237166448.1 | BF70: 237088404.4 | BG70: 4147549.49 | BH70: 4146218.28 | BI70: 7000
B71: Female 55-59 | C71: 56.953041 | D71: 83.47304 | E71: female | F71: 1 | G71: 1 | H71: =HLOOKUP(Calculations!$E$2,'Population 2016'!$C$3:$BC$249,'Population 2016'!BD71,FALSE) -> 35528 | I71: 0 | J71: =HLOOKUP(Calculations!$E$2,Pop2016_in_settlements!$C$3:$BC$249,Pop2016_in_settlements!$BD71,FALSE) -> 26138 | K71: =IF(AND(OR(Calculations!$E$2="Orkney Health Board",Calculations!$E$2="Orkney Islands Local Authority"),$F71=1),0,IF(AND(OR(Calculations!$E$2="Shetland Health Board",Calculations!$E$2="Western Isles Health Board",Calculations!$E$2="Shetland Islands Local Authority",Calculations!$E$2="Eilean Siar Local Authority"),OR($F71=1,$F71=5)),0,new_ci(VALUE(LEFT(Options!$B$14,2)),$C71,$E71,$F71,2016,$I71/10,1,$H71/10,$G71*$H71/10,RateRatios_accidents!$B$5)*10)) -> 320.5420077 | L71: =IF(AND(OR(Calculations!$E$2="Orkney Health Board",Calculations!$E$2="Orkney Islands Local Authority"),$F71=1),0,IF(AND(OR(Calculations!$E$2="Shetland Health Board",Calculations!$E$2="Western Isles Health Board",Calculations!$E$2="Shetland Islands Local Authority",Calculations!$E$2="Eilean Siar Local Authority"),OR($F71=1,$F71=5)),0,new_ci(VALUE(LEFT(Options!$B$14,2)),$C71,$E71,$F71,2016,$I71/10+$J71/10,1,$H71/10,$G71*$H71/10,RateRatios_accidents!$B$5)*10)) -> 320.4481043 | M71: =IF(AND(OR(Calculations!$E$2="Orkney Health Board",Calculations!$E$2="Orkney Islands Local Authority"),$F71=1),0,IF(AND(OR(Calculations!$E$2="Shetland Health Board",Calculations!$E$2="Western Isles Health Board",Calculations!$E$2="Shetland Islands Local Authority",Calculations!$E$2="Eilean Siar Local Authority"),OR($F71=1,$F71=5)),0,new_yllv2(VALUE(LEFT(Options!$B$14,2)),$C71,$D71,$E71,$F71,2016,$I71/10,1,$H71/10,$G71*$H71/10,RateRatios_accidents!$B$5)*10)) -> 8180.231716 | N71: =IF(AND(OR(Calculations!$E$2="Orkney Health Board",Calculations!$E$2="Orkney Islands Local Authority"),$F71=1),0,IF(AND(OR(Calculations!$E$2="Shetland Health Board",Calculations!$E$2="Western Isles Health Board",Calculations!$E$2="Shetland Islands Local Authority",Calculations!$E$2="Eilean Siar Local Authority"),OR($F71=1,$F71=5)),0,new_yllv2(VALUE(LEFT(Options!$B$14,2)),$C71,$D71,$E71,$F71,2016,$I71/10+$J71/10,1,$H71/10,$G71*$H71/10,RateRatios_accidents!$B$5)*10)) -> 8177.835302 | O71: =IF(AND(OR(Calculations!$E$2="Orkney Health Board",Calculations!$E$2="Orkney Islands Local Authority"),$F71=1),0,IF(AND(OR(Calculations!$E$2="Shetland Health Board",Calculations!$E$2="Western Isles Health Board",Calculations!$E$2="Shetland Islands Local Authority",Calculations!$E$2="Eilean Siar Local Authority"),OR($F71=1,$F71=5)),0,hosp_count(VALUE(LEFT(Options!$B$14,2)),$C71,$E71,$F71,2016,$I71/10,1,$H71/10,$G71*$H71/10, RateRatios_accidents!$B$4, RateRatios_accidents!$B$5)*10)) -> 13637.46804 | P71: =IF(AND(OR(Calculations!$E$2="Orkney Health Board",Calculations!$E$2="Orkney Islands Local Authority"),$F71=1),0,IF(AND(OR(Calculations!$E$2="Shetland Health Board",Calculations!$E$2="Western Isles Health Board",Calculations!$E$2="Shetland Islands Local Authority",Calculations!$E$2="Eilean Siar Local Authority"),OR($F71=1,$F71=5)),0,hosp_count(VALUE(LEFT(Options!$B$14,2)),$C71,$E71,$F71,2016,$I71/10+$J71/10,1,$H71/10,$G71*$H71/10, RateRatios_accidents!$B$4, RateRatios_accidents!$B$5)*10)) -> 13633.4548 | Q71: =IF(AND(OR(Calculations!$E$2="Orkney Health Board",Calculations!$E$2="Orkney Islands Local Authority"),$F71=1),0,IF(AND(OR(Calculations!$E$2="Shetland Health Board",Calculations!$E$2="Western Isles Health Board",Calculations!$E$2="Shetland Islands Local Authority",Calculations!$E$2="Eilean Siar Local Authority"),OR($F71=1,$F71=5)),0,prem_mort(VALUE(LEFT(Options!$B$14,2)),$C71,$E71,$F71,2016,$I71/10,1,$H71/10,$G71*$H71/10,RateRatios_accidents!$B$5)*10)) -> 320.5420077 | R71: =IF(AND(OR(Calculations!$E$2="Orkney Health Board",Calculations!$E$2="Orkney Islands Local Authority"),$F71=1),0,IF(AND(OR(Calculations!$E$2="Shetland Health Board",Calculations!$E$2="Western Isles Health Board",Calculations!$E$2="Shetland Islands Local Authority",Calculations!$E$2="Eilean Siar Local Authority"),OR($F71=1,$F71=5)),0,prem_mort(VALUE(LEFT(Options!$B$14,2)),$C71,$E71,$F71,2016,$I71/10+$J71/10,1,$H71/10,$G71*$H71/10,RateRatios_accidents!$B$5)*10)) -> 320.4481043 | T71: =IF(AND(OR(Calculations!$E$2="Orkney Health Board",Calculations!$E$2="Orkney Islands Local Authority"),$F71=1),0,IF(AND(OR(Calculations!$E$2="Shetland Health Board",Calculations!$E$2="Western Isles Health Board",Calculations!$E$2="Shetland Islands Local Authority",Calculations!$E$2="Eilean Siar Local Authority"),OR($F71=1,$F71=5)),0,new_ci(VALUE(LEFT(Options!$B$14,2)),$C71,$E71,$F71,2016,$I71/10,1,$H71/10,$G71*$H71/10,RateRatios_airpollution!$C71)*10)) -> 320.5420077 | U71: =IF(AND(OR(Calculations!$E$2="Orkney Health Board",Calculations!$E$2="Orkney Islands Local Authority"),$F71=1),0,IF(AND(OR(Calculations!$E$2="Shetland Health Board",Calculations!$E$2="Western Isles Health Board",Calculations!$E$2="Shetland Islands Local Authority",Calculations!$E$2="Eilean Siar Local Authority"),OR($F71=1,$F71=5)),0,new_ci(VALUE(LEFT(Options!$B$14,2)),$C71,$E71,$F71,2016,$I71/10+$J71/10,1,$H71/10,$G71*$H71/10,RateRatios_airpollution!$C71)*10)) -> 320.5364534 | V71: =IF(AND(OR(Calculations!$E$2="Orkney Health Board",Calculations!$E$2="Orkney Islands Local Authority"),$F71=1),0,IF(AND(OR(Calculations!$E$2="Shetland Health Board",Calculations!$E$2="Western Isles Health Board",Calculations!$E$2="Shetland Islands Local Authority",Calculations!$E$2="Eilean Siar Local Authority"),OR($F71=1,$F71=5)),0,new_yllv2(VALUE(LEFT(Options!$B$14,2)),$C71,$D71,$E71,$F71,2016,$I71/10,1,$H71/10,$G71*$H71/10,RateRatios_airpollution!$C71)*10)) -> 8180.231716 | W71: =IF(AND(OR(Calculations!$E$2="Orkney Health Board",Calculations!$E$2="Orkney Islands Local Authority"),$F71=1),0,IF(AND(OR(Calculations!$E$2="Shetland Health Board",Calculations!$E$2="Western Isles Health Board",Calculations!$E$2="Shetland Islands Local Authority",Calculations!$E$2="Eilean Siar Local Authority"),OR($F71=1,$F71=5)),0,new_yllv2(VALUE(LEFT(Options!$B$14,2)),$C71,$D71,$E71,$F71,2016,$I71/10+$J71/10,1,$H71/10,$G71*$H71/10,RateRatios_airpollution!$C71)*10)) -> 8180.08997 | X71: =IF(AND(OR(Calculations!$E$2="Orkney Health Board",Calculations!$E$2="Orkney Islands Local Authority"),$F71=1),0,IF(AND(OR(Calculations!$E$2="Shetland Health Board",Calculations!$E$2="Western Isles Health Board",Calculations!$E$2="Shetland Islands Local Authority",Calculations!$E$2="Eilean Siar Local Authority"),OR($F71=1,$F71=5)),0,hosp_count(VALUE(LEFT(Options!$B$14,2)),$C71,$E71,$F71,2016,$I71/10,1,$H71/10,$G71*$H71/10, RateRatios_airpollution!$D71, RateRatios_airpollution!$C71)*10)) -> 13637.46804 | Y71: =IF(AND(OR(Calculations!$E$2="Orkney Health Board",Calculations!$E$2="Orkney Islands Local Authority"),$F71=1),0,IF(AND(OR(Calculations!$E$2="Shetland Health Board",Calculations!$E$2="Western Isles Health Board",Calculations!$E$2="Shetland Islands Local Authority",Calculations!$E$2="Eilean Siar Local Authority"),OR($F71=1,$F71=5)),0,hosp_count(VALUE(LEFT(Options!$B$14,2)),$C71,$E71,$F71,2016,$I71/10+$J71/10,1,$H71/10,$G71*$H71/10, RateRatios_airpollution!$D71, RateRatios_airpollution!$C71)*10)) -> 13637.02085 | Z71: =IF(AND(OR(Calculations!$E$2="Orkney Health Board",Calculations!$E$2="Orkney Islands Local Authority"),$F71=1),0,IF(AND(OR(Calculations!$E$2="Shetland Health Board",Calculations!$E$2="Western Isles Health Board",Calculations!$E$2="Shetland Islands Local Authority",Calculations!$E$2="Eilean Siar Local Authority"),OR($F71=1,$F71=5)),0,prem_mort(VALUE(LEFT(Options!$B$14,2)),$C71,$E71,$F71,2016,$I71/10,1,$H71/10,$G71*$H71/10,RateRatios_airpollution!$C71)*10)) -> 320.5420077 | AA71: =IF(AND(OR(Calculations!$E$2="Orkney Health Board",Calculations!$E$2="Orkney Islands Local Authority"),$F71=1),0,IF(AND(OR(Calculations!$E$2="Shetland Health Board",Calculations!$E$2="Western Isles Health Board",Calculations!$E$2="Shetland Islands Local Authority",Calculations!$E$2="Eilean Siar Local Authority"),OR($F71=1,$F71=5)),0,prem_mort(VALUE(LEFT(Options!$B$14,2)),$C71,$E71,$F71,2016,$I71/10+$J71/10,1,$H71/10,$G71*$H71/10,RateRatios_airpollution!$C71)*10)) -> 320.5364534 | AC71: =IF(AND(OR(Calculations!$E$2="Orkney Health Board",Calculations!$E$2="Orkney Islands Local Authority"),$F71=1),0,IF(AND(OR(Calculations!$E$2="Shetland Health Board",Calculations!$E$2="Western Isles Health Board",Calculations!$E$2="Shetland Islands Local Authority",Calculations!$E$2="Eilean Siar Local Authority"),OR($F71=1,$F71=5)),0,new_ci(VALUE(LEFT(Options!$B$14,2)),$C71,$E71,$F71,2016,$I71/10,1,$H71/10,$G71*$H71/10,RateRatios_airpollution!$E71)*10)) -> 320.5420077 | AD71: =IF(AND(OR(Calculations!$E$2="Orkney Health Board",Calculations!$E$2="Orkney Islands Local Authority"),$F71=1),0,IF(AND(OR(Calculations!$E$2="Shetland Health Board",Calculations!$E$2="Western Isles Health Board",Calculations!$E$2="Shetland Islands Local Authority",Calculations!$E$2="Eilean Siar Local Authority"),OR($F71=1,$F71=5)),0,new_ci(VALUE(LEFT(Options!$B$14,2)),$C71,$E71,$F71,2016,$I71/10+$J71/10,1,$H71/10,$G71*$H71/10,RateRatios_airpollution!$E71)*10)) -> 320.5393495 | AE71: =IF(AND(OR(Calculations!$E$2="Orkney Health Board",Calculations!$E$2="Orkney Islands Local Authority"),$F71=1),0,IF(AND(OR(Calculations!$E$2="Shetland Health Board",Calculations!$E$2="Western Isles Health Board",Calculations!$E$2="Shetland Islands Local Authority",Calculations!$E$2="Eilean Siar Local Authority"),OR($F71=1,$F71=5)),0,new_yllv2(VALUE(LEFT(Options!$B$14,2)),$C71,$D71,$E71,$F71,2016,$I71/10,1,$H71/10,$G71*$H71/10,RateRatios_airpollution!$E71)*10)) -> 8180.231716 | AF71: =IF(AND(OR(Calculations!$E$2="Orkney Health Board",Calculations!$E$2="Orkney Islands Local Authority"),$F71=1),0,IF(AND(OR(Calculations!$E$2="Shetland Health Board",Calculations!$E$2="Western Isles Health Board",Calculations!$E$2="Shetland Islands Local Authority",Calculations!$E$2="Eilean Siar Local Authority"),OR($F71=1,$F71=5)),0,new_yllv2(VALUE(LEFT(Options!$B$14,2)),$C71,$D71,$E71,$F71,2016,$I71/10+$J71/10,1,$H71/10,$G71*$H71/10,RateRatios_airpollution!$E71)*10)) -> 8180.163878 | AG71: =IF(AND(OR(Calculations!$E$2="Orkney Health Board",Calculations!$E$2="Orkney Islands Local Authority"),$F71=1),0,IF(AND(OR(Calculations!$E$2="Shetland Health Board",Calculations!$E$2="Western Isles Health Board",Calculations!$E$2="Shetland Islands Local Authority",Calculations!$E$2="Eilean Siar Local Authority"),OR($F71=1,$F71=5)),0,hosp_count(VALUE(LEFT(Options!$B$14,2)),$C71,$E71,$F71,2016,$I71/10,1,$H71/10,$G71*$H71/10, RateRatios_airpollution!$F71, RateRatios_airpollution!$E71)*10)) -> 13637.46804 | AH71: =IF(AND(OR(Calculations!$E$2="Orkney Health Board",Calculations!$E$2="Orkney Islands Local Authority"),$F71=1),0,IF(AND(OR(Calculations!$E$2="Shetland Health Board",Calculations!$E$2="Western Isles Health Board",Calculations!$E$2="Shetland Islands Local Authority",Calculations!$E$2="Eilean Siar Local Authority"),OR($F71=1,$F71=5)),0,hosp_count(VALUE(LEFT(Options!$B$14,2)),$C71,$E71,$F71,2016,$I71/10+$J71/10,1,$H71/10,$G71*$H71/10, RateRatios_airpollution!$F71, RateRatios_airpollution!$E71)*10)) -> 13637.46804 | AI71: =IF(AND(OR(Calculations!$E$2="Orkney Health Board",Calculations!$E$2="Orkney Islands Local Authority"),$F71=1),0,IF(AND(OR(Calculations!$E$2="Shetland Health Board",Calculations!$E$2="Western Isles Health Board",Calculations!$E$2="Shetland Islands Local Authority",Calculations!$E$2="Eilean Siar Local Authority"),OR($F71=1,$F71=5)),0,prem_mort(VALUE(LEFT(Options!$B$14,2)),$C71,$E71,$F71,2016,$I71/10,1,$H71/10,$G71*$H71/10,RateRatios_airpollution!$E71)*10)) -> 320.5420077 | AJ71: =IF(AND(OR(Calculations!$E$2="Orkney Health Board",Calculations!$E$2="Orkney Islands Local Authority"),$F71=1),0,IF(AND(OR(Calculations!$E$2="Shetland Health Board",Calculations!$E$2="Western Isles Health Board",Calculations!$E$2="Shetland Islands Local Authority",Calculations!$E$2="Eilean Siar Local Authority"),OR($F71=1,$F71=5)),0,prem_mort(VALUE(LEFT(Options!$B$14,2)),$C71,$E71,$F71,2016,$I71/10+$J71/10,1,$H71/10,$G71*$H71/10,RateRatios_airpollution!$E71)*10)) -> 320.5393495 | AK71: 320.5420077 | AL71: 320.4398918 | AM71: 8180.231716 | AN71: 8177.625718 | AO71: 13637.46804 | AP71: 13633.00761 | AQ71: 320.5420077 | AR71: 320.4398918 | AS71: 902.22362 | AT71: 901.9361962 | AU71: 23024.74588 | AV71: 23017.41082 | AW71: 38385.12735 | AX71: 38372.57264 | AY71: 902.22362 | AZ71: 901.9361962 | BA71: 5864453.53 | BB71: 5862585.275 | BC71: 149660848.2 | BD71: 149613170.4 | BE71: 249503327.8 | BF71: 249421722.2 | BG71: 5864453.53 | BH71: 5862585.275 | BI71: 6500
B72: Female 60-64 | C72: 61.947388 | D72: 84.16739 | E72: female | F72: 1 | G72: 1 | H72: =HLOOKUP(Calculations!$E$2,'Population 2016'!$C$3:$BC$249,'Population 2016'!BD72,FALSE) -> 29212 | I72: 0 | J72: =HLOOKUP(Calculations!$E$2,Pop2016_in_settlements!$C$3:$BC$249,Pop2016_in_settlements!$BD72,FALSE) -> 21284 | K72: =IF(AND(OR(Calculations!$E$2="Orkney Health Board",Calculations!$E$2="Orkney Islands Local Authority"),$F72=1),0,IF(AND(OR(Calculations!$E$2="Shetland Health Board",Calculations!$E$2="Western Isles Health Board",Calculations!$E$2="Shetland Islands Local Authority",Calculations!$E$2="Eilean Siar Local Authority"),OR($F72=1,$F72=5)),0,new_ci(VALUE(LEFT(Options!$B$14,2)),$C72,$E72,$F72,2016,$I72/10,1,$H72/10,$G72*$H72/10,RateRatios_accidents!$B$5)*10)) -> 402.0871222 | L72: =IF(AND(OR(Calculations!$E$2="Orkney Health Board",Calculations!$E$2="Orkney Islands Local Authority"),$F72=1),0,IF(AND(OR(Calculations!$E$2="Shetland Health Board",Calculations!$E$2="Western Isles Health Board",Calculations!$E$2="Shetland Islands Local Authority",Calculations!$E$2="Eilean Siar Local Authority"),OR($F72=1,$F72=5)),0,new_ci(VALUE(LEFT(Options!$B$14,2)),$C72,$E72,$F72,2016,$I72/10+$J72/10,1,$H72/10,$G72*$H72/10,RateRatios_accidents!$B$5)*10)) -> 401.9707476 | M72: =IF(AND(OR(Calculations!$E$2="Orkney Health Board",Calculations!$E$2="Orkney Islands Local Authority"),$F72=1),0,IF(AND(OR(Calculations!$E$2="Shetland Health Board",Calculations!$E$2="Western Isles Health Board",Calculations!$E$2="Shetland Islands Local Authority",Calculations!$E$2="Eilean Siar Local Authority"),OR($F72=1,$F72=5)),0,new_yllv2(VALUE(LEFT(Options!$B$14,2)),$C72,$D72,$E72,$F72,2016,$I72/10,1,$H72/10,$G72*$H72/10,RateRatios_accidents!$B$5)*10)) -> 8532.289536 | N72: =IF(AND(OR(Calculations!$E$2="Orkney Health Board",Calculations!$E$2="Orkney Islands Local Authority"),$F72=1),0,IF(AND(OR(Calculations!$E$2="Shetland Health Board",Calculations!$E$2="Western Isles Health Board",Calculations!$E$2="Shetland Islands Local Authority",Calculations!$E$2="Eilean Siar Local Authority"),OR($F72=1,$F72=5)),0,new_yllv2(VALUE(LEFT(Options!$B$14,2)),$C72,$D72,$E72,$F72,2016,$I72/10+$J72/10,1,$H72/10,$G72*$H72/10,RateRatios_accidents!$B$5)*10)) -> 8529.820069 | O72: =IF(AND(OR(Calculations!$E$2="Orkney Health Board",Calculations!$E$2="Orkney Islands Local Authority"),$F72=1),0,IF(AND(OR(Calculations!$E$2="Shetland Health Board",Calculations!$E$2="Western Isles Health Board",Calculations!$E$2="Shetland Islands Local Authority",Calculations!$E$2="Eilean Siar Local Authority"),OR($F72=1,$F72=5)),0,hosp_count(VALUE(LEFT(Options!$B$14,2)),$C72,$E72,$F72,2016,$I72/10,1,$H72/10,$G72*$H72/10, RateRatios_accidents!$B$4, RateRatios_accidents!$B$5)*10)) -> 12714.02519 | P72: =IF(AND(OR(Calculations!$E$2="Orkney Health Board",Calculations!$E$2="Orkney Islands Local Authority"),$F72=1),0,IF(AND(OR(Calculations!$E$2="Shetland Health Board",Calculations!$E$2="Western Isles Health Board",Calculations!$E$2="Shetland Islands Local Authority",Calculations!$E$2="Eilean Siar Local Authority"),OR($F72=1,$F72=5)),0,hosp_count(VALUE(LEFT(Options!$B$14,2)),$C72,$E72,$F72,2016,$I72/10+$J72/10,1,$H72/10,$G72*$H72/10, RateRatios_accidents!$B$4, RateRatios_accidents!$B$5)*10)) -> 12710.31979 | Q72: =IF(AND(OR(Calculations!$E$2="Orkney Health Board",Calculations!$E$2="Orkney Islands Local Authority"),$F72=1),0,IF(AND(OR(Calculations!$E$2="Shetland Health Board",Calculations!$E$2="Western Isles Health Board",Calculations!$E$2="Shetland Islands Local Authority",Calculations!$E$2="Eilean Siar Local Authority"),OR($F72=1,$F72=5)),0,prem_mort(VALUE(LEFT(Options!$B$14,2)),$C72,$E72,$F72,2016,$I72/10,1,$H72/10,$G72*$H72/10,RateRatios_accidents!$B$5)*10)) -> 402.0871222 | R72: =IF(AND(OR(Calculations!$E$2="Orkney Health Board",Calculations!$E$2="Orkney Islands Local Authority"),$F72=1),0,IF(AND(OR(Calculations!$E$2="Shetland Health Board",Calculations!$E$2="Western Isles Health Board",Calculations!$E$2="Shetland Islands Local Authority",Calculations!$E$2="Eilean Siar Local Authority"),OR($F72=1,$F72=5)),0,prem_mort(VALUE(LEFT(Options!$B$14,2)),$C72,$E72,$F72,2016,$I72/10+$J72/10,1,$H72/10,$G72*$H72/10,RateRatios_accidents!$B$5)*10)) -> 401.9707476 | T72: =IF(AND(OR(Calculations!$E$2="Orkney Health Board",Calculations!$E$2="Orkney Islands Local Authority"),$F72=1),0,IF(AND(OR(Calculations!$E$2="Shetland Health Board",Calculations!$E$2="Western Isles Health Board",Calculations!$E$2="Shetland Islands Local Authority",Calculations!$E$2="Eilean Siar Local Authority"),OR($F72=1,$F72=5)),0,new_ci(VALUE(LEFT(Options!$B$14,2)),$C72,$E72,$F72,2016,$I72/10,1,$H72/10,$G72*$H72/10,RateRatios_airpollution!$C72)*10)) -> 402.0871222 | U72: =IF(AND(OR(Calculations!$E$2="Orkney Health Board",Calculations!$E$2="Orkney Islands Local Authority"),$F72=1),0,IF(AND(OR(Calculations!$E$2="Shetland Health Board",Calculations!$E$2="Western Isles Health Board",Calculations!$E$2="Shetland Islands Local Authority",Calculations!$E$2="Eilean Siar Local Authority"),OR($F72=1,$F72=5)),0,new_ci(VALUE(LEFT(Options!$B$14,2)),$C72,$E72,$F72,2016,$I72/10+$J72/10,1,$H72/10,$G72*$H72/10,RateRatios_airpollution!$C72)*10)) -> 402.0803517 | V72: =IF(AND(OR(Calculations!$E$2="Orkney Health Board",Calculations!$E$2="Orkney Islands Local Authority"),$F72=1),0,IF(AND(OR(Calculations!$E$2="Shetland Health Board",Calculations!$E$2="Western Isles Health Board",Calculations!$E$2="Shetland Islands Local Authority",Calculations!$E$2="Eilean Siar Local Authority"),OR($F72=1,$F72=5)),0,new_yllv2(VALUE(LEFT(Options!$B$14,2)),$C72,$D72,$E72,$F72,2016,$I72/10,1,$H72/10,$G72*$H72/10,RateRatios_airpollution!$C72)*10)) -> 8532.289536 | W72: =IF(AND(OR(Calculations!$E$2="Orkney Health Board",Calculations!$E$2="Orkney Islands Local Authority"),$F72=1),0,IF(AND(OR(Calculations!$E$2="Shetland Health Board",Calculations!$E$2="Western Isles Health Board",Calculations!$E$2="Shetland Islands Local Authority",Calculations!$E$2="Eilean Siar Local Authority"),OR($F72=1,$F72=5)),0,new_yllv2(VALUE(LEFT(Options!$B$14,2)),$C72,$D72,$E72,$F72,2016,$I72/10+$J72/10,1,$H72/10,$G72*$H72/10,RateRatios_airpollution!$C72)*10)) -> 8532.145868 | X72: =IF(AND(OR(Calculations!$E$2="Orkney Health Board",Calculations!$E$2="Orkney Islands Local Authority"),$F72=1),0,IF(AND(OR(Calculations!$E$2="Shetland Health Board",Calculations!$E$2="Western Isles Health Board",Calculations!$E$2="Shetland Islands Local Authority",Calculations!$E$2="Eilean Siar Local Authority"),OR($F72=1,$F72=5)),0,hosp_count(VALUE(LEFT(Options!$B$14,2)),$C72,$E72,$F72,2016,$I72/10,1,$H72/10,$G72*$H72/10, RateRatios_airpollution!$D72, RateRatios_airpollution!$C72)*10)) -> 12714.02519 | Y72: =IF(AND(OR(Calculations!$E$2="Orkney Health Board",Calculations!$E$2="Orkney Islands Local Authority"),$F72=1),0,IF(AND(OR(Calculations!$E$2="Shetland Health Board",Calculations!$E$2="Western Isles Health Board",Calculations!$E$2="Shetland Islands Local Authority",Calculations!$E$2="Eilean Siar Local Authority"),OR($F72=1,$F72=5)),0,hosp_count(VALUE(LEFT(Options!$B$14,2)),$C72,$E72,$F72,2016,$I72/10+$J72/10,1,$H72/10,$G72*$H72/10, RateRatios_airpollution!$D72, RateRatios_airpollution!$C72)*10)) -> 12713.61905 | Z72: =IF(AND(OR(Calculations!$E$2="Orkney Health Board",Calculations!$E$2="Orkney Islands Local Authority"),$F72=1),0,IF(AND(OR(Calculations!$E$2="Shetland Health Board",Calculations!$E$2="Western Isles Health Board",Calculations!$E$2="Shetland Islands Local Authority",Calculations!$E$2="Eilean Siar Local Authority"),OR($F72=1,$F72=5)),0,prem_mort(VALUE(LEFT(Options!$B$14,2)),$C72,$E72,$F72,2016,$I72/10,1,$H72/10,$G72*$H72/10,RateRatios_airpollution!$C72)*10)) -> 402.0871222 | AA72: =IF(AND(OR(Calculations!$E$2="Orkney Health Board",Calculations!$E$2="Orkney Islands Local Authority"),$F72=1),0,IF(AND(OR(Calculations!$E$2="Shetland Health Board",Calculations!$E$2="Western Isles Health Board",Calculations!$E$2="Shetland Islands Local Authority",Calculations!$E$2="Eilean Siar Local Authority"),OR($F72=1,$F72=5)),0,prem_mort(VALUE(LEFT(Options!$B$14,2)),$C72,$E72,$F72,2016,$I72/10+$J72/10,1,$H72/10,$G72*$H72/10,RateRatios_airpollution!$C72)*10)) -> 402.0803517 | AC72: =IF(AND(OR(Calculations!$E$2="Orkney Health Board",Calculations!$E$2="Orkney Islands Local Authority"),$F72=1),0,IF(AND(OR(Calculations!$E$2="Shetland Health Board",Calculations!$E$2="Western Isles Health Board",Calculations!$E$2="Shetland Islands Local Authority",Calculations!$E$2="Eilean Siar Local Authority"),OR($F72=1,$F72=5)),0,new_ci(VALUE(LEFT(Options!$B$14,2)),$C72,$E72,$F72,2016,$I72/10,1,$H72/10,$G72*$H72/10,RateRatios_airpollution!$E72)*10)) -> 402.0871222 | AD72: =IF(AND(OR(Calculations!$E$2="Orkney Health Board",Calculations!$E$2="Orkney Islands Local Authority"),$F72=1),0,IF(AND(OR(Calculations!$E$2="Shetland Health Board",Calculations!$E$2="Western Isles Health Board",Calculations!$E$2="Shetland Islands Local Authority",Calculations!$E$2="Eilean Siar Local Authority"),OR($F72=1,$F72=5)),0,new_ci(VALUE(LEFT(Options!$B$14,2)),$C72,$E72,$F72,2016,$I72/10+$J72/10,1,$H72/10,$G72*$H72/10,RateRatios_airpollution!$E72)*10)) -> 402.0838891 | AE72: =IF(AND(OR(Calculations!$E$2="Orkney Health Board",Calculations!$E$2="Orkney Islands Local Authority"),$F72=1),0,IF(AND(OR(Calculations!$E$2="Shetland Health Board",Calculations!$E$2="Western Isles Health Board",Calculations!$E$2="Shetland Islands Local Authority",Calculations!$E$2="Eilean Siar Local Authority"),OR($F72=1,$F72=5)),0,new_yllv2(VALUE(LEFT(Options!$B$14,2)),$C72,$D72,$E72,$F72,2016,$I72/10,1,$H72/10,$G72*$H72/10,RateRatios_airpollution!$E72)*10)) -> 8532.289536 | AF72: =IF(AND(OR(Calculations!$E$2="Orkney Health Board",Calculations!$E$2="Orkney Islands Local Authority"),$F72=1),0,IF(AND(OR(Calculations!$E$2="Shetland Health Board",Calculations!$E$2="Western Isles Health Board",Calculations!$E$2="Shetland Islands Local Authority",Calculations!$E$2="Eilean Siar Local Authority"),OR($F72=1,$F72=5)),0,new_yllv2(VALUE(LEFT(Options!$B$14,2)),$C72,$D72,$E72,$F72,2016,$I72/10+$J72/10,1,$H72/10,$G72*$H72/10,RateRatios_airpollution!$E72)*10)) -> 8532.220931 | AG72: =IF(AND(OR(Calculations!$E$2="Orkney Health Board",Calculations!$E$2="Orkney Islands Local Authority"),$F72=1),0,IF(AND(OR(Calculations!$E$2="Shetland Health Board",Calculations!$E$2="Western Isles Health Board",Calculations!$E$2="Shetland Islands Local Authority",Calculations!$E$2="Eilean Siar Local Authority"),OR($F72=1,$F72=5)),0,hosp_count(VALUE(LEFT(Options!$B$14,2)),$C72,$E72,$F72,2016,$I72/10,1,$H72/10,$G72*$H72/10, RateRatios_airpollution!$F72, RateRatios_airpollution!$E72)*10)) -> 12714.02519 | AH72: =IF(AND(OR(Calculations!$E$2="Orkney Health Board",Calculations!$E$2="Orkney Islands Local Authority"),$F72=1),0,IF(AND(OR(Calculations!$E$2="Shetland Health Board",Calculations!$E$2="Western Isles Health Board",Calculations!$E$2="Shetland Islands Local Authority",Calculations!$E$2="Eilean Siar Local Authority"),OR($F72=1,$F72=5)),0,hosp_count(VALUE(LEFT(Options!$B$14,2)),$C72,$E72,$F72,2016,$I72/10+$J72/10,1,$H72/10,$G72*$H72/10, RateRatios_airpollution!$F72, RateRatios_airpollution!$E72)*10)) -> 12714.02519 | AI72: =IF(AND(OR(Calculations!$E$2="Orkney Health Board",Calculations!$E$2="Orkney Islands Local Authority"),$F72=1),0,IF(AND(OR(Calculations!$E$2="Shetland Health Board",Calculations!$E$2="Western Isles Health Board",Calculations!$E$2="Shetland Islands Local Authority",Calculations!$E$2="Eilean Siar Local Authority"),OR($F72=1,$F72=5)),0,prem_mort(VALUE(LEFT(Options!$B$14,2)),$C72,$E72,$F72,2016,$I72/10,1,$H72/10,$G72*$H72/10,RateRatios_airpollution!$E72)*10)) -> 402.0871222 | AJ72: =IF(AND(OR(Calculations!$E$2="Orkney Health Board",Calculations!$E$2="Orkney Islands Local Authority"),$F72=1),0,IF(AND(OR(Calculations!$E$2="Shetland Health Board",Calculations!$E$2="Western Isles Health Board",Calculations!$E$2="Shetland Islands Local Authority",Calculations!$E$2="Eilean Siar Local Authority"),OR($F72=1,$F72=5)),0,prem_mort(VALUE(LEFT(Options!$B$14,2)),$C72,$E72,$F72,2016,$I72/10+$J72/10,1,$H72/10,$G72*$H72/10,RateRatios_airpollution!$E72)*10)) -> 402.0838891 | AK72: 402.0871222 | AL72: 401.9607442 | AM72: 8532.289536 | AN72: 8529.607795 | AO72: 12714.02519 | AP72: 12709.91365 | AQ72: 402.0871222 | AR72: 401.9607442 | AS72: 1376.44503 | AT72: 1376.012406 | AU72: 29208.16629 | AV72: 29198.98602 | AW72: 43523.29587 | AX72: 43509.22103 | AY72: 1376.44503 | AZ72: 1376.012406 | BA72: 8258670.18 | BB72: 8256074.438 | BC72: 175248997.7 | BD72: 175193916.1 | BE72: 261139775.2 | BF72: 261055326.2 | BG72: 8258670.18 | BH72: 8256074.438 | BI72: 6000
B73: Female 65-69 | C73: 67.063927 | D73: 85.19393 | E73: female | F73: 1 | G73: 1 | H73: =HLOOKUP(Calculations!$E$2,'Population 2016'!$C$3:$BC$249,'Population 2016'!BD73,FALSE) -> 27762 | I73: 0 | J73: =HLOOKUP(Calculations!$E$2,Pop2016_in_settlements!$C$3:$BC$249,Pop2016_in_settlements!$BD73,FALSE) -> 20124 | K73: =IF(AND(OR(Calculations!$E$2="Orkney Health Board",Calculations!$E$2="Orkney Islands Local Authority"),$F73=1),0,IF(AND(OR(Calculations!$E$2="Shetland Health Board",Calculations!$E$2="Western Isles Health Board",Calculations!$E$2="Shetland Islands Local Authority",Calculations!$E$2="Eilean Siar Local Authority"),OR($F73=1,$F73=5)),0,new_ci(VALUE(LEFT(Options!$B$14,2)),$C73,$E73,$F73,2016,$I73/10,1,$H73/10,$G73*$H73/10,RateRatios_accidents!$B$5)*10)) -> 588.262763 | L73: =IF(AND(OR(Calculations!$E$2="Orkney Health Board",Calculations!$E$2="Orkney Islands Local Authority"),$F73=1),0,IF(AND(OR(Calculations!$E$2="Shetland Health Board",Calculations!$E$2="Western Isles Health Board",Calculations!$E$2="Shetland Islands Local Authority",Calculations!$E$2="Eilean Siar Local Authority"),OR($F73=1,$F73=5)),0,new_ci(VALUE(LEFT(Options!$B$14,2)),$C73,$E73,$F73,2016,$I73/10+$J73/10,1,$H73/10,$G73*$H73/10,RateRatios_accidents!$B$5)*10)) -> 588.0940132 | M73: =IF(AND(OR(Calculations!$E$2="Orkney Health Board",Calculations!$E$2="Orkney Islands Local Authority"),$F73=1),0,IF(AND(OR(Calculations!$E$2="Shetland Health Board",Calculations!$E$2="Western Isles Health Board",Calculations!$E$2="Shetland Islands Local Authority",Calculations!$E$2="Eilean Siar Local Authority"),OR($F73=1,$F73=5)),0,new_yllv2(VALUE(LEFT(Options!$B$14,2)),$C73,$D73,$E73,$F73,2016,$I73/10,1,$H73/10,$G73*$H73/10,RateRatios_accidents!$B$5)*10)) -> 10076.94289 | N73: =IF(AND(OR(Calculations!$E$2="Orkney Health Board",Calculations!$E$2="Orkney Islands Local Authority"),$F73=1),0,IF(AND(OR(Calculations!$E$2="Shetland Health Board",Calculations!$E$2="Western Isles Health Board",Calculations!$E$2="Shetland Islands Local Authority",Calculations!$E$2="Eilean Siar Local Authority"),OR($F73=1,$F73=5)),0,new_yllv2(VALUE(LEFT(Options!$B$14,2)),$C73,$D73,$E73,$F73,2016,$I73/10+$J73/10,1,$H73/10,$G73*$H73/10,RateRatios_accidents!$B$5)*10)) -> 10074.05221 | O73: =IF(AND(OR(Calculations!$E$2="Orkney Health Board",Calculations!$E$2="Orkney Islands Local Authority"),$F73=1),0,IF(AND(OR(Calculations!$E$2="Shetland Health Board",Calculations!$E$2="Western Isles Health Board",Calculations!$E$2="Shetland Islands Local Authority",Calculations!$E$2="Eilean Siar Local Authority"),OR($F73=1,$F73=5)),0,hosp_count(VALUE(LEFT(Options!$B$14,2)),$C73,$E73,$F73,2016,$I73/10,1,$H73/10,$G73*$H73/10, RateRatios_accidents!$B$4, RateRatios_accidents!$B$5)*10)) -> 13742.51292 | P73: =IF(AND(OR(Calculations!$E$2="Orkney Health Board",Calculations!$E$2="Orkney Islands Local Authority"),$F73=1),0,IF(AND(OR(Calculations!$E$2="Shetland Health Board",Calculations!$E$2="Western Isles Health Board",Calculations!$E$2="Shetland Islands Local Authority",Calculations!$E$2="Eilean Siar Local Authority"),OR($F73=1,$F73=5)),0,hosp_count(VALUE(LEFT(Options!$B$14,2)),$C73,$E73,$F73,2016,$I73/10+$J73/10,1,$H73/10,$G73*$H73/10, RateRatios_accidents!$B$4, RateRatios_accidents!$B$5)*10)) -> 13738.52828 | Q73: =IF(AND(OR(Calculations!$E$2="Orkney Health Board",Calculations!$E$2="Orkney Islands Local Authority"),$F73=1),0,IF(AND(OR(Calculations!$E$2="Shetland Health Board",Calculations!$E$2="Western Isles Health Board",Calculations!$E$2="Shetland Islands Local Authority",Calculations!$E$2="Eilean Siar Local Authority"),OR($F73=1,$F73=5)),0,prem_mort(VALUE(LEFT(Options!$B$14,2)),$C73,$E73,$F73,2016,$I73/10,1,$H73/10,$G73*$H73/10,RateRatios_accidents!$B$5)*10)) -> 588.262763 | R73: =IF(AND(OR(Calculations!$E$2="Orkney Health Board",Calculations!$E$2="Orkney Islands Local Authority"),$F73=1),0,IF(AND(OR(Calculations!$E$2="Shetland Health Board",Calculations!$E$2="Western Isles Health Board",Calculations!$E$2="Shetland Islands Local Authority",Calculations!$E$2="Eilean Siar Local Authority"),OR($F73=1,$F73=5)),0,prem_mort(VALUE(LEFT(Options!$B$14,2)),$C73,$E73,$F73,2016,$I73/10+$J73/10,1,$H73/10,$G73*$H73/10,RateRatios_accidents!$B$5)*10)) -> 588.0940132 | T73: =IF(AND(OR(Calculations!$E$2="Orkney Health Board",Calculations!$E$2="Orkney Islands Local Authority"),$F73=1),0,IF(AND(OR(Calculations!$E$2="Shetland Health Board",Calculations!$E$2="Western Isles Health Board",Calculations!$E$2="Shetland Islands Local Authority",Calculations!$E$2="Eilean Siar Local Authority"),OR($F73=1,$F73=5)),0,new_ci(VALUE(LEFT(Options!$B$14,2)),$C73,$E73,$F73,2016,$I73/10,1,$H73/10,$G73*$H73/10,RateRatios_airpollution!$C73)*10)) -> 588.262763 | U73: =IF(AND(OR(Calculations!$E$2="Orkney Health Board",Calculations!$E$2="Orkney Islands Local Authority"),$F73=1),0,IF(AND(OR(Calculations!$E$2="Shetland Health Board",Calculations!$E$2="Western Isles Health Board",Calculations!$E$2="Shetland Islands Local Authority",Calculations!$E$2="Eilean Siar Local Authority"),OR($F73=1,$F73=5)),0,new_ci(VALUE(LEFT(Options!$B$14,2)),$C73,$E73,$F73,2016,$I73/10+$J73/10,1,$H73/10,$G73*$H73/10,RateRatios_airpollution!$C73)*10)) -> 588.2529968 | V73: =IF(AND(OR(Calculations!$E$2="Orkney Health Board",Calculations!$E$2="Orkney Islands Local Authority"),$F73=1),0,IF(AND(OR(Calculations!$E$2="Shetland Health Board",Calculations!$E$2="Western Isles Health Board",Calculations!$E$2="Shetland Islands Local Authority",Calculations!$E$2="Eilean Siar Local Authority"),OR($F73=1,$F73=5)),0,new_yllv2(VALUE(LEFT(Options!$B$14,2)),$C73,$D73,$E73,$F73,2016,$I73/10,1,$H73/10,$G73*$H73/10,RateRatios_airpollution!$C73)*10)) -> 10076.94289 | W73: =IF(AND(OR(Calculations!$E$2="Orkney Health Board",Calculations!$E$2="Orkney Islands Local Authority"),$F73=1),0,IF(AND(OR(Calculations!$E$2="Shetland Health Board",Calculations!$E$2="Western Isles Health Board",Calculations!$E$2="Shetland Islands Local Authority",Calculations!$E$2="Eilean Siar Local Authority"),OR($F73=1,$F73=5)),0,new_yllv2(VALUE(LEFT(Options!$B$14,2)),$C73,$D73,$E73,$F73,2016,$I73/10+$J73/10,1,$H73/10,$G73*$H73/10,RateRatios_airpollution!$C73)*10)) -> 10076.7756 | X73: =IF(AND(OR(Calculations!$E$2="Orkney Health Board",Calculations!$E$2="Orkney Islands Local Authority"),$F73=1),0,IF(AND(OR(Calculations!$E$2="Shetland Health Board",Calculations!$E$2="Western Isles Health Board",Calculations!$E$2="Shetland Islands Local Authority",Calculations!$E$2="Eilean Siar Local Authority"),OR($F73=1,$F73=5)),0,hosp_count(VALUE(LEFT(Options!$B$14,2)),$C73,$E73,$F73,2016,$I73/10,1,$H73/10,$G73*$H73/10, RateRatios_airpollution!$D73, RateRatios_airpollution!$C73)*10)) -> 13742.51292 | Y73: =IF(AND(OR(Calculations!$E$2="Orkney Health Board",Calculations!$E$2="Orkney Islands Local Authority"),$F73=1),0,IF(AND(OR(Calculations!$E$2="Shetland Health Board",Calculations!$E$2="Western Isles Health Board",Calculations!$E$2="Shetland Islands Local Authority",Calculations!$E$2="Eilean Siar Local Authority"),OR($F73=1,$F73=5)),0,hosp_count(VALUE(LEFT(Options!$B$14,2)),$C73,$E73,$F73,2016,$I73/10+$J73/10,1,$H73/10,$G73*$H73/10, RateRatios_airpollution!$D73, RateRatios_airpollution!$C73)*10)) -> 13742.07852 | Z73: =IF(AND(OR(Calculations!$E$2="Orkney Health Board",Calculations!$E$2="Orkney Islands Local Authority"),$F73=1),0,IF(AND(OR(Calculations!$E$2="Shetland Health Board",Calculations!$E$2="Western Isles Health Board",Calculations!$E$2="Shetland Islands Local Authority",Calculations!$E$2="Eilean Siar Local Authority"),OR($F73=1,$F73=5)),0,prem_mort(VALUE(LEFT(Options!$B$14,2)),$C73,$E73,$F73,2016,$I73/10,1,$H73/10,$G73*$H73/10,RateRatios_airpollution!$C73)*10)) -> 588.262763 | AA73: =IF(AND(OR(Calculations!$E$2="Orkney Health Board",Calculations!$E$2="Orkney Islands Local Authority"),$F73=1),0,IF(AND(OR(Calculations!$E$2="Shetland Health Board",Calculations!$E$2="Western Isles Health Board",Calculations!$E$2="Shetland Islands Local Authority",Calculations!$E$2="Eilean Siar Local Authority"),OR($F73=1,$F73=5)),0,prem_mort(VALUE(LEFT(Options!$B$14,2)),$C73,$E73,$F73,2016,$I73/10+$J73/10,1,$H73/10,$G73*$H73/10,RateRatios_airpollution!$C73)*10)) -> 588.2529968 | AC73: =IF(AND(OR(Calculations!$E$2="Orkney Health Board",Calculations!$E$2="Orkney Islands Local Authority"),$F73=1),0,IF(AND(OR(Calculations!$E$2="Shetland Health Board",Calculations!$E$2="Western Isles Health Board",Calculations!$E$2="Shetland Islands Local Authority",Calculations!$E$2="Eilean Siar Local Authority"),OR($F73=1,$F73=5)),0,new_ci(VALUE(LEFT(Options!$B$14,2)),$C73,$E73,$F73,2016,$I73/10,1,$H73/10,$G73*$H73/10,RateRatios_airpollution!$E73)*10)) -> 588.262763 | AD73: =IF(AND(OR(Calculations!$E$2="Orkney Health Board",Calculations!$E$2="Orkney Islands Local Authority"),$F73=1),0,IF(AND(OR(Calculations!$E$2="Shetland Health Board",Calculations!$E$2="Western Isles Health Board",Calculations!$E$2="Shetland Islands Local Authority",Calculations!$E$2="Eilean Siar Local Authority"),OR($F73=1,$F73=5)),0,new_ci(VALUE(LEFT(Options!$B$14,2)),$C73,$E73,$F73,2016,$I73/10+$J73/10,1,$H73/10,$G73*$H73/10,RateRatios_airpollution!$E73)*10)) -> 588.2581043 | AE73: =IF(AND(OR(Calculations!$E$2="Orkney Health Board",Calculations!$E$2="Orkney Islands Local Authority"),$F73=1),0,IF(AND(OR(Calculations!$E$2="Shetland Health Board",Calculations!$E$2="Western Isles Health Board",Calculations!$E$2="Shetland Islands Local Authority",Calculations!$E$2="Eilean Siar Local Authority"),OR($F73=1,$F73=5)),0,new_yllv2(VALUE(LEFT(Options!$B$14,2)),$C73,$D73,$E73,$F73,2016,$I73/10,1,$H73/10,$G73*$H73/10,RateRatios_airpollution!$E73)*10)) -> 10076.94289 | AF73: =IF(AND(OR(Calculations!$E$2="Orkney Health Board",Calculations!$E$2="Orkney Islands Local Authority"),$F73=1),0,IF(AND(OR(Calculations!$E$2="Shetland Health Board",Calculations!$E$2="Western Isles Health Board",Calculations!$E$2="Shetland Islands Local Authority",Calculations!$E$2="Eilean Siar Local Authority"),OR($F73=1,$F73=5)),0,new_yllv2(VALUE(LEFT(Options!$B$14,2)),$C73,$D73,$E73,$F73,2016,$I73/10+$J73/10,1,$H73/10,$G73*$H73/10,RateRatios_airpollution!$E73)*10)) -> 10076.86309 | AG73: =IF(AND(OR(Calculations!$E$2="Orkney Health Board",Calculations!$E$2="Orkney Islands Local Authority"),$F73=1),0,IF(AND(OR(Calculations!$E$2="Shetland Health Board",Calculations!$E$2="Western Isles Health Board",Calculations!$E$2="Shetland Islands Local Authority",Calculations!$E$2="Eilean Siar Local Authority"),OR($F73=1,$F73=5)),0,hosp_count(VALUE(LEFT(Options!$B$14,2)),$C73,$E73,$F73,2016,$I73/10,1,$H73/10,$G73*$H73/10, RateRatios_airpollution!$F73, RateRatios_airpollution!$E73)*10)) -> 13742.51292 | AH73: =IF(AND(OR(Calculations!$E$2="Orkney Health Board",Calculations!$E$2="Orkney Islands Local Authority"),$F73=1),0,IF(AND(OR(Calculations!$E$2="Shetland Health Board",Calculations!$E$2="Western Isles Health Board",Calculations!$E$2="Shetland Islands Local Authority",Calculations!$E$2="Eilean Siar Local Authority"),OR($F73=1,$F73=5)),0,hosp_count(VALUE(LEFT(Options!$B$14,2)),$C73,$E73,$F73,2016,$I73/10+$J73/10,1,$H73/10,$G73*$H73/10, RateRatios_airpollution!$F73, RateRatios_airpollution!$E73)*10)) -> 13742.51292 | AI73: =IF(AND(OR(Calculations!$E$2="Orkney Health Board",Calculations!$E$2="Orkney Islands Local Authority"),$F73=1),0,IF(AND(OR(Calculations!$E$2="Shetland Health Board",Calculations!$E$2="Western Isles Health Board",Calculations!$E$2="Shetland Islands Local Authority",Calculations!$E$2="Eilean Siar Local Authority"),OR($F73=1,$F73=5)),0,prem_mort(VALUE(LEFT(Options!$B$14,2)),$C73,$E73,$F73,2016,$I73/10,1,$H73/10,$G73*$H73/10,RateRatios_airpollution!$E73)*10)) -> 588.262763 | AJ73: =IF(AND(OR(Calculations!$E$2="Orkney Health Board",Calculations!$E$2="Orkney Islands Local Authority"),$F73=1),0,IF(AND(OR(Calculations!$E$2="Shetland Health Board",Calculations!$E$2="Western Isles Health Board",Calculations!$E$2="Shetland Islands Local Authority",Calculations!$E$2="Eilean Siar Local Authority"),OR($F73=1,$F73=5)),0,prem_mort(VALUE(LEFT(Options!$B$14,2)),$C73,$E73,$F73,2016,$I73/10+$J73/10,1,$H73/10,$G73*$H73/10,RateRatios_airpollution!$E73)*10)) -> 588.2581043 | AK73: 588.262763 | AL73: 588.0795883 | AM73: 10076.94289 | AN73: 10073.80511 | AO73: 13742.51292 | AP73: 13738.09387 | AQ73: 588.262763 | AR73: 588.0795883 | AS73: 2118.94951 | AT73: 2118.289706 | AU73: 36297.61146 | AV73: 36286.30902 | AW73: 49501.16318 | AX73: 49485.24555 | AY73: 2118.94951 | AZ73: 2118.289706 | BA73: 11654222.3 | BB73: 11650593.39 | BC73: 199636863 | BD73: 199574699.6 | BE73: 272256397.5 | BF73: 272168850.5 | BG73: 11654222.3 | BH73: 11650593.39 | BI73: 5500
